Workbook

Sheet Resumen
D2: Fecha final | H2: Swap USD - COP | L2: Impuestos | P2: Estructura de Capital Regulatoria | W2: Inflación
D3: 2020-05-31 | H3: SwapCOP | J3: =AVERAGE(SWAP!C4:C369) -> 0.05516807692 | L3: Año | M3: 2020 | W3: PCOP | X3: =AVERAGE(Inflacion!S7:S257) -> 0.03603270779
H4: FDCOP | J4: =1/POWER(1+Swap_COP,10) -> 0.5844987196 | L4: Tax | M4: =Tx -> 0.32 | P4: Capital propio | Q4: 0.6 | W4: PUSD | X4: =AVERAGE(Inflacion!X7:X372) -> 0.01517584192
D5: Fecha inicial | H5: SwapUSD | J5: =AVERAGE(SWAP!D4:D369) -> 0.01471297692 | P5: Deuda | Q5: 0.4
D6: =EOMONTH(D3,-12)+1 -> 2019-06-01 | H6: FDUSD | J6: =1/POWER(1+Swap_USD,10) -> 0.86410766 | L6: Rr | M6: SISFV | P6: Tx | Q6: =VLOOKUP(M3,Tx!B4:C6,2) -> 0.32 | X6: =((1+Kd_COP)/(1+Inf_COP))-1 -> 0.03722797307
D8: Kd | F8: Rf | H8: RMH | I8: RfH | J8: RMkdo | L8: bU | M8: bL | O8: CDS CO 10Y | P8: CDS US 10Y | Q8: RPaís | S8: Rr | U8: Ke | W8: WACC | X8: TD
B10: COP | D10: =SUMPRODUCT(Kd!B4:B55,Kd!C4:C55)/SUM(Kd!C4:C55) -> 0.07460210554 | U10: =((1+Ke_USD)*(1+Swap_COP)/(1+Swap_USD))-1 -> 0.1208812693 | W10: =(Deuda*Kd_COP)+(Equity*Ke_COP/(1-Tx)) -> 0.1365007857 | X10: =(WACC_COP-Inf_COP)/(1+Inf_COP) -> 0.09697384764
B12: USD | D12: =((1+Kd_COP)*(1+Swap_USD)/(1+Swap_COP))-1 -> 0.0334019057 | F12: =AVERAGE(Rf!C4:C369) -> 0.01524073462 | H12: ='Prima Mkdo US'!C108 -> 0.1157228553 | I12: ='Prima Mkdo US'!E108 -> 0.05146363589 | J12: ='Prima Mkdo US'!H108 -> 0.06425921943 | L12: =Beta!B151 -> 0.4929267278 | M12: =Beta_U*(1+((1-Tx)*Deuda/Equity)) -> 0.7163868445 | O12: =AVERAGE('Riesgo Pais'!C4:C369)/10000 -> 0.01903618038 | P12: =AVERAGE('Riesgo Pais'!D4:D369)/10000 -> 0.002404646154 | Q12: =O12-P12 -> 0.01663153423 | S12: =VLOOKUP(M6,'Riesgo Remuneracion'!B3:C3,2,FALSE) -> 0 | U12: =F12+(PrimaMkdo*M12)+Q12+PrimaRemuneracion -> 0.07790672828 | W12: =(Deuda*Kd_USD)+(Equity*Ke_USD/(1-Tx)) -> 0.08210199312 | X12: =(WACC_USD-Inf_USD)/(1+Inf_USD) -> 0.06592567359
D13: =(Kd_USD-Inf_USD)/(1+Inf_USD) -> 0.01795360274 | M13: =PrimaMkdo*M12 -> 0.04603445944

Sheet Kd
A1: Costo de deuda
A3: Año - Semana | B3: Tasa | C3: Monto
A4: 201923 | B4: 0.0860395332 | C4: 896391.3441
A5: 201924 | B5: 0.0745775113 | C5: 206628.7565
A6: 201925 | B6: 0.0746521783 | C6: 267355.669
A7: 201926 | B7: 0.0795258224 | C7: 387397.7359
A8: 201927 | B8: 0.0829063439 | C8: 48985.9535
A9: 201928 | B9: 0.0901783595 | C9: 281608.8433
A10: 201929 | B10: 0.0788759719 | C10: 188127.6836
A11: 201930 | B11: 0.0809791426 | C11: 301924.7001
A12: 201931 | B12: 0.0529088211 | C12: 258074.1941
A13: 201932 | B13: 0.0888398405 | C13: 126493.2652
A14: 201933 | B14: 0.0965978841 | C14: 210364.1422
A15: 201934 | B15: 0.0719402949 | C15: 222462.5852
A16: 201935 | B16: 0.0734510933 | C16: 250738.2768
A17: 201936 | B17: 0.0839913837 | C17: 74190.01118
A18: 201937 | B18: 0.0808646448 | C18: 257851.0685
A19: 201938 | B19: 0.0754961081 | C19: 329807.7363
A20: 201939 | B20: 0.0722522435 | C20: 336254.6974
A21: 201940 | B21: 0.0713448684 | C21: 115637.9563
A22: 201941 | B22: 0.0727053558 | C22: 439546.6144
A23: 201942 | B23: 0.0921335661 | C23: 126551.445
A24: 201943 | B24: 0.0715138414 | C24: 603329.2706
A25: 201944 | B25: 0.0740886313 | C25: 88739.35699
A26: 201945 | B26: 0.0731397625 | C26: 42442.50025
A27: 201946 | B27: 0.0864434231 | C27: 249800.4833
A28: 201947 | B28: 0.0753252491 | C28: 488961.6116
A29: 201948 | B29: 0.0691025041 | C29: 867735.7808
A30: 201949 | B30: 0.065442719 | C30: 476928.7966
A31: 201950 | B31: 0.076051254 | C31: 475330.1583
A32: 201951 | B32: 0.071500613 | C32: 487538.6857
A33: 201952 | B33: 0.0779127506 | C33: 536023.2987
A34: 201953 | B34: 0.0797288088 | C34: 178095.2775
A35: 202001 | B35: 0.0779230417 | C35: 242575.4886
A36: 202002 | B36: 0.0877032734 | C36: 201460.8605
A37: 202003 | B37: 0.0663974296 | C37: 331200.1123
A38: 202004 | B38: 0.0673178871 | C38: 702514.2221
A39: 202005 | B39: 0.0832671635 | C39: 174908.4124
A40: 202006 | B40: 0.0712614626 | C40: 584269.5265
A41: 202007 | B41: 0.0646628252 | C41: 384524.3642
A42: 202008 | B42: 0.0728936239 | C42: 689595.5448
A43: 202009 | B43: 0.0795167144 | C43: 126356.6341
A44: 202010 | B44: 0.0721468853 | C44: 447540.905
A45: 202011 | B45: 0.0729897852 | C45: 583006.3638
A46: 202012 | B46: 0.0746497059 | C46: 254591.109
A47: 202013 | B47: 0.0718848796 | C47: 822013.4165
A48: 202014 | B48: 0.089034832 | C48: 51367.99262
A49: 202015 | B49: 0.0790838141 | C49: 170744.3592
A50: 202016 | B50: 0.0639662458 | C50: 224193.0011
A51: 202017 | B51: 0.0748593994 | C51: 549457.0152
A52: 202018 | B52: 0.0672740724 | C52: 107763.9938
A53: 202019 | B53: 0.0834917084 | C53: 40677.96281
A54: 202020 | B54: 0.0689543494 | C54: 357006.7172
A55: 202021 | B55: 0.0772069942 | C55: 45193.93129

Sheet SWAP
B1: Tasas equivalentes
B3: Fecha | C3: CLSWU10 Curncy | D3: USSWAP10 Curncy
B4: 43617
B5: 43618
B6: 43619 | C6: 0.0593 | D6: 0.02027
B7: 43620 | C7: 0.0585 | D7: 0.021022
B8: 43621 | C8: 0.0586 | D8: 0.021172
B9: 43622 | C9: 0.058 | D9: 0.021108
B10: 43623 | C10: 0.0577 | D10: 0.020749
B11: 43624
B12: 43625
B13: 43626 | C13: 0.0568 | D13: 0.021278
B14: 43627 | C14: 0.0565 | D14: 0.021136
B15: 43628 | C15: 0.0566 | D15: 0.020805
B16: 43629 | C16: 0.0555 | D16: 0.02039
B17: 43630 | C17: 0.0552 | D17: 0.020115
B18: 43631
B19: 43632
B20: 43633 | C20: 0.0565 | D20: 0.020415
B21: 43634 | C21: 0.0559 | D21: 0.020014
B22: 43635 | C22: 0.0558 | D22: 0.01959
B23: 43636 | C23: 0.055 | D23: 0.019697
B24: 43637 | C24: 0.0552 | D24: 0.01988
B25: 43638
B26: 43639
B27: 43640 | C27: 0.0553 | D27: 0.019436
B28: 43641 | C28: 0.0551 | D28: 0.019085
B29: 43642 | C29: 0.0554 | D29: 0.01978
B30: 43643 | C30: 0.0556 | D30: 0.019548
B31: 43644 | C31: 0.055 | D31: 0.01964
B32: 43645
B33: 43646
B34: 43647 | C34: 0.055 | D34: 0.019865
B35: 43648 | C35: 0.055 | D35: 0.019327
B36: 43649 | C36: 0.0536 | D36: 0.01904
B37: 43650 | C37: 0.0536 | D37: 0.01903
B38: 43651 | C38: 0.0536 | D38: 0.01987
B39: 43652
B40: 43653
B41: 43654 | C41: 0.0542 | D41: 0.019909
B42: 43655 | C42: 0.0543 | D42: 0.02003
B43: 43656 | C43: 0.0541 | D43: 0.020097
B44: 43657 | C44: 0.0545 | D44: 0.020864
B45: 43658 | C45: 0.0548 | D45: 0.02065
B46: 43659
B47: 43660
B48: 43661 | C48: 0.0546 | D48: 0.02025
B49: 43662 | C49: 0.0549 | D49: 0.02039
B50: 43663 | C50: 0.0549 | D50: 0.019791
B51: 43664 | C51: 0.0545 | D51: 0.0195
B52: 43665 | C52: 0.0551 | D52: 0.019888
B53: 43666
B54: 43667
B55: 43668 | C55: 0.0551 | D55: 0.019801
B56: 43669 | C56: 0.0551 | D56: 0.02012
B57: 43670 | C57: 0.0548 | D57: 0.01971
B58: 43671 | C58: 0.0549 | D58: 0.019969
B59: 43672 | C59: 0.0548 | D59: 0.019978
B60: 43673
B61: 43674
B62: 43675 | C62: 0.0554 | D62: 0.019833
B63: 43676 | C63: 0.0557 | D63: 0.019729
B64: 43677 | C64: 0.0557 | D64: 0.019455
B65: 43678 | C65: 0.0557 | D65: 0.018168
B66: 43679 | C66: 0.0552 | D66: 0.017683
B67: 43680
B68: 43681
B69: 43682 | C69: 0.056 | D69: 0.015894
B70: 43683 | C70: 0.0555 | D70: 0.016037
B71: 43684 | C71: 0.0556 | D71: 0.016058
B72: 43685 | C72: 0.055 | D72: 0.01594
B73: 43686 | C73: 0.055 | D73: 0.016304
B74: 43687
B75: 43688
B76: 43689 | C76: 0.055 | D76: 0.015362
B77: 43690 | C77: 0.0545 | D77: 0.01604
B78: 43691 | C78: 0.0538 | D78: 0.014713
B79: 43692 | C79: 0.0535 | D79: 0.014138
B80: 43693 | C80: 0.0531 | D80: 0.014454
B81: 43694
B82: 43695
B83: 43696 | C83: 0.0531 | D83: 0.01505
B84: 43697 | C84: 0.0531 | D84: 0.014589
B85: 43698 | C85: 0.0532 | D85: 0.014954
B86: 43699 | C86: 0.0532 | D86: 0.015315
B87: 43700 | C87: 0.0535 | D87: 0.014504
B88: 43701
B89: 43702
B90: 43703 | C90: 0.0537 | D90: 0.014557
B91: 43704 | C91: 0.0542 | D91: 0.013847
B92: 43705 | C92: 0.0545 | D92: 0.013794
B93: 43706 | C93: 0.0546 | D93: 0.013918
B94: 43707 | C94: 0.0548 | D94: 0.013817
B95: 43708
B96: 43709
B97: 43710 | C97: 0.0548 | D97: 0.01382
B98: 43711 | C98: 0.055 | D98: 0.013352
B99: 43712 | C99: 0.0544 | D99: 0.013524
B100: 43713 | C100: 0.0544 | D100: 0.014471
B101: 43714 | C101: 0.0542 | D101: 0.014458
B102: 43715
B103: 43716
B104: 43717 | C104: 0.0545 | D104: 0.015336
B105: 43718 | C105: 0.0547 | D105: 0.01621
B106: 43719 | C106: 0.0546 | D106: 0.016228
B107: 43720 | C107: 0.0544 | D107: 0.016552
B108: 43721 | C108: 0.0548 | D108: 0.017855
B109: 43722
B110: 43723
B111: 43724 | C111: 0.0544 | D111: 0.017272
B112: 43725 | C112: 0.0545 | D112: 0.01688
B113: 43726 | C113: 0.0543 | D113: 0.016695
B114: 43727 | C114: 0.0538 | D114: 0.016582
B115: 43728 | C115: 0.0539 | D115: 0.016078
B116: 43729
B117: 43730
B118: 43731 | C118: 0.0538 | D118: 0.016072
B119: 43732 | C119: 0.0538 | D119: 0.015169
B120: 43733 | C120: 0.0538 | D120: 0.016072
B121: 43734 | C121: 0.0539 | D121: 0.015697
B122: 43735 | C122: 0.0542 | D122: 0.015731
B123: 43736
B124: 43737
B125: 43738 | C125: 0.0543 | D125: 0.015638
B126: 43739 | C126: 0.0545 | D126: 0.015413
B127: 43740 | C127: 0.0543 | D127: 0.015068
B128: 43741 | C128: 0.0538 | D128: 0.014378
B129: 43742 | C129: 0.0534 | D129: 0.014471
B130: 43743
B131: 43744
B132: 43745 | C132: 0.0538 | D132: 0.014792
B133: 43746 | C133: 0.0538 | D133: 0.014395
B134: 43747 | C134: 0.0537 | D134: 0.014948
B135: 43748 | C135: 0.0538 | D135: 0.01581
B136: 43749 | C136: 0.0541 | D136: 0.016535
B137: 43750
B138: 43751
B139: 43752 | C139: 0.0541 | D139: 0.016533
B140: 43753 | C140: 0.0544 | D140: 0.017005
B141: 43754 | C141: 0.0551 | D141: 0.01665
B142: 43755 | C142: 0.0545 | D142: 0.01678
B143: 43756 | C143: 0.0542 | D143: 0.016896
B144: 43757
B145: 43758
B146: 43759 | C146: 0.0546 | D146: 0.01737
B147: 43760 | C147: 0.0552 | D147: 0.016929
B148: 43761 | C148: 0.0553 | D148: 0.016895
B149: 43762 | C149: 0.0549 | D149: 0.016894
B150: 43763 | C150: 0.055 | D150: 0.01712
B151: 43764
B152: 43765
B153: 43766 | C153: 0.0552 | D153: 0.017602
B154: 43767 | C154: 0.0559 | D154: 0.017545
B155: 43768 | C155: 0.0562 | D155: 0.016876
B156: 43769 | C156: 0.0555 | D156: 0.01602
B157: 43770 | C157: 0.0563 | D157: 0.016279
B158: 43771
B159: 43772
B160: 43773 | C160: 0.0563 | D160: 0.016975
B161: 43774 | C161: 0.0563 | D161: 0.01775
B162: 43775 | C162: 0.0572 | D162: 0.017443
B163: 43776 | C163: 0.0572 | D163: 0.018336
B164: 43777 | C164: 0.0578 | D164: 0.01849
B165: 43778
B166: 43779
B167: 43780 | C167: 0.0578 | D167: 0.01849
B168: 43781 | C168: 0.0592 | D168: 0.018435
B169: 43782 | C169: 0.0599 | D169: 0.01789
B170: 43783 | C170: 0.0591 | D170: 0.017228
B171: 43784 | C171: 0.0591 | D171: 0.017364
B172: 43785
B173: 43786
B174: 43787 | C174: 0.0583 | D174: 0.017136
B175: 43788 | C175: 0.0588 | D175: 0.016772
B176: 43789 | C176: 0.0588 | D176: 0.016441
B177: 43790 | C177: 0.0586 | D177: 0.016631
B178: 43791 | C178: 0.059 | D178: 0.016714
B179: 43792
B180: 43793
B181: 43794 | C181: 0.0596 | D181: 0.01666
B182: 43795 | C182: 0.0603 | D182: 0.016554
B183: 43796 | C183: 0.0599 | D183: 0.016872
B184: 43797 | C184: 0.0599 | D184: 0.01687
B185: 43798 | C185: 0.0599 | D185: 0.017006
B186: 43799
B187: 43800
B188: 43801 | C188: 0.0599 | D188: 0.017434
B189: 43802 | C189: 0.0595 | D189: 0.016411
B190: 43803 | C190: 0.0588 | D190: 0.017003
B191: 43804 | C191: 0.0583 | D191: 0.017412
B192: 43805 | C192: 0.0581 | D192: 0.017688
B193: 43806
B194: 43807
B195: 43808 | C195: 0.0581 | D195: 0.017524
B196: 43809 | C196: 0.0581 | D196: 0.017685
B197: 43810 | C197: 0.0575 | D197: 0.017205
B198: 43811 | C198: 0.0575 | D198: 0.018355
B199: 43812 | C199: 0.0579 | D199: 0.01756
B200: 43813
B201: 43814
... 168 more rows

Sheet Rf
B1: Tasa libre de riesgo
B3: Fecha | C3: USGG10YR Index
B4: 43617
B5: 43618
B6: 43619 | C6: 0.02071
B7: 43620 | C7: 0.021296
B8: 43621 | C8: 0.021348
B9: 43622 | C9: 0.021174
B10: 43623 | C10: 0.020809
B11: 43624
B12: 43625
B13: 43626 | C13: 0.021484
B14: 43627 | C14: 0.021431
B15: 43628 | C15: 0.021205
B16: 43629 | C16: 0.020945
B17: 43630 | C17: 0.020804
B18: 43631
B19: 43632
B20: 43633 | C20: 0.020942
B21: 43634 | C21: 0.020595
B22: 43635 | C22: 0.020233
B23: 43636 | C23: 0.020284
B24: 43637 | C24: 0.02054
B25: 43638
B26: 43639
B27: 43640 | C27: 0.020143
B28: 43641 | C28: 0.01985
B29: 43642 | C29: 0.020468
B30: 43643 | C30: 0.02014
B31: 43644 | C31: 0.020051
B32: 43645
B33: 43646
B34: 43647 | C34: 0.02024
B35: 43648 | C35: 0.01974
B36: 43649 | C36: 0.019498
B37: 43650 | C37: 0.019498
B38: 43651 | C38: 0.020338
B39: 43652
B40: 43653
B41: 43654 | C41: 0.020476
B42: 43655 | C42: 0.020648
B43: 43656 | C43: 0.020613
B44: 43657 | C44: 0.021378
B45: 43658 | C45: 0.021219
B46: 43659
B47: 43660
B48: 43661 | C48: 0.020887
B49: 43662 | C49: 0.021026
B50: 43663 | C50: 0.020451
B51: 43664 | C51: 0.020242
B52: 43665 | C52: 0.020552
B53: 43666
B54: 43667
B55: 43668 | C55: 0.020464
B56: 43669 | C56: 0.020812
B57: 43670 | C57: 0.020428
B58: 43671 | C58: 0.02081
B59: 43672 | C59: 0.020703
B60: 43673
B61: 43674
B62: 43675 | C62: 0.02065
B63: 43676 | C63: 0.02058
B64: 43677 | C64: 0.020144
B65: 43678 | C65: 0.018935
B66: 43679 | C66: 0.018452
B67: 43680
B68: 43681
B69: 43682 | C69: 0.017075
B70: 43683 | C70: 0.017023
B71: 43684 | C71: 0.017342
B72: 43685 | C72: 0.017172
B73: 43686 | C73: 0.017447
B74: 43687
B75: 43688
B76: 43689 | C76: 0.016454
B77: 43690 | C77: 0.017035
B78: 43691 | C78: 0.015792
B79: 43692 | C79: 0.015269
B80: 43693 | C80: 0.015538
B81: 43694
B82: 43695
B83: 43696 | C83: 0.016063
B84: 43697 | C84: 0.015555
B85: 43698 | C85: 0.015893
B86: 43699 | C86: 0.016131
B87: 43700 | C87: 0.015351
B88: 43701
B89: 43702
B90: 43703 | C90: 0.015351
B91: 43704 | C91: 0.014711
B92: 43705 | C92: 0.014794
B93: 43706 | C93: 0.014945
B94: 43707 | C94: 0.014961
B95: 43708
B96: 43709
B97: 43710 | C97: 0.014961
B98: 43711 | C98: 0.014573
B99: 43712 | C99: 0.014657
B100: 43713 | C100: 0.015586
B101: 43714 | C101: 0.015602
B102: 43715
B103: 43716
B104: 43717 | C104: 0.016438
B105: 43718 | C105: 0.017316
B106: 43719 | C106: 0.017385
B107: 43720 | C107: 0.017715
B108: 43721 | C108: 0.018958
B109: 43722
B110: 43723
B111: 43724 | C111: 0.018467
B112: 43725 | C112: 0.018013
B113: 43726 | C113: 0.017961
B114: 43727 | C114: 0.01784
B115: 43728 | C115: 0.017215
B116: 43729
B117: 43730
B118: 43731 | C118: 0.017267
B119: 43732 | C119: 0.016456
B120: 43733 | C120: 0.017372
B121: 43734 | C121: 0.016921
B122: 43735 | C122: 0.016801
B123: 43736
B124: 43737
B125: 43738 | C125: 0.016646
B126: 43739 | C126: 0.016353
B127: 43740 | C127: 0.015992
B128: 43741 | C128: 0.015341
B129: 43742 | C129: 0.01529
B130: 43743
B131: 43744
B132: 43745 | C132: 0.01558
B133: 43746 | C133: 0.015289
B134: 43747 | C134: 0.015836
B135: 43748 | C135: 0.016681
B136: 43749 | C136: 0.01729
B137: 43750
B138: 43751
B139: 43752 | C139: 0.01729
B140: 43753 | C140: 0.01771
B141: 43754 | C141: 0.017395
B142: 43755 | C142: 0.017518
B143: 43756 | C143: 0.017536
B144: 43757
B145: 43758
B146: 43759 | C146: 0.017993
B147: 43760 | C147: 0.017607
B148: 43761 | C148: 0.017642
B149: 43762 | C149: 0.01766
B150: 43763 | C150: 0.017943
B151: 43764
B152: 43765
B153: 43766 | C153: 0.01842
B154: 43767 | C154: 0.018385
B155: 43768 | C155: 0.017715
B156: 43769 | C156: 0.01691
B157: 43770 | C157: 0.017103
B158: 43771
B159: 43772
B160: 43773 | C160: 0.01777
B161: 43774 | C161: 0.018584
B162: 43775 | C162: 0.018283
B163: 43776 | C163: 0.019173
B164: 43777 | C164: 0.019417
B165: 43778
B166: 43779
B167: 43780 | C167: 0.019417
B168: 43781 | C168: 0.019347
B169: 43782 | C169: 0.01886
B170: 43783 | C170: 0.018186
B171: 43784 | C171: 0.018308
B172: 43785
B173: 43786
B174: 43787 | C174: 0.018153
B175: 43788 | C175: 0.017826
B176: 43789 | C176: 0.017449
B177: 43790 | C177: 0.017723
B178: 43791 | C178: 0.017706
B179: 43792
B180: 43793
B181: 43794 | C181: 0.017551
B182: 43795 | C182: 0.017414
B183: 43796 | C183: 0.017654
B184: 43797 | C184: 0.017654
B185: 43798 | C185: 0.017758
B186: 43799
B187: 43800
B188: 43801 | C188: 0.018189
B189: 43802 | C189: 0.017157
B190: 43803 | C190: 0.01774
B191: 43804 | C191: 0.018103
B192: 43805 | C192: 0.018363
B193: 43806
B194: 43807
B195: 43808 | C195: 0.01819
B196: 43809 | C196: 0.018416
B197: 43810 | C197: 0.017914
B198: 43811 | C198: 0.018922
B199: 43812 | C199: 0.018226
B200: 43813
B201: 43814
... 168 more rows

Sheet Prima Mkdo US
B1: Updated on | C1: 2019-01-01
B2: Customixed Geometric risk premium estimator
B3: What is your riskfree rate? | D3: LT | G3: Estimates of risk premiums from 1928, over the last 40 years and over the last 10 years
B4: Enter your starting year | D4: 1981 | G4: are provided at the bottom of this table.
B6: Value of stocks in starting year: | F6: =IF(D4=1928,100,VLOOKUP(D4-1,B13:H98,5)) -> 7934.263779
B7: Value of T.Bills in starting year: | F7: =IF(D4=1928,100,VLOOKUP(D4-1,B13:H98,6)) -> 453.4638924 | H7: http://www.stern.nyu.edu/~adamodar/pc/datasets/histretSP.xls
B8: Value of T.bonds in starting year: | F8: =IF(D4=1928,100,VLOOKUP(D4-1,B12:H98,7)) -> 448.1669934
B9: Estimate of risk premium based on your inputs: | F9: =IF(D3="ST",(F104/F6)^(1/(B104-D4+1))-(G104/F7)^(1/(B104-D4+1)),(F104/F6)^(1/(B104-D4+1))-(H104/F8)^(1/(B104-D4+1))) -> 0.03671398882
C11: Annual Returns on Investments in | F11: Compounded Value of $ 100
B12: Year | C12: S&P 500 | D12: 3-month T.Bill | E12: 10-year T. Bond | F12: Stocks | G12: T.Bills | H12: T.Bonds | I12: Stocks - Bills | J12: Stocks - Bonds | K12: Historical risk premium
B13: 1928 | C13: 0.4381115515 | D13: 0.0308 | E13: 0.00835470859 | F13: =100*(1+C13) -> 143.8111552 | G13: =100*(1+D13) -> 103.08 | H13: =100*(1+E13) -> 100.8354709 | I13: =C13-D13 -> 0.4073115515 | J13: =C13-E13 -> 0.4297568429
B14: 1929 | C14: -0.08297946612 | D14: 0.0316 | E14: 0.04203804156 | F14: =F13*(1+C14) -> 131.8777823 | G14: 106.337328 | H14: 105.0743966 | I14: =C14-D14 -> -0.1145794661 | J14: =C14-E14 -> -0.1250175077
B15: 1930 | C15: -0.2512363636 | D15: 0.0455 | E15: 0.04540931435 | F15: 98.74528781 | G15: 111.1756764 | H15: 109.8457529 | I15: -0.2967363636 | J15: -0.296645678
B16: 1931 | C16: -0.4383754889 | D16: 0.0231 | E16: -0.02558855962 | F16: 55.45777399 | G16: 113.7438345 | H16: 107.0349583 | I16: -0.4614754889 | J16: -0.4127869293
B17: 1932 | C17: -0.08642364532 | D17: 0.0107 | E17: 0.0879030699 | F17: 50.664911 | G17: 114.9608936 | H17: 116.4436597 | I17: -0.09712364532 | J17: -0.1743267152
B18: 1933 | C18: 0.4998222543 | D18: 0.0096 | E18: 0.01855272089 | F18: 75.98836103 | G18: 116.0645182 | H18: 118.6040064 | I18: 0.4902222543 | J18: 0.4812695334
B19: 1934 | C19: -0.01188565697 | D19: 0.002783333333 | E19: 0.07963442618 | F19: 75.08518944 | G19: 116.3875644 | H19: 128.0489684 | I19: -0.0146689903 | J19: -0.09152008315
B20: 1935 | C20: 0.4674042105 | D20: 0.001675 | E20: 0.0447204773 | F20: 110.1803231 | G20: 116.5825136 | H20: 133.7753794 | I20: 0.4657292105 | J20: 0.4226837332
B21: 1936 | C21: 0.3194341028 | D21: 0.001725 | E21: 0.05017875405 | F21: 145.3756758 | G21: 116.7836184 | H21: 140.4880613 | I21: 0.3177091028 | J21: 0.2692553487
B22: 1937 | C22: -0.3533672875 | D22: 0.002758333333 | E22: 0.0137914606 | F22: 94.00466756 | G22: 117.1057466 | H22: 142.4255968 | I22: -0.3561256209 | J22: -0.3671587481
B23: 1938 | C23: 0.2928265403 | D23: 0.00065 | E23: 0.04213248532 | F23: 121.5317291 | G23: 117.1818653 | H23: 148.4263412 | I23: 0.2921765403 | J23: 0.250694055
B24: 1939 | C24: -0.01097564688 | D24: 0.0004583333333 | E24: 0.04412261394 | F24: 120.1978398 | G24: 117.2355736 | H24: 154.9752993 | I24: -0.01143398021 | J24: -0.05509826082
B25: 1940 | C25: -0.1067287319 | D25: 0.0003583333333 | E25: 0.05402481596 | F25: 107.3692768 | G25: 117.2775831 | H25: 163.3478114 | I25: -0.1070870653 | J25: -0.1607535479
B26: 1941 | C26: -0.1277145558 | D26: 0.001291666667 | E26: -0.02022197585 | F26: 93.65665728 | G26: 117.4290666 | H26: 160.0445959 | I26: -0.1290062224 | J26: -0.1074925799
B27: 1942 | C27: 0.1917376295 | D27: 0.003425 | E27: 0.02294868237 | F27: 111.6141627 | G27: 117.8312612 | H27: 163.7174085 | I27: 0.1883126295 | J27: 0.1687889471
B28: 1943 | C28: 0.2506131013 | D28: 0.0038 | E28: 0.0249 | F28: 139.5861342 | G28: 118.2790199 | H28: 167.7939719 | I28: 0.2468131013 | J28: 0.2257131013
B29: 1944 | C29: 0.1903067695 | D29: 0.0038 | E29: 0.02577611158 | F29: 166.1503205 | G29: 118.7284802 | H29: 172.1190481 | I29: 0.1865067695 | J29: 0.1645306579
B30: 1945 | C30: 0.3582108434 | D30: 0.0038 | E30: 0.03804417342 | F30: =F29*(1+C30) -> 225.6671669 | G30: 119.1796484 | H30: 178.667175 | I30: 0.3544108434 | J30: 0.32016667
B31: 1946 | C31: -0.08429147465 | D31: 0.0038 | E31: 0.03128374538 | F31: 206.6453486 | G31: 119.6325311 | H31: 184.2565534 | I31: -0.08809147465 | J31: -0.11557522
B32: 1947 | C32: 0.052 | D32: 0.006008333333 | E32: 0.009196968063 | F32: 217.3909067 | G32: 120.3513232 | H32: 185.951155 | I32: 0.04599166667 | J32: 0.04280303194
B33: 1948 | C33: 0.05704575163 | D33: 0.01045 | E33: 0.01951036941 | F33: 229.7921344 | G33: 121.6089946 | H33: 189.5791308 | I33: 0.04659575163 | J33: 0.03753538222
B34: 1949 | C34: 0.1830322368 | D34: 0.01115 | E34: 0.04663485183 | F34: 271.8515028 | G34: 122.9649349 | H34: 198.4201254 | I34: 0.1718822368 | J34: 0.136397385
B35: 1950 | C35: 0.3080553901 | D35: 0.01203333333 | E35: 0.004295957417 | F35: 355.5968235 | G35: 124.4446129 | H35: 199.2725298 | I35: 0.2960220568 | J35: 0.3037594327
B36: 1951 | C36: 0.2367846304 | D36: 0.015175 | E36: -0.002953139221 | F36: 439.796686 | G36: 126.3330599 | H36: 198.6840503 | I36: 0.2216096304 | J36: 0.2397377697
B37: 1952 | C37: 0.1815098864 | D37: 0.017225 | E37: 0.02267996192 | F37: 519.6241325 | G37: 128.5091469 | H37: 203.190197 | I37: 0.1642848864 | J37: 0.1588299245
B38: 1953 | C38: -0.01208204742 | D38: 0.01890833333 | E38: 0.04143840259 | F38: 513.3460091 | G38: 130.9390406 | H38: 211.6100742 | I38: -0.03099038076 | J38: -0.05352045001
B39: 1954 | C39: 0.5256332124 | D39: 0.009383333333 | E39: 0.03289803456 | F39: 783.1777209 | G39: 132.1676853 | H39: 218.5716297 | I39: 0.5162498791 | J39: 0.4927351779
B40: 1955 | C40: 0.3259733185 | D40: 0.01725 | E40: -0.01336439129 | F40: 1038.472762 | G40: 134.4475779 | H40: 215.650553 | I40: 0.3087233185 | J40: 0.3393377098
B41: 1956 | C41: 0.07439511873 | D41: 0.026275 | E41: -0.02255773817 | F41: 1115.730066 | G41: 137.980188 | H41: 210.7859642 | I41: 0.04812011873 | J41: 0.09695285691
B42: 1957 | C42: -0.1045736019 | D42: 0.03225 | E42: 0.06797012847 | F42: 999.0541543 | G42: 142.4300491 | H42: 225.1131133 | I42: -0.1368236019 | J42: -0.1725437304
B43: 1958 | C43: 0.4371995499 | D43: 0.01770833333 | E43: -0.02099018176 | F43: 1435.840181 | G43: 144.9522478 | H43: 220.3879481 | I43: 0.4194912166 | J43: 0.4581897316
B44: 1959 | C44: 0.1205645716 | D44: 0.03385833333 | E44: -0.02646631259 | F44: 1608.951637 | G44: 149.8600894 | H44: 214.5550918 | I44: 0.0867062383 | J44: 0.1470308842
B45: 1960 | C45: 0.003365353147 | D45: 0.02883333333 | E45: 0.1163950369 | F45: 1614.366328 | G45: 154.1810553 | H45: 239.5282397 | I45: -0.02546798019 | J45: -0.1130296838 | K45: =((F45/100)^(1/(B45-$B$13+1)))-((H45/100)^(1/(B45-$B$13+1))) -> 0.06111978803
B46: 1961 | C46: 0.2663771296 | D46: 0.02354166667 | E46: 0.02060920808 | F46: =F45*(1+C46) -> 2044.396596 | G46: 157.8107343 | H46: 244.464727 | I46: 0.2428354629 | J46: 0.2457679215 | K46: =((F46/100)^(1/(B46-$B$13+1)))-((H46/100)^(1/(B46-$B$13+1))) -> 0.06617359183
B47: 1962 | C47: -0.08811460517 | D47: 0.02773333333 | E47: 0.05693544054 | F47: 1864.255397 | G47: 162.187352 | H47: 258.3834339 | I47: -0.1158479385 | J47: -0.1450500457 | K47: 0.05968346538
B48: 1963 | C48: 0.226119271 | D48: 0.03159166667 | E48: 0.01684162074 | F48: 2285.799469 | G48: 167.3111207 | H48: 262.7350297 | I48: 0.1945276043 | J48: 0.2092776503 | K48: 0.06361899391
B49: 1964 | C49: 0.1641545588 | D49: 0.03546666667 | E49: 0.03728064891 | F49: 2661.023872 | G49: 173.2450885 | H49: 272.5299621 | I49: 0.1286878921 | J49: 0.1268739099 | K49: 0.06526777744
B50: 1965 | C50: 0.1239924248 | D50: 0.03949166667 | E50: 0.007188550936 | F50: 2990.970674 | G50: 180.0868258 | H50: 274.4890576 | I50: 0.08450075811 | J50: 0.1168038738 | K50: 0.06661794169
B51: 1966 | C51: -0.09970954236 | D51: 0.048625 | E51: 0.02907940932 | F51: 2692.742357 | G51: 188.8435477 | H51: 282.4710373 | I51: -0.1483345424 | J51: -0.1287889517 | K51: 0.06112371968
B52: 1967 | C52: 0.2380296651 | D52: 0.04306666667 | E52: -0.01580620993 | F52: 3333.694919 | G52: 196.9764098 | H52: 278.0062408 | I52: 0.1949629985 | J52: 0.2538358751 | K52: 0.06573283878
B53: 1968 | C53: 0.1081486265 | D53: 0.05338333333 | E53: 0.03274619695 | F53: 3694.229445 | G53: 207.4916671 | H53: 287.1098879 | I53: 0.05476529318 | J53: 0.07540242957 | K53: 0.06596627829
B54: 1969 | C54: -0.08241371076 | D54: 0.06666666667 | E54: -0.05014049321 | F54: 3389.774288 | G54: 221.324445 | H54: 272.7140565 | I54: -0.1490803774 | J54: -0.03227321755 | K54: 0.06333387273
B55: 1970 | C55: 0.03561144905 | D55: 0.06391666667 | E55: 0.1675473718 | F55: 3510.489063 | G55: 235.4707657 | H55: 318.4065799 | I55: -0.02830521761 | J55: -0.1319359228 | K55: 0.05897256667
B56: 1971 | C56: 0.142211503 | D56: 0.043325 | E56: 0.0978689662 | F56: 4009.720988 | G56: 245.6725367 | H56: 349.5687027 | I56: 0.09888650298 | J56: 0.04434253679 | K56: 0.05866063681
B57: 1972 | C57: 0.1875536292 | D57: 0.040725 | E57: 0.0281844905 | F57: 4761.758712 | G57: 255.6775507 | H57: 359.4211185 | I57: 0.1468286292 | J57: 0.1593691386 | K57: 0.06080430373
B58: 1973 | C58: -0.1430804744 | D58: 0.07031666667 | E58: 0.03658664602 | F58: 4080.444016 | G58: 273.6559438 | H58: 372.5711318 | I58: -0.213397141 | J58: -0.1796671204 | K58: 0.05496004572
B59: 1974 | C59: -0.2590178575 | D59: 0.0783 | E59: 0.01988608693 | F59: 3023.536149 | G59: 295.0832042 | H59: 379.9801137 | I59: -0.3373178575 | J59: -0.2789039444 | K59: 0.04641701858
B60: 1975 | C60: 0.3699513711 | D60: 0.05775 | E60: 0.03605253603 | F60: 4142.097493 | G60: 312.1242593 | H60: 393.6793604 | I60: 0.3122013711 | J60: 0.333898835 | K60: 0.05170675678
B61: 1976 | C61: 0.23830999 | D61: 0.04974166667 | E61: 0.1598456074 | F61: 5129.200706 | G61: 327.6498401 | H61: 456.6072769 | I61: 0.1885683234 | J61: 0.07846438259 | K61: 0.05219658804
B62: 1977 | C62: -0.06979704076 | D62: 0.05269166667 | E62: 0.01289960607 | F62: =F61*(1+C62) -> 4771.197675 | G62: 344.9142563 | H62: 462.4973309 | I62: -0.1224887074 | J62: -0.08269664683 | K62: 0.04926676136
B63: 1978 | C63: 0.06509283912 | D63: 0.07188333333 | E63: -0.007775806908 | F63: 5081.768478 | G63: 369.7078427 | H63: 458.901041 | I63: -0.006790494217 | J63: 0.07286864602 | K63: 0.04974189891
B64: 1979 | C64: 0.1851949017 | D64: 0.1006916667 | E64: 0.006707203125 | F64: 6022.886091 | G64: 406.9343416 | H64: 461.9789835 | I64: 0.08450323501 | J64: 0.1784876986 | K64: 0.05213225283
B65: 1980 | C65: 0.3173524551 | D65: 0.1143416667 | E65: -0.02989744252 | F65: 7934.263779 | G65: 453.4638924 | H65: 448.1669934 | I65: 0.2030107884 | J65: 0.3472498976 | K65: 0.05731870526
B66: 1981 | C66: -0.04702390247 | D66: 0.14025 | E66: 0.08199215336 | F66: 7561.163733 | G66: 517.0622034 | H66: 484.9131702 | I66: -0.1872739025 | J66: -0.1290160558 | K66: 0.05373099047
B67: 1982 | C67: 0.2041905508 | D67: 0.1061416667 | E67: 0.3281454949 | F67: 9105.08192 | G67: 571.9440474 | H67: 644.0352424 | I67: 0.09804888413 | J67: -0.1239549441 | K67: 0.05103868869
B68: 1983 | C68: 0.2233715586 | D68: 0.08610833333 | E68: 0.03200209445 | F68: 11138.89826 | G68: 621.1931961 | H68: 664.6457191 | I68: 0.1372632253 | J68: 0.1913694641 | K68: 0.05340283065
B69: 1984 | C69: 0.06146142 | D69: 0.095225 | E69: 0.1373336434 | F69: 11823.51076 | G69: 680.3463182 | H69: 755.9239373 | I69: -0.03376358 | J69: -0.07587222344 | K69: 0.05121212632
B70: 1985 | C70: 0.3123514949 | D70: 0.07479166667 | E70: 0.2571248821 | F70: 15516.60203 | G70: 731.2305532 | H70: 950.2907905 | I70: 0.2375598282 | J70: 0.05522661273 | K70: 0.0512843651
B71: 1986 | C71: 0.1849457876 | D71: 0.05978333333 | E71: 0.2428421514 | F71: 18386.33221 | G71: 774.9459531 | H71: 1181.061451 | I71: 0.1251624542 | J71: -0.05789636384 | K71: 0.0496635656
B72: 1987 | C72: 0.05812721642 | D72: 0.05775 | E72: -0.04960508938 | F72: 19455.07852 | G72: 819.6990819 | H72: 1122.474792 | I72: 0.0003772164182 | J72: 0.1077323058 | K72: 0.05069359044
B73: 1988 | C73: 0.1653719281 | D73: 0.066675 | E73: 0.08223595843 | F73: 22672.40237 | G73: 874.3525182 | H73: 1214.782582 | I73: 0.09869692812 | J73: 0.08313596969 | K73: 0.05119993358
B74: 1989 | C74: 0.3147518364 | D74: 0.08111666667 | E74: 0.1769364716 | F74: 29808.58264 | G74: 945.27708 | H74: 1429.721926 | I74: 0.2336351697 | J74: 0.1378153648 | K74: 0.05240982169
B75: 1990 | C75: -0.03064451613 | D75: 0.07493333333 | E75: 0.06235375334 | F75: 28895.11305 | G75: 1016.109843 | H75: 1518.870454 | I75: -0.1055778495 | J75: -0.09299826946 | K75: 0.04997995314
B76: 1991 | C76: 0.3023484313 | D76: 0.05375 | E76: 0.1500451002 | F76: 37631.50516 | G76: 1070.725747 | H76: 1746.769524 | I76: 0.2485984313 | J76: 0.1523033312 | K76: 0.05138506398
B77: 1992 | C77: 0.07493727972 | D77: 0.03431666667 | E77: 0.09361637316 | F77: 40451.50779 | G77: 1107.469485 | H77: 1910.295751 | I77: 0.04062061306 | J77: -0.01867909344 | K77: 0.05031985701
B78: 1993 | C78: 0.09967051479 | D78: 0.029975 | E78: 0.1421095759 | F78: =F77*(1+C78) -> 44483.33039 | G78: 1140.665883 | H78: 2181.76707 | I78: =C78-D78 -> 0.06969551479 | J78: =C78-E78 -> -0.0424390611 | K78: 0.04897593793
B79: 1994 | C79: 0.01325920677 | D79: 0.04246666667 | E79: -0.08036655551 | F79: 45073.14407 | G79: 1189.106161 | H79: 2006.425966 | I79: -0.02920745989 | J79: 0.09362576228 | K79: 0.04971863617
B80: 1995 | C80: 0.371951989 | D80: 0.0549 | E80: 0.2348078011 | F80: 61838.18966 | G80: 1254.388089 | H80: 2477.550435 | I80: 0.317051989 | J80: 0.1371441879 | K80: 0.05079145112
B81: 1996 | C81: 0.2268096602 | D81: 0.05005833333 | E81: 0.01428607793 | F81: 75863.68844 | G81: 1317.180666 | H81: 2512.944914 | I81: 0.1767513269 | J81: 0.2125235823 | K81: 0.05304503968
B82: 1997 | C82: 0.331036531 | D82: 0.05060833333 | E82: 0.09939130273 | F82: 100977.3407 | G82: 1383.840984 | H82: 2762.709782 | I82: 0.2804281977 | J82: 0.2316452283 | K82: 0.0553155849
B83: 1998 | C83: 0.2833795328 | D83: 0.04776666667 | E83: 0.1492143192 | F83: 129592.2523 | G83: 1449.942455 | H83: 3174.945642 | I83: 0.2356128661 | J83: 0.1341652136 | K83: 0.05630604814
B84: 1999 | C84: 0.2088535099 | D84: 0.04638333333 | E84: -0.08254214796 | F84: 156658.0491 | G84: 1517.195619 | H84: 2912.878809 | I84: 0.1624701766 | J84: 0.2913956579 | K84: 0.05963469482
B85: 2000 | C85: -0.09031818955 | D85: 0.05816666667 | E85: 0.1665526713 | F85: 142508.9777 | G85: 1605.445831 | H85: 3398.026556 | I85: -0.1484848562 | J85: -0.2568708608 | K85: 0.05511189584
B86: 2001 | C86: -0.1184975914 | D86: 0.03388333333 | E86: 0.05572181189 | F86: 125622.0071 | G86: 1659.843688 | H86: 3587.370752 | I86: -0.1523809248 | J86: -0.1742194033 | K86: 0.05166534551
B87: 2002 | C87: -0.2196604796 | D87: 0.016025 | E87: 0.1511640038 | F87: 98027.81677 | G87: 1686.442683 | H87: 4129.652078 | I87: -0.2356854796 | J87: -0.3708244834 | K87: 0.04532544977
B88: 2003 | C88: 0.2835580005 | D88: 0.01010833333 | E88: 0.003753185882 | F88: 125824.3885 | G88: 1703.489807 | H88: 4145.15143 | I88: 0.2734496672 | J88: 0.2798048146 | K88: 0.04823779612
B89: 2004 | C89: 0.1074277594 | D89: 0.01371666667 | E89: 0.04490683702 | F89: 139341.4206 | G89: 1726.856009 | H89: 4331.29707 | I89: 0.09371109277 | J89: 0.06252092242 | K89: 0.04842299847
B90: 2005 | C90: 0.04834477523 | D90: 0.03146666667 | E90: 0.0286753296 | F90: 146077.8503 | G90: 1781.194412 | H90: 4455.498441 | I90: 0.01687810857 | J90: 0.01966944563 | K90: 0.0480421894
B91: 2006 | C91: 0.1561255798 | D91: 0.04726666667 | E91: 0.01961001242 | F91: 168884.3393 | G91: 1865.385534 | H91: 4542.87082 | I91: 0.1088589131 | J91: 0.1365155674 | K91: 0.049149036
B92: 2007 | C92: 0.05484735246 | D92: 0.04353333333 | E92: 0.1020992193 | F92: 178147.1982 | G92: 1946.591985 | H92: 5006.694384 | I92: 0.01131401913 | J92: -0.04725186684 | K92: 0.04794871224
B93: 2008 | C93: -0.3655234411 | D93: 0.01365 | E93: 0.2010127993 | F93: 113030.2213 | G93: 1973.162965 | H93: 6013.104038 | I93: -0.3791734411 | J93: -0.5665362404 | K93: 0.03879586887
B94: 2009 | C94: 0.2593523388 | D94: 0.0015 | E94: -0.1111669531 | F94: =F93*(1+C94) -> 142344.8736 | G94: 1976.12271 | H94: 5344.645583 | I94: =C94-D94 -> 0.2578523388 | J94: =C94-E94 -> 0.3705192919 | K94: 0.04286850613
B95: 2010 | C95: 0.1482109228 | D95: 0.001366666667 | E95: 0.0846293388 | F95: 163441.9386 | G95: 1978.823411 | H95: =H94*(1+E95) -> 5796.959405 | I95: =C95-D95 -> 0.1468442561 | J95: =C95-E95 -> 0.06358158398 | K95: =((F95/100)^(1/(B95-$B$13+1)))-((H95/100)^(1/(B95-$B$13+1))) -> 0.04310851643
B96: 2011 | C96: 0.02098374734 | D96: 0.000525 | E96: 0.16035335 | F96: 166871.563 | G96: 1979.862293 | H96: =H95*(1+E96) -> 6726.521265 | I96: =C96-D96 -> 0.02045874734 | J96: =C96-E96 -> -0.1393696027 | K96: =((F96/100)^(1/(B96-$B$13+1)))-((H96/100)^(1/(B96-$B$13+1))) -> 0.040970429
B97: 2012 | C97: 0.1589058524 | D97: 0.0008583333333 | E97: 0.02971571978 | F97: =F96*(1+C97) -> 193388.4309 | G97: =G96*(1+D97) -> 1981.561675 | H97: =H96*(1+E97) -> 6926.404686 | I97: =C97-D97 -> 0.1580475191 | J97: =C97-E97 -> 0.1291901326 | K97: =((F97/100)^(1/(B97-$B$13+1)))-((H97/100)^(1/(B97-$B$13+1))) -> 0.04198827568
B98: 2013 | C98: 0.3214508586 | D98: 0.0005833333333 | E98: -0.09104568794 | F98: =F97*(1+C98) -> 255553.3081 | G98: =G97*(1+D98) -> 1982.717586 | H98: =H97*(1+E98) -> 6295.785407 | I98: =C98-D98 -> 0.3208675252 | J98: =C98-E98 -> 0.4124965465 | K98: =((F98/100)^(1/(B98-$B$13+1)))-((H98/100)^(1/(B98-$B$13+1))) -> 0.04617680942
B99: 2014 | C99: 0.1352442165 | D99: 0.000325 | E99: 0.1074618045 | F99: =F98*(1+C99) -> 290115.415 | G99: 1983.361969 | H99: =H98*(1+E99) -> 6972.341867 | I99: =C99-D99 -> 0.1349192165 | J99: =C99-E99 -> 0.02778241197 | K99: =((F99/100)^(1/(B99-$A$13+1)))-((H99/100)^(1/(B99-$A$13+1))) -> 0.001855904812
B100: 2015 | C100: 0.01378891641 | D100: 0.000525 | E100: 0.01284299671 | F100: =F99*(1+C100) -> 294115.7922 | G100: =G99*(1+D100) -> 1984.403234 | H100: 7061.887631 | I100: =C100-D100 -> 0.01326391641 | J100: =C100-E100 -> 0.0009459197019 | K100: =((F100/100)^(1/(B100-$A$13+1)))-((H100/100)^(1/(B100-$A$13+1))) -> 0.001855458055
B101: 2016 | C101: 0.1177308087 | D101: 0.003175 | E101: 0.006905504699 | F101: 328742.2823 | G101: 1990.703714 | H101: =H100*(1+E101) -> 7110.653529 | I101: 0.1145558087 | J101: 0.110825304 | K101: 0.001906517955
B102: 2017 | C102: 0.2160548143 | D102: 0.009308333333 | E102: 0.02801716271 | F102: 399768.6351 | G102: 2009.233848 | H102: 7309.873866 | I102: 0.206746481 | J102: 0.1880376516 | K102: 0.001989176553
B103: 2018 | C103: -0.04226869289 | D103: 0.01939166667 | E103: -0.0001669238571 | F103: =F101*(1+C103) -> 314846.7757 | G103: 2029.306777 | H103: 7109.466591 | I103: =C103-D103 -> -0.06166035956 | J103: =C103-E103 -> -0.04210176903 | K103: =((F103/100)^(1/(B103-$A$13+1)))-((H103/100)^(1/(B103-$A$13+1))) -> 0.001883229923
B104: 2019 | C104: 0.3122364721 | D104: 0.0155 | E104: 0.09635630742 | F104: 524590.9833 | G104: 2040.376973 | H104: 8014.226319 | I104: 0.2967364721 | J104: 0.2158801647 | K104: 0.00207664609
G106: Risk Premium | I106: Standard Error
B107: Arithmetic Average | G107: Stocks - T.Bills | H107: Stocks - T.Bonds | I107: Stocks - T.Bills | J107: Stocks - T.Bonds
B108: 1928-2019 | C108: =AVERAGE(C13:C104) -> 0.1157228553 | D108: =AVERAGE(D13:D104) -> 0.03397019928 | E108: =AVERAGE(E13:E104) -> 0.05146363589 | G108: =C108-D108 -> 0.08175265604 | H108: =C108-E108 -> 0.06425921943 | I108: =STDEV(I13:I104)/(($B$104-$B$13+1)^0.5) -> 0.02075711679 | J108: =STDEV(J13:J104)/(($B$104-$B$13+1)^0.5) -> 0.02203784614
B109: 1970-2019 | C109: =AVERAGE(C55:C104) -> 0.1189305363 | D109: =AVERAGE(D55:D104) -> 0.04635116667 | E109: 0.07394454231 | G109: =C109-D109 -> 0.07257936965 | H109: =C109-E109 -> 0.04498599402 | I109: =STDEV(I55:I104)/(($B$104-$B$55+1)^0.5) -> 0.02408429717 | J109: =STDEV(J55:J104)/(($B$104-$B$55+1)^0.5) -> 0.02725648761
B110: 2010-2019 | C110: =AVERAGE(C95:C104) -> 0.1402337916 | D110: =AVERAGE(D95:D104) -> 0.005155833333 | E110: 0.04350695728 | G110: =C110-D110 -> 0.1350779583 | H110: =C110-E110 -> 0.09672683435 | I110: =STDEV(I95:I104)/(($B$104-$B$95+1)^0.5) -> 0.03852229308 | J110: =STDEV(J95:J104)/(($B$104-$B$95+1)^0.5) -> 0.04870993037
G111: Risk Premium
B112: Geometric Average | G112: Stocks - T.Bills | H112: Stocks - T.Bonds
B113: 1928-2019 | C113: =(F104/100)^(1/(B104-B13+1))-1 -> 0.09757153432 | D113: =(G104/100)^(1/(B104-B13+1))-1 -> 0.0333227302 | E113: =(H104/100)^(1/(B104-B13+1))-1 -> 0.04880354799 | G113: =C113-D113 -> 0.06424880412 | H113: =C113-E113 -> 0.04876798634
B114: 1969-2019 | C114: =(F104/F53)^(1/($B$104-$B$53))-1 -> 0.1020515281 | D114: =(G104/G53)^(1/($B$104-$B$53))-1 -> 0.04583915463 | E114: =(H104/H53)^(1/($B$104-$B$53))-1 -> 0.06745428125 | G114: =C114-D114 -> 0.05621237349 | H114: =C114-E114 -> 0.03459724687
B115: 2009-2019 | C115: =(F104/F93)^(1/($B$104-$B$93))-1 -> 0.1497472667 | D115: =(G104/G93)^(1/($B$104-$B$93))-1 -> 0.00304980121 | E115: =(H104/H93)^(1/($B$104-$B$93))-1 -> 0.02646011901 | G115: =C115-D115 -> 0.1466974655 | H115: =C115-E115 -> 0.1232871477

Sheet Beta
A2: EMPRESAS CANASTA | B2: ABLE US Equity | C2: AEE US Equity | D2: AEP US Equity | E2: AES US Equity | F2: AGR US Equity | G2: ALE US Equity | H2: ATO US Equity | I2: AWR US Equity | J2: BDCO US Equity | K2: CMNR US Equity | L2: CNIG US Equity | M2: CNP US Equity | N2: CPK US Equity | O2: D US Equity | P2: ED US Equity | Q2: EPD US Equity | R2: EPSN US Equity | S2: ES US Equity | T2: ESOA US Equity | U2: MDU US Equity | V2: MGEE US Equity | W2: NFG US Equity | X2: NI US Equity | Y2: NJR US Equity | Z2: NWN US Equity | AA2: OGS US Equity | AB2: PPL US Equity | AC2: PSTRQ US Equity | AD2: RGCO US Equity | AE2: SJI US Equity | AF2: SO US Equity | AG2: SR US Equity | AH2: SRE US Equity | AI2: SWX US Equity | AJ2: TIDE US Equity | AK2: UTL US Equity
A6: BETAS INDIVIDUALES
A8: 2019-05-31 | B8: 8758.31348 | C8: 0.6843038124 | D8: 0.5523815907 | E8: 1.025571187 | F8: 0.6430854202 | G8: 0.7979346616 | H8: 0.6726352862 | I8: 0.7443446092 | J8: 0.5149522744 | K8: -22.37619523 | L8: 0.1708539045 | M8: 0.9925698129 | N8: 0.8013669116 | O8: 0.7028359612 | P8: 0.5070534928 | Q8: 0.9793716321 | R8: 0.2988772816 | S8: 0.6733669557 | T8: 0.2567713383 | U8: 0.9641841894 | V8: 0.8456650821 | W8: 0.7264947431 | X8: 0.7419328409 | Y8: 0.9229379859 | Z8: 0.8524174898 | AA8: 0.8530010375 | AB8: 0.7878839037 | AC8: -0.6123630206 | AD8: 0.4990268555 | AE8: 0.8631836285 | AF8: 0.6918604601 | AG8: 0.7406038479 | AH8: 0.7711046339 | AI8: 0.8420427413 | AJ8: 51.00160252 | AK8: 0.7695596076
A10: CUR_MKT_CAP | B10: =B2 -> ABLE US Equity | C10: =C2 -> AEE US Equity | D10: AEP US Equity | E10: AES US Equity | F10: AGR US Equity | G10: ALE US Equity | H10: ATO US Equity | I10: AWR US Equity | J10: BDCO US Equity | K10: CMNR US Equity | L10: CNIG US Equity | M10: CNP US Equity | N10: CPK US Equity | O10: D US Equity | P10: ED US Equity | Q10: EPD US Equity | R10: EPSN US Equity | S10: ES US Equity | T10: ESOA US Equity | U10: MDU US Equity | V10: MGEE US Equity | W10: NFG US Equity | X10: NI US Equity | Y10: NJR US Equity | Z10: NWN US Equity | AA10: OGS US Equity | AB10: PPL US Equity | AC10: PSTRQ US Equity | AD10: RGCO US Equity | AE10: SJI US Equity | AF10: SO US Equity | AG10: SR US Equity | AH10: SRE US Equity | AI10: SWX US Equity | AJ10: TIDE US Equity | AK10: UTL US Equity
A11: 2015-06-30 | C11: 9142.4791 | D11: 25952.2254 | E11: 9049.1698 | G11: 2261.564 | H11: 5180.2436 | I11: 1412.5936 | J11: 50.1573 | K11: 0.0308 | L11: 47.5686 | M11: 8186.8392 | N11: 819.903 | O11: 39685.5206 | P11: 16951.7286 | Q11: 59524.6105 | R11: 131.1094 | S11: 14424.3754 | T11: 17.7998 | U11: 3803.8767 | V11: 1342.7059 | W11: 4971.4887 | X11: 14469.2542 | Y11: 2357.7627 | Z11: 1152.892 | AA11: 2238.3898 | AB11: 19689.1203 | AC11: 17.7347 | AD11: 94.5705 | AE11: 1692.1241 | AF11: 38056.1507 | AG11: 2255.1836 | AH11: 24495.5744 | AI11: 2492.503 | AJ11: 0.0272 | AK11: 461.1805
A12: 2015-07-31 | B12: 0.0019 | C12: 9967.4374 | D12: 27750.9583 | E12: 8735.2469 | G12: 2354.1911 | H12: 5586.3392 | I12: 1456.4184 | J12: 51.7247 | K12: 0.0308 | L12: 46.3727 | M12: 8320.2034 | N12: 782.9046 | O12: 42551.9938 | P12: 18624.0571 | Q12: 56640.0736 | R12: 115.2591 | S12: 15793.4363 | T12: 17.0878 | U12: 3799.9812 | V12: 1375.6409 | W12: 4564.5848 | X12: 5541.4165 | Y12: 2473.2973 | Z12: 1183.2313 | AA12: 2348.1923 | AB12: 21311.737 | AC12: 14.1033 | AD12: 95.8472 | AE12: 1658.5964 | AF12: 40626.5303 | AG12: 2343.9874 | AH12: 25198.7019 | AI12: 2639.1208 | AJ12: 0.0272 | AK12: 496.8163
A13: 2015-08-31 | B13: 0.0019 | C13: 9775.7559 | D13: 26632.4824 | E13: 8193.9221 | G13: 2334.0752 | H13: 5554.0457 | I13: 1405.8356 | J13: 43.3833 | K13: 0.0308 | L13: 40.9851 | M13: 8011.4732 | N13: 751.8835 | O13: 41453.9525 | P13: 18424.5704 | Q13: 56308.8114 | R13: 108.1236 | S13: 14983.2599 | T13: 15.5214 | U13: 3493.5918 | V13: 1333.3455 | W13: 4563.2111 | X13: 5336.8548 | Y13: 2417.2414 | Z13: 1203.4178 | AA13: 2240.7689 | AB13: 20762.3618 | AC13: 8.1604 | AD13: 98.1299 | AE13: 1651.8806 | AF13: 39434.7208 | AG13: 2293.5013 | AH13: 23482.9719 | AI13: 2592.3865 | AJ13: 0.0272 | AK13: 503.2448
A14: 2015-09-30 | B14: 0.0019 | C14: 10256.1728 | D14: 27893.2206 | E14: 6684.8748 | G14: 2466.4599 | H14: 5897.689 | I14: 1541.764 | J14: 45.474 | K14: 0 | L14: 39.15 | M14: 7761.9214 | N14: 810.0259 | O14: 41828.3753 | P14: 19578.4857 | Q14: 49878.6697 | R14: 101.7804 | S14: 16055.3052 | T14: 17.0878 | U14: 3355.0965 | V14: 1427.9901 | W14: 4226.6362 | X14: 5896.2869 | Y14: 2567.7311 | Z14: 1254.3127 | AA14: 2363.8364 | AB14: 22035.3043 | AC14: 2.6982 | AD14: 95.5749 | AE14: 1730.7048 | AF14: 40606.5888 | AG14: 2362.3844 | AH14: 23978.406 | AI14: 2744.3815 | AJ14: 0.0272 | AK14: 515.4032
A15: 2015-10-31 | B15: 0.0019 | C15: 10598.2879 | D15: 27804.8065 | E15: 7476.9539 | G15: 2452.7818 | H15: 6386.2909 | I15: 1517.5576 | J15: 41.8152 | K15: 0.0038 | L15: 40.9851 | M15: 7981.3549 | N15: 796.7493 | O15: 42452.4133 | P15: 19256.3266 | Q15: 55347.2949 | R15: 96.7209 | S15: 16156.8006 | T15: 17.0878 | U15: 3678.9023 | V15: 1430.7636 | W15: 4442.2809 | X15: 6090.1809 | Y15: 2708.8152 | Z15: 1307.123 | AA15: 2547.2334 | AB15: 23046.9586 | AC15: 2.7973 | AD15: 98.4138 | AE15: 1817.0686 | AF15: 40969.9587 | AG15: 2537.4079 | AH15: 25389.0463 | AI15: 2892.1415 | AJ15: 0.0272 | AK15: 495.9913
A16: 2015-11-30 | B16: 0.0019 | C16: 10617.6987 | D16: 27490.6833 | E16: 6721.8932 | G16: 2494.7953 | H16: 6324.8791 | I16: 1536.3426 | J16: 52.5826 | K16: 0.0038 | L16: 40.9606 | M16: 7292.9439 | N16: 813.6401 | O16: 40107.6259 | P16: 18221.899 | Q16: 50926.0886 | R16: 91.7344 | S16: 16160.8944 | T16: 14.667 | U16: 3401.5293 | V16: 1507.034 | W16: 3869.4663 | X16: 6115.3022 | Y16: 2578.1759 | Z16: 1335.7361 | AA16: 2542.5395 | AB16: 22903.6636 | AC16: 2.4238 | AD16: 101.3946 | AE16: 1591.0005 | AF16: 40484.1388 | AG16: 2529.93 | AH16: 24629.9229 | AI16: 2656.8122 | AJ16: 0.0272 | AK16: 491.237
A17: 2015-12-31 | B17: 0.015 | C17: 10489.1022 | D17: 28599.9307 | E17: 6439.2911 | F17: 11908.3008 | G17: 2488.9195 | H17: 6433.3111 | I17: 1540.75 | J17: 52.269 | K17: 0.0038 | L17: 40.649 | M17: 7899.6136 | N17: 866.468 | O17: 40268.3659 | P17: 18843.4666 | Q17: 51307.1818 | R17: 79.9735 | S17: 16198.9573 | T17: 17.9422 | U17: 3577.2685 | V17: 1608.6123 | W17: 3618.1033 | X17: 6217.277 | Y17: 2827.657 | Z17: 1385.2788 | AA17: 2616.5991 | AB17: 22964.2197 | AC17: 1.9358 | AD17: 101.2362 | AE17: 1629.8054 | AF17: 42529.2513 | AG17: 2575.4479 | AH17: 23334.2643 | AI17: 2613.2269 | AJ17: 0.0002 | AK17: 501.7245
A18: 2016-01-31 | B18: 0.015 | C18: 10899.155 | D18: 29925.1377 | E18: 6392.1907 | F18: 11923.8064 | G18: 2590.2782 | H18: 7063.9878 | I18: 1667.4625 | J18: 49.6556 | K18: 0.0308 | L18: 39.4172 | M18: 7688.7851 | N18: 961.4359 | O18: 42965.2272 | P18: 20344.611 | Q18: 47957.5788 | R18: 87.8725 | S18: 17064.8894 | T18: 17.0878 | U18: 3296.0858 | V18: 1679.6825 | W18: 3841.4394 | X18: 6695.2839 | Y18: 3021.5437 | Z18: 1421.9568 | AA18: 2949.8673 | AB18: 23589.9661 | AC18: 1.9652 | AD18: 100.7137 | AE18: 1722.66 | AF18: 44465.2912 | AG18: 2771.8252 | AH18: 23517.9401 | AI18: 2787.0946 | AJ18: 0.0002 | AK18: 542.2217
A19: 2016-02-29 | B19: 0.0019 | C19: 11391.7037 | D19: 30322.4969 | E19: 6465.3867 | F19: 12029.2445 | G19: 2603.9103 | H19: 7087.2396 | I19: 1548.948 | J19: 49.1316 | K19: 0.0308 | L19: 38.6205 | M19: 8015.9629 | N19: 951.7145 | O19: 41701.6383 | P19: 20554.1929 | Q19: 47236.9149 | R19: 102.805 | S19: 17223.4851 | T19: 23.3643 | U19: 3555.7893 | V19: 1682.8026 | W19: 3873.2208 | X19: 6868.053 | Y19: 2974.6721 | Z19: 1368.7773 | AA19: 3031.899 | AB19: 23624.9046 | AC19: 1.6705 | AD19: 102.091 | AE19: 1810.2771 | AF19: 43980.9677 | AG19: 2845.1707 | AH19: 23954.7905 | AI19: 2894.8452 | AJ19: 0.0272 | AK19: 550.3375
A20: 2016-03-31 | B20: 0.0019 | C20: 12156.0033 | D20: 32607.3727 | E20: 7784.8534 | F20: 12438.5923 | G20: 2760.4349 | H20: 7589.9916 | I20: 1437.5523 | J20: 49.6556 | K20: 0.0038 | L20: 39.3944 | M20: 9008.4637 | N20: 961.9496 | O20: 44826.1131 | P20: 22494.8188 | Q20: 49763.4936 | R20: 118.5385 | S20: 18505.8582 | T20: 21.5564 | U20: 3800.6233 | V20: 1811.4223 | W20: 4243.7544 | X20: 7533.1159 | Y20: 3130.1937 | Z20: 1477.4235 | AA20: 3195.0505 | AB20: 25726.7645 | AC20: 1.2447 | AD20: 102.7564 | AE20: 2026.5194 | AF20: 47260.934 | AG20: 2943.4316 | AH20: 25939.678 | AI20: 3125.5276 | AJ20: 0.0272 | AK20: 596.4129
A21: 2016-04-30 | B21: 0.0019 | C21: 11646.4702 | D21: 31198.3999 | E21: 7362.624 | F21: 12414.5013 | G21: 2766.3428 | H21: 7415.2153 | I21: 1523.8703 | J21: 46.9376 | K21: 0.0038 | L21: 39.5179 | M21: 9236.6896 | N21: 910.9517 | O21: 44038.2619 | P21: 21923.3209 | Q21: 53947.5079 | R21: 119.6984 | S21: 17903.1648 | T21: 20.861 | U21: 3917.8059 | V21: 1728.2182 | W21: 4705.8616 | X21: 7283.597 | Y21: 3065.751 | Z21: 1417.0089 | AA21: 3049.6544 | AB21: 25436.1811 | AC21: 0.6068 | AD21: 107.4552 | AE21: 1988.0547 | AF21: 46035.6069 | AG21: 2778.7732 | AH21: 25765.1679 | AI21: 3080.9111 | AJ21: 0.0272 | AK21: 555.0093
A22: 2016-05-31 | C22: 12022.5541 | D22: 31802.7154 | E22: 7308.3222 | F22: 12988.2566 | G22: 2844.0567 | H22: 7452.8053 | I22: 1427.8018 | J22: 42.8794 | K22: 0.0308 | L22: 40.1617 | M22: 9701.8561 | N22: 883.1455 | O22: 44521.7738 | P22: 22282.7887 | Q22: 57782.6908 | R22: 113.6779 | S22: 17522.5164 | T22: 19.9358 | U22: 4466.6112 | V22: 1758.033 | W22: 4671.4429 | X22: 7672.0516 | Y22: 3024.7386 | Z22: 1509.3866 | AA22: 3059.2657 | AB22: 26089.4676 | AC22: 0.262 | AD22: 111.3247 | AE22: 2296.0475 | AF22: 46402.0261 | AG22: 2883.0978 | AH22: 26726.0902 | AI22: 3295.9518 | AJ22: 0.0272 | AK22: 556.4137
A23: 2016-06-30 | C23: 13000.3724 | D23: 34436.1552 | E23: 8224.3337 | F23: 14237.0085 | G23: 3183.4323 | H23: 8313.6094 | I23: 1601.7992 | J23: 41.8336 | K23: 0.0308 | L23: 43.251 | M23: 10334.8667 | N23: 1013.1143 | O23: 48021.8939 | P23: 24466.6602 | Q23: 60904.9472 | R23: 114.5947 | S23: 19000.7012 | T23: 21.6446 | U23: 4687.3052 | V23: 1959.2829 | W23: 4831.1213 | X23: 8527.36 | Y23: 3317.3164 | Z23: 1782.121 | AA23: 3473.4271 | AB23: 25554.6809 | AC23: 0.0655 | AD23: 115.7109 | AE23: 2513.0156 | AF23: 50334.5602 | AG23: 3212.3096 | AH23: 28447.6177 | AI23: 3736.4881 | AK23: 599.2472
A24: 2016-07-31 | B24: 0.0019 | C24: 12723.7687 | D24: 34075.4643 | E24: 8138.6636 | F24: 13952.6393 | G24: 3145.0124 | H24: 8157.1925 | I24: 1579.1356 | J24: 38.6961 | K24: 0.0308 | L24: 44.9811 | M24: 10300.4171 | N24: 980.8135 | O24: 48077.3535 | P24: 24357.1624 | Q24: 59260.5552 | R24: 112.5262 | S24: 18553.4393 | T24: 22.7837 | U24: 4697.0704 | V24: 1946.6289 | W24: 4799.6953 | X24: 8250.8317 | Y24: 3204.5879 | Z24: 1785.4202 | AA24: 3388.404 | AB24: 25527.6031 | AC24: 0.0655 | AD24: 117.475 | AE24: 2533.6792 | AF24: 50212.5484 | AG24: 3147.0114 | AH24: 27913.6947 | AI24: 3679.0475 | AJ24: 0.0272 | AK24: 614.6578
A25: 2016-08-31 | B25: 0.0019 | C25: 11991.0116 | D25: 31749.6787 | E25: 7955.21 | F25: 12854.5498 | G25: 2929.9558 | H25: 7653.5869 | I25: 1425.0491 | J25: 28.2547 | K25: 0.0038 | L25: 45.8247 | M25: 9677.4185 | N25: 975.3154 | O25: 46406.5841 | P25: 22907.2271 | Q25: 55295.857 | R25: 102.2184 | S25: 17119.6635 | T25: 20.6478 | U25: 4603.3243 | V25: 1904.6802 | W25: 4849.4405 | X25: 7713.1169 | Y25: 2898.0955 | Z25: 1645.5738 | AA25: 3198.7438 | AB25: 23584.1112 | AC25: 0.1957 | AD25: 111.6779 | AE25: 2358.9017 | AF25: 50236.9787 | AG25: 2952.9455 | AH25: 26136.7244 | AI25: 3315.1883 | AJ25: 0.0272 | AK25: 555.6372
A26: 2016-09-30 | B26: 0.0019 | C26: 11932.7793 | D26: 31572.6633 | E26: 8469.2998 | F26: 12910.1705 | G26: 2945.7667 | H26: 7733.5497 | I26: 1464.1666 | J26: 31.3941 | K26: 0.0308 | L26: 45.3293 | M26: 10004.7366 | N26: 987.4627 | O26: 46475.418 | P26: 22922.4478 | Q26: 57872.1413 | R26: 106.4355 | S26: 17186.277 | T26: 19.9358 | U26: 4968.5435 | V26: 1959.1095 | W26: 4595.325 | X26: 7767.8884 | Y26: 2830.8983 | Z26: 1656.0428 | AA26: 3230.6111 | AB26: 23441.7115 | AC26: 0.262 | AD26: 113.2071 | AE26: 2348.5696 | AF26: 50207.6175 | AG26: 2909.1305 | AH26: 26776.2161 | AI26: 3317.0876 | AJ26: 0.0272 | AK26: 548.8919
A27: 2016-10-31 | B27: 0.0019 | C27: 12119.6081 | D27: 31882.4402 | E27: 7757.4832 | F27: 12177.8319 | G27: 3028.2797 | H27: 7725.2419 | I27: 1461.6075 | J27: 34.4618 | K27: 0.0308 | L27: 53.2557 | M27: 9819.5435 | N27: 1035.817 | O27: 47057.3776 | P27: 22998.5516 | Q27: 52866.1906 | R27: 98.8494 | S27: 17465.4191 | T27: 18.3694 | U27: 5118.9279 | V27: 2026.3662 | W27: 4451.6946 | X27: 7494.0309 | Y27: 2924.8021 | Z27: 1619.9521 | AA27: 3201.3559 | AB27: 23285.7499 | AC27: 0.131 | AD27: 117.5557 | AE27: 2356.5174 | AF27: 50471.8681 | AG27: 2866.2284 | AH27: 26753.7339 | AI27: 3440.5406 | AJ27: 0.0272 | AK27: 570.4341
A28: 2016-11-30 | B28: 0.015 | C28: 11918.2212 | D28: 29035.5669 | E28: 7547.5648 | F28: 11176.6603 | G28: 3057.7841 | H28: 7393.9721 | I28: 1550.5572 | J28: 40.8514 | K28: 0.0038 | L28: 48.3017 | M28: 10276.0829 | N28: 1056.3152 | O28: 45934.5433 | P28: 21260.8383 | Q28: 54561.8351 | R28: 98.3852 | S28: 16357.6452 | T28: 21.7869 | U28: 5433.3679 | V28: 2052.3675 | W28: 4801.4195 | X28: 7080.8665 | Y28: 2966.2317 | Z28: 1629.4834 | AA28: 3135.2389 | AB28: 22689.0271 | AC28: 0.0721 | AD28: 119.0156 | AE28: 2622.7681 | AF28: 45883.5743 | AG28: 2946.6524 | AH28: 24956.0852 | AI28: 3519.8456 | AJ28: 0.0272 | AK28: 597.149
A29: 2016-12-31 | B29: 0.0019 | C29: 12728.6214 | D29: 30958.1591 | E29: 7659.6247 | F29: 11705.0564 | G29: 3175.0107 | H29: 7792.7745 | I29: 1666.1175 | J29: 40.1182 | K29: 0.0038 | L29: 47.2 | M29: 10612.0152 | N29: 1091.3627 | O29: 48002.8199 | P29: 22452.3228 | Q29: 56897.4941 | R29: 98.7147 | S29: 17501.6029 | T29: 19.4872 | U29: 5618.9071 | V29: 2263.8445 | W29: 4823.5616 | X29: 7145.4141 | Y29: 3059.2001 | Z29: 1700.5778 | AA29: 3341.6077 | AB29: 23089.1026 | AC29: 0.0766 | AD29: 119.8657 | AE29: 2677.6078 | AF29: 48206.173 | AG29: 2947.109 | AH29: 25166.1364 | AI29: 3638.076 | AJ29: 0.2178 | AK29: 637.5026
A30: 2017-01-31 | B30: 0.0019 | C30: 12774.722 | D30: 31499.0418 | E30: 7540.973 | F30: 11989.3397 | G30: 3232.3874 | H30: 8006.1169 | I30: 1601.0234 | J30: 40.8514 | K30: 0.0038 | L30: 54.6526 | M30: 11288.1866 | N30: 1066.0959 | O30: 47808.5272 | P30: 22656.4903 | Q30: 59611.9085 | R30: 116.878 | S30: 17530.1226 | T30: 20.7219 | U30: 5732.1836 | V30: 2206.6417 | W30: 4789.4859 | X30: 7219.6437 | Y30: 3248.7844 | Z30: 1674.9838 | AA30: 3376.0896 | AB30: 23624.7969 | AC30: 0.0852 | AD30: 131.8619 | AE30: 2622.7681 | AF30: 48441.3728 | AG30: 2967.6543 | AH30: 25603.7431 | AI30: 3825.6301 | AJ30: 0.0272 | AK30: 643.5486
A31: 2017-02-28 | B31: 0.0019 | C31: 13269.697 | D31: 32929.9224 | E31: 7593.7908 | F31: 13509.6374 | G31: 3363.7946 | H31: 8234.1886 | I31: 1636.163 | J31: 36.6615 | K31: 0.0038 | L31: 55.9452 | M31: 11766.42 | N31: 1124.4675 | O31: 48766.881 | P31: 23501.7564 | Q31: 59412.3907 | R31: 111.8444 | S31: 18588.5212 | T31: 23.0685 | U31: 5294.7018 | V31: 2217.0422 | W31: 5145.4511 | X31: 7733.5898 | Y31: 3400.7405 | Z31: 1720.6827 | AA31: 3427.2022 | AB31: 25068.4799 | AC31: 0.2395 | AD31: 126.713 | AE31: 2784.6698 | AF31: 49803.5721 | AG31: 3014.1932 | AH31: 27579.2248 | AI31: 4061.1412 | AJ31: 0.0272 | AK31: 627.3614
A32: 2017-03-31 | B32: 0.0019 | C32: 13245.4335 | D32: 33008.631 | E32: 7371.1267 | F32: 13209.5973 | G32: 3443.7053 | H32: 8307.8115 | I32: 1620.7966 | J32: 36.6615 | K32: 0.0058 | L32: 49.7846 | M32: 11881.5131 | N32: 1130.1667 | O32: 48731.9369 | P32: 23690.8931 | Q32: 58522.1587 | R32: 108.9868 | S32: 18626.5475 | T32: 23.2109 | U32: 5345.4809 | V32: 2253.444 | W32: 5087.4261 | X32: 7694.7763 | Y32: 3418.0031 | Z32: 1692.0523 | AA32: 3534.384 | AB32: 25415.1428 | AC32: 0.0983 | AD32: 158.5114 | AE32: 2834.7652 | AF32: 49375.8079 | AG32: 3087.3754 | AH32: 27691.8672 | AI32: 3942.2863 | AJ32: 0.0272 | AK32: 635.0114
A33: 2017-04-30 | C33: 13269.697 | D33: 33352.8295 | E33: 7456.8375 | F33: 13444.4896 | G33: 3555.5965 | H33: 8521.3177 | I33: 1630.1529 | J33: 21.9969 | K33: 0.0058 | L33: 50.4069 | M33: 12295.2328 | N33: 1197.1274 | O33: 48643.9844 | P33: 24202.1628 | Q33: 57907.4747 | R33: 132.5163 | S33: 18823.0167 | T33: 23.7805 | U33: 5253.6879 | V33: 2229.1761 | W33: 4725.6232 | X33: 7849.82 | Y33: 3482.738 | Z33: 1707.2019 | AA33: 3609.9259 | AB33: 25944.9526 | AC33: 0.1179 | AD33: 160.3126 | AE33: 2983.4612 | AF33: 49562.219 | AG33: 3135.4013 | AH33: 28323.3921 | AI33: 3982.7029 | AJ33: 0.0272 | AK33: 683.2884
A34: 2017-05-31 | C34: 13769.5247 | D34: 35295.0921 | E34: 7710.4867 | F34: 14041.0185 | G34: 3734.3123 | H34: 8771.5733 | I34: 1676.6554 | J34: 28.2817 | K34: 0.0058 | L34: 55.2045 | M34: 12329.9007 | N34: 1212.8776 | O34: 50803.1814 | P34: 25282.403 | Q34: 57415.9975 | R34: 130.8215 | S34: 19669.1018 | T34: 23.7805 | U34: 5318.1383 | V34: 2256.9108 | W34: 4848.2719 | X34: 8464.0709 | Y34: 3621.7897 | Z34: 1754.465 | AA34: 3704.5574 | AB34: 27170.3767 | AC34: 0.1114 | AD34: 177.6705 | AE34: 2896.3426 | AF34: 50368.3515 | AG34: 3419.1217 | AH34: 29219.351 | AI34: 3783.4727 | AJ34: 0.2178 | AK34: 671.296
A35: 2017-06-30 | C35: 13264.8444 | D35: 34159.2376 | E35: 7334.2046 | F35: 13645.4092 | G35: 3647.3023 | H35: 8733.6694 | I35: 1735.9737 | J35: 19.902 | K35: 0.0062 | L35: 57.8034 | M35: 11799.8141 | N35: 1224.3121 | O35: 48199.1783 | P35: 24680.8036 | Q35: 57994.2245 | R35: 129.4621 | S35: 19238.1374 | T35: 23.7805 | U35: 5116.9747 | V35: 2230.9096 | W35: 4769.6885 | X35: 8233.5569 | Y35: 3431.6242 | Z35: 1714.363 | AA35: 3660.5118 | AB35: 26319.3884 | AC35: 0.0655 | AD35: 204.6932 | AE35: 2718.1551 | AF35: 47651.3878 | AG35: 3366.0373 | AH35: 28281.2415 | AI35: 3473.9288 | AJ35: 0.0218 | AK35: 681.5954
A36: 2017-07-31 | B36: 0.015 | C36: 13611.8122 | D36: 34694.4205 | E36: 7380.4147 | F36: 14037.9272 | G36: 3728.2064 | H36: 9134.818 | I36: 1810.6707 | J36: 15.2931 | K36: 0.0062 | L36: 59.7451 | M36: 12148.8955 | N36: 1261.8828 | O36: 48545.1205 | P36: 25303.7786 | Q36: 58251.2152 | R36: 141.6625 | S36: 19263.4883 | T36: 24.2077 | U36: 5146.2703 | V36: 2307.18 | W36: 5057.5439 | X36: 8460.8239 | Y36: 3643.3995 | Z36: 1807.457 | AA36: 3816.2448 | AB36: 26094.7273 | AC36: 0.0393 | AD36: 193.9997 | AE36: 2702.2455 | AF36: 47701.1491 | AG36: 3503.5743 | AH36: 28346.4576 | AI36: 3808.6737 | AJ36: 0.0002 | AK36: 716.3642
A37: 2017-08-31 | B37: 0.0165 | C37: 14555.6615 | D37: 36214.2073 | E37: 7289.2345 | F37: 15085.6374 | G37: 3940.4921 | H37: 9338.0151 | I37: 1806.5866 | J37: 2.6187 | K37: 0.0062 | L37: 55.6611 | M37: 12766.9428 | N37: 1298.5659 | O37: 50616.4955 | P37: 26108.6216 | Q37: 56024.0679 | R37: 136.4149 | S37: 19963.8059 | T37: 16.2334 | U37: 5281.0303 | V37: 2204.9083 | W37: 4957.7253 | X37: 8756.1364 | Y37: 3777.4126 | Z37: 1900.3139 | AA37: 3932.7284 | AB37: 26714.2473 | AC37: 0.0426 | AD37: 199.2549 | AE37: 2854.2186 | AF37: 48029.5735 | AG37: 3692.0451 | AH37: 29609.5844 | AI37: 3781.0953 | AJ37: 0.0218 | AK37: 703.8013
A38: 2017-09-30 | B38: 0.015 | C38: 14033.9967 | D38: 34546.8684 | E38: 7276.0294 | F38: 14653.03 | G38: 3938.4539 | H38: 8892.5396 | I38: 1804.7543 | J38: 2.9329 | L38: 56.5289 | M38: 12590.2228 | N38: 1278.9526 | O38: 49434.1374 | P38: 24996.3639 | Q38: 56024.0679 | R38: 137.746 | S38: 19152.5782 | T38: 14.9945 | U38: 5068.1486 | V38: 2239.5767 | W38: 4840.58 | X38: 8339.0224 | Y38: 3647.6046 | Z38: 1845.8555 | AA38: 3849.0978 | AB38: 25836.0266 | AC38: 0.1048 | AD38: 206.632 | AE38: 2746.8275 | AF38: 49114.1537 | AG38: 3602.7603 | AH38: 28655.4895 | AI38: 3695.3189 | AJ38: 0.0002 | AK38: 698.1551
A39: 2017-10-31 | B39: 0.015 | C39: 15040.9311 | D39: 36601.08 | E39: 7018.5292 | F39: 15984.8427 | G39: 3992.4681 | H39: 9253.1626 | I39: 1969.6557 | J39: 1.9473 | L39: 56.5589 | M39: 12749.7018 | N39: 1316.5448 | O39: 52139.4242 | P39: 26660.1031 | Q39: 52650.1597 | R39: 131.7471 | S39: 19849.727 | T39: 14.2398 | U39: 5341.5747 | V39: 2289.8458 | W39: 4963.7108 | X39: 8593.2012 | Y39: 3846.6435 | Z39: 1901.7471 | AA39: 4024.0358 | AB39: 25570.518 | AC39: 0.0033 | AD39: 210.3929 | AE39: 2702.28 | AF39: 52172.5443 | AG39: 3810.287 | AH39: 29501.6211 | AI39: 3922.4082 | AJ39: 0.0218 | AK39: 734.2797
A40: 2017-11-30 | C40: 15518.9217 | D40: 38185.0647 | E40: 6986.8899 | F40: 16398.9098 | G40: 4108.6925 | H40: 10235.7888 | I40: 2116.0216 | J40: 1.7309 | L40: 58.3544 | M40: 12935.3156 | N40: 1398.267 | O40: 54140.1595 | P40: 27608.5257 | Q40: 53021.0656 | R40: 132.1765 | S40: 20550.0446 | T40: 14.3822 | U40: 5458.7573 | V40: 2288.1124 | W40: 5032.2334 | X40: 9271.9304 | Y40: 3874.2442 | Z40: 1985.5075 | AA40: 4142.6973 | AB40: 25233.8371 | AC40: 0.0131 | AD40: 192.601 | AE40: 2693.5318 | AF40: 51173.0702 | AG40: 3969.9491 | AH40: 30377.882 | AI40: 4091.416 | AJ40: 0.0022 | AK40: 737.6739
A41: 2017-12-31 | C41: 14313.0267 | D41: 36188.0099 | E41: 7151.9865 | F41: 15629.4867 | G41: 3795.309 | H41: 9530.1982 | I41: 2124.091 | J41: 10.8184 | K41: 0.0003 | L41: 58.5919 | M41: 12224.1103 | N41: 1283.8559 | O41: 52164.5231 | P41: 26340.3443 | Q41: 57290.4008 | R41: 126.903 | S41: 20020.8453 | T41: 12.1053 | U41: 5249.7816 | V41: 2187.5741 | W41: 4699.3187 | X41: 8645.4941 | Y41: 3493.8337 | Z41: 1712.7336 | AA41: 3829.5773 | AB41: 21297.7164 | AC41: 0.0131 | AD41: 196.3325 | AE41: 2484.3178 | AF41: 48064.706 | AG41: 3629.37 | AH41: 26845.2198 | AI41: 3831.4773 | AJ41: 0.0022 | AK41: 675.8476
A42: 2018-01-31 | C42: 13740.4086 | D42: 33831.8788 | E42: 7634.0687 | F42: 15054.7369 | G42: 3697.3128 | H42: 9198.4332 | I42: 2025.424 | J42: 11.3593 | K42: 0.0003 | L42: 54.6858 | M42: 12146.5243 | N42: 1201.3165 | O42: 49191.4155 | P42: 24917.1285 | Q42: 59689.2067 | R42: 116.4223 | S42: 19992.3256 | T42: 11.3919 | U42: 5171.6599 | V42: 2073.1685 | W42: 4781.5812 | X42: 8312.0683 | Y42: 3372.1579 | Z42: 1646.6935 | AA42: 3702.552 | AB42: 21930.7987 | AC42: 0.0655 | AD42: 176.9023 | AE42: 2341.9249 | AF42: 45273.6451 | AG42: 3211.6182 | AH42: 26900.3332 | AI42: 3502.9833 | AJ42: 0.0218 | AK42: 654.9588
A43: 2018-02-28 | C43: 13175.0695 | D43: 32265.7271 | E43: 7179.5536 | F43: 15016.94 | G43: 3485.4402 | H43: 8931.785 | I43: 1950.3287 | J43: 8.5465 | K43: 0.0003 | L43: 53.974 | M43: 11659.8518 | N43: 1089.3571 | O43: 48258.4322 | P43: 23245.6366 | Q43: 54935.0329 | R43: 105.1379 | S43: 18062.4911 | T43: 9.6831 | U43: 5134.552 | V43: 1820.0894 | W43: 4241.1819 | X43: 7804.3124 | Y43: 3337.3643 | Z43: 1499.3922 | AA43: 3326.7732 | AB43: 19865.8527 | AC43: 0.0229 | AD43: 181.2191 | AE43: 2086.1933 | AF43: 43216.2084 | AG43: 3277.7314 | AH43: 27825.2326 | AI43: 3136.4031 | AJ43: 0.0218 | AK43: 622.9038
A44: 2018-03-31 | B44: 0.0001 | C44: 13740.4086 | D44: 33766.4473 | E44: 7509.7998 | F44: 15800.5009 | G44: 3704.1977 | H44: 9347.9137 | I44: 1948.1258 | J44: 6.491 | K44: 0.0031 | L44: 52.8291 | M44: 11822.3022 | N44: 1149.8315 | O44: 45344.0748 | P44: 24192.3476 | Q44: 52903.6036 | R44: 107.3397 | S44: 18670.9118 | T44: 9.6119 | U44: 5499.7712 | V44: 1944.8956 | W44: 4414.5015 | X44: 8067.4929 | Y44: 3512.554 | Z44: 1657.5256 | AA44: 3453.901 | AB44: 19616.2294 | AC44: 0.0236 | AD44: 200.2558 | AE44: 2241.4041 | AF44: 45024.4025 | AG44: 3495.2799 | AH44: 29351.3894 | AI44: 3259.278 | AJ44: 0.0218 | AK44: 689.4286
A45: 2018-04-30 | B45: 0.0001 | C45: 14221.212 | D45: 34466.7924 | E45: 8084.4283 | F45: 16317.5554 | G45: 3917.4774 | H45: 9641.9779 | I45: 2046.7859 | J45: 4.261 | K45: 0.0031 | L45: 54.1536 | M45: 10929.1575 | N45: 1243.4907 | O45: 44759.0333 | P45: 24890.0227 | Q45: 58003.7877 | R45: 111.1929 | S45: 19092.3699 | T45: 9.9679 | U45: 5501.7243 | V45: 2012.4989 | W45: 4405.9213 | X45: 8233.2595 | Y45: 3622.0476 | Z45: 1764.3866 | AA45: 3658.2 | AB45: 20203.4434 | AC45: 0.0262 | AD45: 206.5627 | AE45: 2642.8874 | AF45: 46698.7086 | AG45: 3488.0283 | AH45: 29504.4537 | AI45: 3517.5913 | AJ45: 0.0022 | AK45: 722.1071
A46: 2018-05-31 | C46: 14359.494 | D46: 33466.9698 | E46: 8432.8469 | F46: 16405.0899 | G46: 3938.6388 | H46: 9908.0782 | I46: 2067.3567 | J46: 2.9499 | K46: 0.0003 | L46: 51.2471 | M46: 11274.3971 | N46: 1306.6488 | O46: 41887.309 | P46: 23842.3486 | Q46: 62789.1814 | R46: 109.7562 | S46: 18087.8419 | T46: 11.1071 | U46: 5429.4617 | V46: 2067.9683 | W46: 4523.2064 | X46: 9177.8041 | Y46: 3895.3571 | Z46: 1721.2651 | AA46: 3937.8645 | AB46: 19098.1964 | AC46: 0.0262 | AD46: 210.9859 | AE46: 2831.8514 | AF46: 45463.4002 | AG46: 3587.778 | AH46: 28113.6802 | AI46: 3648.1937 | AJ46: 0.0218 | AK46: 717.0592
A47: 2018-06-30 | C47: 14762.21 | D47: 34107.2503 | E47: 8869.3707 | F47: 16355.649 | G47: 3968.8887 | H47: 10011.3684 | I47: 2099.6821 | J47: 3.9332 | L47: 52.4221 | M47: 11956.1249 | N47: 1308.2852 | O47: 44507.904 | P47: 24230.7617 | Q47: 60116.8391 | R47: 115.492 | S47: 18572.6772 | T47: 11.8191 | U47: 5601.3295 | V47: 2185.8407 | W47: 4550.7031 | X47: 9533.3079 | Y47: 3926.0637 | Z47: 1836.3999 | AA47: 3921.5988 | AB47: 19958.0347 | AC47: 0.0262 | AD47: 232.7625 | AE47: 2861.7773 | AF47: 46891.0927 | AG47: 3557.5651 | AH47: 30641.8794 | AI47: 3675.6636 | AJ47: 0.0022 | AK47: 758.208
A48: 2018-07-31 | C48: 15055.756 | D48: 35067.3289 | E48: 8836.3007 | F48: 15468.8039 | G48: 3975.0412 | H48: 10203.5102 | I48: 2208.413 | J48: 9.9422 | L48: 54.9829 | M48: 12288.3594 | N48: 1372.104 | O48: 46812.288 | P48: 24525.9556 | Q48: 63006.445 | R48: 113.1579 | S48: 19241.3063 | T48: 11.3919 | U48: 5663.8269 | V48: 2218.7757 | W48: 4614.2892 | X48: 9497.032 | Y48: 4057.6636 | Z48: 1875.2579 | AA48: 4045.8964 | AB48: 20111.8269 | AC48: 0.0262 | AD48: 226.3013 | AE48: 2901.1086 | AF48: 49209.8274 | AG48: 3605.4022 | AH48: 31805.5853 | AI48: 3768.6757 | AJ48: 0.0022 | AK48: 756.8714
A49: 2018-08-31 | C49: 15430.6479 | D49: 35358.16 | E49: 8906.2595 | F49: 15246.3201 | G49: 3856.155 | H49: 10256.0343 | I49: 2219.8058 | J49: 12.0181 | K49: 0.0031 | L49: 56.5512 | M49: 11992.8771 | N49: 1408.5549 | O49: 46266.9965 | P49: 24555.3589 | Q49: 62232.2023 | R49: 109.862 | S49: 19783.181 | T49: 16.091 | U49: 5466.9511 | V49: 2269.0448 | W49: 4772.87 | X49: 9827.4031 | Y49: 4025.4226 | Z49: 1869.1513 | AA49: 4124.2195 | AB49: 20805.2314 | AC49: 0.0262 | AD49: 215.086 | AE49: 2837.0963 | AF49: 44398.8777 | AG49: 3777.3808 | AH49: 31743.0565 | AI49: 3799.0277 | AJ49: 0.0218 | AK49: 751.5194
A50: 2018-09-30 | B50: 0.0015 | C50: 15428.2075 | D50: 34939.166 | E50: 9263.5685 | F50: 14810.6227 | G50: 3852.5598 | H50: 10442.8514 | I50: 2245.8866 | J50: 10.9528 | K50: 0.0031 | L50: 54.5907 | M50: 13606.7395 | N50: 1374.1599 | O50: 45946.6514 | P50: 23702.9367 | Q50: 62515.0759 | R50: 103.714 | S50: 19469.464 | T50: 16.3046 | U50: 5035.7107 | V50: 2213.5754 | W50: 4818.4242 | X50: 9046.8742 | Y50: 4069.561 | Z50: 1915.2321 | AA50: 4321.1611 | AB50: 20469.4375 | AC50: 0.0262 | AD50: 213.3289 | AE50: 3015.8043 | AF50: 44216.3332 | AG50: 3726.7117 | AH50: 31105.8475 | AI50: 3883.0465 | AJ50: 0.0022 | AK50: 756.7228
A51: 2018-10-31 | B51: 0.0015 | C51: 15760.1019 | D51: 36174.4635 | E51: 9647.3449 | F51: 14526.3378 | G51: 3800.6856 | H51: 10350.5548 | I51: 2248.8252 | J51: 9.7237 | K51: 0.0031 | L51: 58.5719 | M51: 13537.1116 | N51: 1301.2754 | O51: 46691.9442 | P51: 23643.8272 | Q51: 58359.0093 | R51: 108.1571 | S51: 20046.1962 | T51: 18.0846 | U51: 4892.6174 | V51: 2166.0798 | W51: 4666.2905 | X51: 9206.6103 | Y51: 3981.2842 | Z51: 1865.9832 | AA51: 4144.854 | AB51: 21266.9481 | AC51: 0.0393 | AD51: 226.667 | AE51: 2525.8537 | AF51: 45666.5478 | AG51: 3677.5627 | AH51: 29952.64 | AI51: 3796.571 | AJ51: 0.0218 | AK51: 706.6141
A52: 2018-11-30 | B52: 0.0015 | C52: 16746.0234 | D52: 38334.2802 | E52: 10258.9879 | F52: 15567.6856 | G52: 4184.9287 | H52: 11150.0568 | I52: 2464.8572 | J52: 12.2366 | K52: 0.0003 | L52: 55.7972 | M52: 14038.3005 | N52: 1409.21 | O52: 48907.2684 | P52: 26122.8116 | Q52: 57294.8657 | R52: 118.5885 | S52: 21655.9761 | T52: 16.3758 | U52: 5188.605 | V52: 2291.2326 | W52: 4629.1525 | X52: 9827.2725 | Y52: 4295.1573 | Z52: 1910.336 | AA52: 4469.4668 | AB52: 22015.6842 | AC52: 0.0262 | AD52: 220.3574 | AE52: 2667.794 | AF52: 47999.0608 | AG52: 3998.8583 | AH52: 31531.1052 | AI52: 4174.768 | AJ52: 0.0218 | AK52: 754.0588
A53: 2018-12-31 | B53: 0.0015 | C53: 15918.7279 | D53: 36854.9537 | E53: 9576.8215 | F53: 15478.0741 | G53: 3919.5781 | H53: 10837.9153 | I53: 2463.3874 | J53: 13.1106 | K53: 0.0003 | L53: 56.012 | M53: 14148.5621 | N53: 1331.5757 | O53: 46911.5892 | P53: 24858.1229 | Q53: 53671.6475 | R53: 119.9858 | S53: 20610.253 | T53: 16.6225 | U53: 4673.0768 | V53: 2078.7155 | W53: 4399.629 | X53: 9429.2717 | Y53: 4045.8591 | Z53: 1741.2771 | AA53: 4181.0971 | AB53: 20389.1577 | AC53: 0.0269 | AD53: 239.788 | AE53: 2377.0728 | AF53: 44540.8568 | AG53: 3756.346 | AH53: 29607.2754 | AI53: 4054.4592 | AJ53: 0.0218 | AK53: 753.1664
A54: 2019-01-31 | B54: 0.0001 | C54: 16921.7322 | D54: 39014.7704 | E54: 10855.0557 | F54: 15410.0929 | G54: 3956.6037 | H54: 11411.8385 | I54: 2488.374 | J54: 14.2032 | K54: 0.0003 | L54: 56.769 | M54: 15496.7602 | N54: 1483.4048 | O54: 55967.7812 | P54: 25245.0071 | Q54: 60394.2451 | R54: 115.3297 | S54: 21995.0439 | T54: 15.3146 | U54: 5039.6311 | V54: 2229.5229 | W54: 4943.7592 | X54: 10147.161 | Y54: 4296.5659 | Z54: 1802.9102 | AA54: 4315.0393 | AB54: 22541.0666 | AC54: 0.0269 | AD54: 225.1414 | AE54: 2748.2734 | AF54: 49287.0136 | AG54: 4024.584 | AH54: 32012.7468 | AI54: 4150.9183 | AK54: 780.5038
A55: 2019-02-28 | B55: 0.0015 | C55: 17428.0737 | D55: 40030.2853 | E55: 11412.4325 | F55: 14940.4049 | G55: 4175.6508 | H55: 11555.3053 | I55: 2615.7492 | J55: 10.9255 | K55: 0.0031 | L55: 66.708 | M55: 15106.358 | N55: 1474.2577 | O55: 59221.1801 | P55: 26472.8112 | Q55: 60350.5919 | R55: 115.5926 | S55: 22128.4498 | T55: 16.8737 | U55: 5180.7579 | V55: 2216.0022 | W55: 5193.1041 | X55: 10049.898 | Y55: 4296.5838 | Z55: 1849.567 | AA55: 4544.9589 | AB55: 23172.7909 | AC55: 0.0157 | AD55: 221.113 | AE55: 2672.5455 | AF55: 50392.422 | AG55: 4024.7188 | AH55: 33005.2928 | AI55: 4342.7763 | AJ55: 0.0218 | AK55: 816.9551
A56: 2019-03-31 | B56: 0.1497 | C56: 18050.5616 | D56: 41312.833 | E56: 11976.2661 | F56: 15558.4154 | G56: 4244.8027 | H56: 12032.2466 | I56: 2622.0008 | J56: 12.1273 | K56: 0.0031 | L56: 60.1888 | M56: 15394.2165 | N56: 1493.9123 | O56: 61281.8728 | P56: 27230.5533 | Q56: 63579.8296 | R56: 117.6276 | S56: 22512.5953 | T56: 14.9051 | U56: 5071.4231 | V56: 2356.4091 | W56: 5259.5386 | X56: 10675.6885 | Y56: 4419.9774 | Z56: 1890.1756 | AA56: 4680.598 | AB56: 22863.052 | AC56: 0.0066 | AD56: 212.6889 | AE56: 2961.1233 | AF56: 53466.2819 | AG56: 4175.4174 | AH56: 34508.5755 | AI56: 4368.684 | AJ56: 0.0218 | AK56: 807.7742
A57: 2019-04-30 | B57: 0.015 | C57: 17859.1349 | D57: 42213.4096 | E57: 11340.3582 | F57: 15824.16 | G57: 4204.5383 | H57: 11963.2772 | I57: 2618.7157 | J57: 12.2926 | K57: 0.0031 | L57: 66.4048 | M57: 15544.6486 | N57: 1519.0197 | O57: 62249.1448 | P57: 28169.7136 | Q57: 62552.9388 | R57: 115.4255 | S57: 22737.88 | T57: 16.5925 | U57: 5134.2515 | V57: 2350.1688 | W57: 5108.5512 | X57: 10361.0843 | Y57: 4445.7214 | Z57: 1937.4664 | AA57: 4663.8208 | AB57: 22501.9638 | AC57: 0.0033 | AD57: 222.2362 | AE57: 2965.7399 | AF57: 55393.1364 | AG57: 4271.8239 | AH57: 35081.6163 | AI57: 4418.0747 | AJ57: 0.0022 | AK57: 848.8926
A58: 2019-05-31 | B58: 0.0015 | C58: 17999.0237 | D58: 42494.6678 | E58: 10486.8874 | F58: 15468.8039 | G58: 4227.5239 | H58: 11909.3997 | I58: 2683.8432 | J58: 11.8536 | K58: 0.0031 | L58: 64.4003 | M58: 14260.9615 | N58: 1488.5212 | O58: 60321.7509 | P58: 28729.4267 | Q58: 61038.9571 | R58: 109.421 | S58: 23882.8906 | T58: 12.0241 | U58: 4888.6964 | V58: 2296.4328 | W58: 4600.9956 | X58: 10390.9238 | Y58: 4233.6533 | Z58: 1993.3688 | AA58: 4613.2417 | AB58: 21468.001 | AC58: 0.0622 | AD58: 219.0765 | AE58: 2914.8627 | AF58: 55684.5697 | AG58: 4228.1467 | AH58: 36068.3348 | AI58: 4521.6357 | AJ58: 0.0022 | AK58: 848.1468
A59: 2019-06-30 | B59: 0.0015 | C59: 18433.4152 | D59: 43427.261 | E59: 11124.0654 | F59: 15604.7662 | G59: 4295.6682 | H59: 12349.2753 | I59: 2768.4722 | J59: 11.5243 | L59: 65.3116 | M59: 14356.2351 | N59: 1558.0446 | O59: 62038.8106 | P59: 29188.8312 | Q59: 63183.7466 | R59: 102.379 | S59: 24503.8975 | T59: 11.1852 | U59: 5110.5498 | V59: 2533.5645 | W59: 4552.664 | X59: 10745.3719 | Y59: 4440.6518 | Z59: 2114.2472 | AA59: 4757.6031 | AB59: 22369.7147 | AC59: 0.131 | AD59: 245.5459 | AE59: 3116.27 | AF59: 57537.2526 | AG59: 4258.5942 | AH59: 37715.373 | AI59: 4759.5606 | AJ59: 0.0218 | AK59: 893.3435
A60: 2019-07-31 | B60: 0.0015 | C60: 18575.7581 | D60: 43360.1487 | E60: 11143.9772 | F60: 15620.2165 | G60: 4488.7435 | H60: 12756.3943 | I60: 2850.5255 | J60: 10.9755 | L60: 59.9956 | M60: 14546.7824 | N60: 1532.4652 | O60: 59607.6467 | P60: 28283.3383 | Q60: 65897.5618 | R60: 103.1981 | S60: 24536.2416 | T60: 11.1852 | U60: 5296.7481 | V60: 2570.6596 | W60: 4120.2688 | X60: 11077.4337 | Y60: 4449.5741 | Z60: 2172.6552 | AA60: 4808.3341 | AB60: 21374.2227 | AC60: 0.0085 | AD60: 231.5469 | AE60: 3145.8344 | AF60: 58494.819 | AG60: 4187.2057 | AH60: 37163.8022 | AI60: 4721.8538 | AJ60: 0.0218 | AK60: 873.9511
A61: 2019-08-31 | B61: 0.015 | C61: 19546.1475 | D61: 45009.4244 | E61: 10176.8138 | F61: 15617.1264 | G61: 4428.4295 | H61: 13029.2619 | I61: 3408.0527 | J61: 13.1706 | K61: 0.0031 | L61: 58.5924 | M61: 13877.6966 | N61: 1551.4691 | O61: 62366.9294 | P61: 29527.62 | Q61: 62408.5604 | R61: 104.6338 | S61: 25930.2319 | T61: 9.7551 | U61: 5352.6951 | V61: 2629.5959 | W61: 4034.3567 | X61: 11032.4109 | Y61: 4115.704 | Z61: 2170.8299 | AA61: 4831.0099 | AB61: 21330.372 | AC61: 0.0665 | AD61: 228.8872 | AE61: 2987.9039 | AF61: 61099.2422 | AG61: 4313.7212 | AH61: 38884.596 | AI61: 4845.0649 | AJ61: 0.0218 | AK61: 900.8098
A62: 2019-09-30 | B62: 0.0015 | C62: 20280.8699 | D62: 46263.6639 | E62: 10847.3018 | F62: 16145.5255 | G62: 4515.2108 | H62: 13461.8765 | I62: 3309.7116 | J62: 12.9511 | L62: 56.6139 | M62: 15125.6368 | N62: 1563.6079 | O62: 65106.4789 | P62: 31377.6632 | Q62: 62561.7909 | R62: 106.1247 | S62: 27658.2668 | T62: 10.4518 | U62: 5611.4717 | V62: 2768.9627 | W62: 4049.8934 | X62: 11170.5493 | Y62: 4068.9141 | Z62: 2170.2215 | AA62: 5068.3153 | AB62: 22730.7416 | AC62: 0.0131 | AD62: 235.8232 | AE62: 3040.5664 | AF62: 64780.2985 | AG62: 4432.6153 | AH62: 40526.4083 | AI62: 4834.9744 | AJ62: 0.0218 | AK62: 946.6188
A63: 2019-10-31 | B63: 0.015 | C63: 19685.4914 | D63: 46624.1115 | E63: 11318.635 | F63: 15465.7139 | G63: 4445.4759 | H63: 13295.2135 | I63: 3503.8155 | J63: 13.1706 | L63: 54.9399 | M63: 14569.3261 | N63: 1555.078 | O63: 66319.5932 | P63: 30630.3388 | Q63: 56979.8256 | R63: 91.3665 | S63: 27098.4352 | T63: 11.1486 | U63: 5750.813 | V63: 2670.8512 | W63: 3910.9264 | X63: 10474.1362 | Y63: 3923.1459 | Z63: 2109.9883 | AA63: 4896.147 | AB63: 24174.4216 | AC63: 0.0393 | AD63: 235.2586 | AE63: 2971.2736 | AF63: 65713.6718 | AG63: 4271.0413 | AH63: 39675.3016 | AI63: 4636.3495 | AJ63: 0.0218 | AK63: 929.4548
A64: 2019-11-30 | B64: 0.015 | C64: 18287.3944 | D64: 45122.498 | E64: 12554.2101 | F64: 14999.1159 | G64: 4139.1272 | H64: 12764.9856 | I64: 3142.024 | J64: 11.5877 | K64: 0.0031 | L64: 58.1358 | M64: 12309.0007 | N64: 1495.0401 | O64: 68407.2909 | P64: 28884.8782 | Q64: 57618.942 | R64: 92.4494 | S64: 26755.6415 | T64: 9.7899 | U64: 5819.1476 | V64: 2687.492 | W64: 3886.341 | X64: 9880.2317 | Y64: 3835.6111 | Z64: 2092.04 | AA64: 4686.7792 | AB64: 24604.8145 | AC64: 0.0111 | AD64: 236.9523 | AE64: 2886.3534 | AF64: 65011.02 | AG64: 3946.6441 | AH64: 41514.8145 | AI64: 4023.4804 | AJ64: 0.0218 | AK64: 911.0956
A65: 2019-12-31 | B65: 0.0045 | C65: 18895.088 | D65: 46683.3858 | E65: 13211.4639 | F65: 15808.7097 | G65: 4193.8954 | H65: 13675.9249 | I65: 3191.757 | J65: 5.7168 | K65: 0.0031 | L65: 61.5682 | M65: 13667.2007 | N65: 1571.9739 | O65: 68657.78 | P65: 30074.979 | Q65: 61647.0139 | R65: 90.3548 | S65: 27542.3817 | T65: 10.7026 | U65: 5953.4047 | V65: 2732.5609 | W65: 4017.5547 | X65: 10399.4575 | Y65: 4272.8934 | Z65: 2242.9273 | AA65: 4934.6453 | AB65: 25942.4256 | AC65: 0.0105 | AD65: 230.9585 | AE65: 3047.1171 | AF65: 66804.3551 | AG65: 4246.9112 | AH65: 42701.5964 | AI65: 4034.6331 | AJ65: 0.0022 | AK65: 922.738
A66: 2020-01-31 | B66: 0.0015 | C66: 20186.7444 | D66: 51479.6578 | E66: 13184.9081 | F66: 16457.6208 | G66: 4313.2486 | H66: 14308.0054 | I66: 3262.4885 | J66: 5.1775 | K66: 0.0031 | L66: 63.1074 | M66: 13271.2678 | N66: 1578.2073 | O66: 71086.75 | P66: 31248.4584 | Q66: 56414.8987 | R66: 86.2478 | S66: 29928.5032 | T66: 11.1379 | U66: 5933.3664 | V66: 2771.0428 | W66: 3738.5652 | X66: 10948.5668 | Y66: 3961.3183 | Z66: 2232.28 | AA66: 4983.6912 | AB66: 26166.5658 | AC66: 0.0105 | AD66: 204.614 | AE66: 2845.7006 | AF66: 73830.8728 | AG66: 4298.3982 | AH66: 45283.7632 | AI66: 4010.2034 | AJ66: 0.0022 | AK66: 921.0914
A67: 2020-02-29 | B67: 0.0015 | C67: 19436.3536 | D67: 44109.567 | E67: 11109.3379 | F67: 15354.472 | G67: 3566.5413 | H67: 12624.1129 | I67: 2823.0695 | J67: 6.287 | K67: 0.0308 | L67: 55.4624 | M67: 11537.1822 | N67: 1402.8 | O67: 65514.8654 | P67: 26308.1827 | Q67: 51096.5379 | R67: 81.5931 | S67: 28527.7072 | T67: 15.2251 | U67: 5556.8066 | V67: 2473.2415 | W67: 3168.9945 | X67: 10328.7557 | Y67: 3374.6055 | Z67: 2000.7775 | AA67: 4341.8131 | AB67: 23042.0869 | AC67: 0.0098 | AD67: 222.686 | AE67: 2500.6278 | AF67: 63301.5836 | AG67: 3832.6587 | AH67: 39403.4139 | AI67: 3435.0411 | AJ67: 0.0109 | AK67: 841.2107
A68: 2020-03-31 | C68: 17969.8741 | D68: 39576.7229 | E68: 9040.847 | F68: 13528.2508 | G68: 3141.8616 | H68: 12136.5345 | I68: 3012.8959 | J68: 7.0882 | K68: 0.0031 | L68: 47.4157 | M68: 7765.3967 | N68: 1406.2454 | O68: 60514.9332 | P68: 26034.4868 | Q68: 31305.9337 | R68: 71.5319 | S68: 25835.2801 | T68: 10.796 | U68: 4310.2107 | V68: 2269.7382 | W68: 3227.8559 | X68: 9545.1158 | Y68: 3246.5407 | Z68: 1878.4858 | AA68: 4420.044 | AB68: 18949.6403 | AC68: 0.0105 | AD68: 234.6924 | AE68: 2311.1909 | AF68: 56778.4582 | AG68: 3803.5499 | AH68: 33037.4312 | AI68: 3694.2093 | AJ68: 0.0218 | AK68: 781.1882
A69: 2020-04-30 | C69: 17950.1352 | D69: 41125.5494 | E69: 8808.1782 | F69: 13308.1165 | G69: 2980.3157 | H69: 12471.656 | I69: 2927.4649 | J69: 6.7801 | K69: 0.0031 | L69: 54.1151 | M69: 8559.5279 | N69: 1443.2057 | O69: 64656.0022 | P69: 26317.3149 | Q69: 38442.8108 | R69: 78.4976 | S69: 26657.8072 | T69: 13.841 | U69: 4502.6666 | V69: 2241.6568 | W69: 3548.9968 | X69: 9609.1813 | Y69: 3228.3822 | Z69: 1987.3864 | AA69: 4213.9135 | AB69: 19527.1275 | AC69: 0.0254 | AD69: 201.756 | AE69: 2643.0779 | AF69: 59963.9887 | AG69: 3725.9264 | AH69: 36212.814 | AI69: 4025.6047 | AJ69: 0.0218 | AK69: 752.6005
A70: 2020-05-31 | B70: 0.0015 | C70: 18438.6749 | D70: 42248.4621 | E70: 8304.6944 | F70: 13744.564 | G70: 3041.4747 | H70: 12571.1773 | I70: 3024.8381 | J70: 6.9814 | K70: 0.0123 | L70: 54.1783 | M70: 8936.4889 | N70: 1484.8133 | O70: 71344.7275 | P70: 25077.6993 | Q70: 41748.7846 | R70: 76.5416 | S70: 28160.2407 | T70: 12.9403 | U70: 4363.3647 | V70: 2455.1312 | W70: 3816.3964 | X70: 9122.1114 | Y70: 3362.8109 | Z70: 1957.1635 | AA70: 4439.1208 | AB70: 21465.352 | AC70: 0.0262 | AD70: 214.8497 | AE70: 2622.2285 | AF70: 60323.3709 | AG70: 3736.0668 | AH70: 36932.0996 | AI70: 4181.5498 | AJ70: 0.0218 | AK70: 720.5877
A72: SHORT_AND_LONG_TERM_DEBT | B72: =B2 -> ABLE US Equity | C72: =C2 -> AEE US Equity | D72: AEP US Equity | E72: AES US Equity | F72: AGR US Equity | G72: ALE US Equity | H72: ATO US Equity | I72: AWR US Equity | J72: BDCO US Equity | K72: CMNR US Equity | L72: CNIG US Equity | M72: CNP US Equity | N72: CPK US Equity | O72: D US Equity | P72: ED US Equity | Q72: EPD US Equity | R72: EPSN US Equity | S72: ES US Equity | T72: ESOA US Equity | U72: MDU US Equity | V72: MGEE US Equity | W72: NFG US Equity | X72: NI US Equity | Y72: NJR US Equity | Z72: NWN US Equity | AA72: OGS US Equity | AB72: PPL US Equity | AC72: PSTRQ US Equity | AD72: RGCO US Equity | AE72: SJI US Equity | AF72: SO US Equity | AG72: SR US Equity | AH72: SRE US Equity | AI72: SWX US Equity | AJ72: TIDE US Equity | AK72: UTL US Equity
A73: 2015-06-30 | C73: 7262 | D73: 20683 | E73: 20763 | F73: 3216.337 | G73: 1390.4 | H73: 2707.28 | I73: 325.921 | J73: 30.9831 | L73: 21.8533 | M73: 9148 | N73: 260.087 | O73: 26986 | P73: 13630 | Q73: 22293 | R73: 36.8875 | S73: 9922.23 | T73: 13.8709 | U73: 2302.343 | V73: 397.37 | W73: 2099 | X73: 9485.5 | Y73: 883.553 | Z73: 804.037 | AA73: 1201.315 | AB73: 19203 | AC73: 154.426 | AD73: 32.2185 | AE73: 1330.57 | AF73: 27374 | AG73: 2027.8 | AH73: 14637 | AI73: 1541.733 | AK73: 342.2
A74: 2015-07-31 | C74: 7262 | D74: 20683 | E74: 325.921 | F74: 3216.337 | G74: 540.596 | H74: 2707.28 | I74: 9148 | J74: 30.9831 | K74: 900.364 | L74: 9922.23 | M74: 22770 | N74: 4288.251 | O74: 26986 | P74: 20297 | Q74: 22293 | R74: 36.8875 | S74: 9386 | T74: 13.8709 | U74: 2302.343 | V74: 2259 | W74: 2099 | X74: 9485.5 | Y74: 883.553 | Z74: 804.037 | AA74: 1201.315 | AB74: 1845.515 | AC74: 154.426 | AD74: 32.2185 | AE74: 1330.57 | AF74: 27374 | AG74: 2027.8 | AH74: 14637 | AI74: 1541.733 | AK74: 342.2
A75: 2015-08-31 | C75: 7262 | D75: 20683 | E75: 325.921 | F75: 3216.337 | G75: 540.596 | H75: 2707.28 | I75: 9148 | J75: 30.9831 | K75: 900.364 | L75: 9922.23 | M75: 22770 | N75: 4288.251 | O75: 26986 | P75: 20297 | Q75: 22293 | R75: 36.8875 | S75: 9386 | T75: 13.8709 | U75: 2302.343 | V75: 2259 | W75: 2099 | X75: 9485.5 | Y75: 883.553 | Z75: 804.037 | AA75: 1201.315 | AB75: 1845.515 | AC75: 154.426 | AD75: 32.2185 | AE75: 1330.57 | AF75: 27374 | AG75: 2027.8 | AH75: 14637 | AI75: 1541.733 | AK75: 342.2
A76: 2015-09-30 | C76: 7159 | D76: 20208 | E76: 340.862 | F76: 3216.337 | G76: 540.686 | H76: 2895.442 | I76: 9103 | J76: 30.5796 | K76: 879.553 | L76: 10001.881 | M76: 22174 | N76: 4404.205 | O76: 27328 | P76: 20055 | Q76: 22460.1 | R76: 34.4005 | S76: 9258 | T76: 13.6953 | U76: 2200.773 | V76: 2204 | W76: 2084.009 | X76: 6683.3 | Y76: 921.083 | Z76: 839.253 | AA76: 1201.313 | AB76: 1821.835 | AC76: 150.667 | AD76: 39.6576 | AE76: 1385.612 | AF76: 27129 | AG76: 2189.5 | AH76: 14792 | AI76: 1560.229 | AK76: 346.2
A77: 2015-10-31 | C77: 7159 | D77: 20208 | E77: 340.862 | F77: 3216.337 | G77: 540.686 | H77: 2895.442 | I77: 9103 | J77: 30.5796 | K77: 879.553 | L77: 10001.881 | M77: 22174 | N77: 4404.205 | O77: 27328 | P77: 20055 | Q77: 22460.1 | R77: 34.4005 | S77: 9258 | T77: 13.6953 | U77: 2200.773 | V77: 2204 | W77: 2084.009 | X77: 6683.3 | Y77: 921.083 | Z77: 839.253 | AA77: 1201.313 | AD77: 39.6576 | AE77: 1385.612 | AF77: 27129 | AG77: 2189.5 | AH77: 14792 | AI77: 1560.229 | AK77: 346.2
A78: 2015-11-30 | C78: 7159 | D78: 20208 | E78: 340.862 | F78: 3216.337 | G78: 540.686 | H78: 2895.442 | I78: 9103 | J78: 30.5796 | K78: 879.553 | L78: 10001.881 | M78: 22174 | N78: 4404.205 | O78: 27328 | P78: 20055 | Q78: 22460.1 | R78: 34.4005 | S78: 9258 | T78: 13.6953 | U78: 2200.773 | V78: 2204 | W78: 2084.009 | X78: 6683.3 | Y78: 921.083 | Z78: 839.253 | AA78: 1201.313 | AD78: 39.6576 | AE78: 1385.612 | AF78: 27129 | AG78: 2189.5 | AH78: 14792 | AI78: 1560.229 | AK78: 346.2
A79: 2015-12-31 | C79: 7576 | D79: 20372.7 | E79: 349.212 | F79: 4899 | G79: 565.151 | H79: 3218.71 | I79: 9256 | J79: 34.7812 | K79: 879.553 | L79: 10195.41 | M79: 22066 | N79: 4456.257 | O79: 28802 | P79: 19464 | Q79: 22540.8 | R79: 33.7906 | S79: 9932 | T79: 14.8049 | U79: 1796.163 | V79: 2199 | W79: 2115.962 | X79: 6949.6 | Y79: 1070.164 | Z79: 864.453 | AA79: 1204.167 | AD79: 46.8658 | AE79: 1458.581 | AF79: 28738 | AG79: 2228.6 | AH79: 14663 | AI79: 1588.679 | AK79: 378.7
A80: 2016-01-31 | C80: 7576 | D80: 20372.7 | E80: 349.212 | F80: 4899 | G80: 565.151 | H80: 3218.71 | I80: 9256 | J80: 34.7812 | K80: 879.553 | L80: 10195.41 | M80: 22066 | N80: 4456.257 | O80: 28802 | P80: 19464 | Q80: 22540.8 | R80: 33.7906 | S80: 9932 | T80: 14.8049 | U80: 1796.163 | V80: 2199 | W80: 2115.962 | X80: 6949.6 | Y80: 1070.164 | Z80: 864.453 | AA80: 1204.167 | AD80: 46.8658 | AE80: 1458.581 | AF80: 28738 | AG80: 2228.6 | AH80: 14663 | AI80: 1588.679 | AK80: 378.7
A81: 2016-02-29 | C81: 7576 | D81: 20372.7 | E81: 349.212 | F81: 4899 | G81: 565.151 | H81: 3218.71 | I81: 9256 | J81: 34.7812 | K81: 879.553 | L81: 10195.41 | M81: 22066 | N81: 4456.257 | O81: 28802 | P81: 19464 | Q81: 22540.8 | R81: 33.7906 | S81: 9932 | T81: 14.8049 | U81: 1796.163 | V81: 2199 | W81: 2115.962 | X81: 6949.6 | Y81: 1070.164 | Z81: 864.453 | AA81: 1204.167 | AD81: 46.8658 | AE81: 1458.581 | AF81: 28738 | AG81: 2228.6 | AH81: 14663 | AI81: 1588.679 | AK81: 378.7
A82: 2016-03-31 | C82: 7597 | D82: 21003.6 | E82: 364.228 | F82: 4688 | G82: 552.151 | H82: 3082.488 | I82: 8976 | J82: 34.3349 | K82: 873.712 | L82: 10293.07 | M82: 22358 | N82: 4555.012 | O82: 28988 | P82: 19142 | Q82: 22755.7 | R82: 45.9674 | S82: 10250 | T82: 13.0998 | U82: 1858.054 | V82: 2199 | W82: 2085.123 | X82: 7014.6 | Y82: 1008.574 | Z82: 759.625 | AA82: 1191.861 | AD82: 39.6105 | AE82: 1415.072 | AF82: 29678 | AG82: 2105.2 | AH82: 15218 | AI82: 1437.564 | AK82: 383.9
A83: 2016-04-30 | C83: 7597 | D83: 21003.6 | E83: 364.228 | F83: 4688 | G83: 552.151 | H83: 3082.488 | I83: 8976 | J83: 34.3349 | K83: 873.712 | L83: 10293.07 | M83: 22358 | N83: 4555.012 | O83: 28988 | P83: 19142 | Q83: 22755.7 | R83: 45.9674 | S83: 10250 | T83: 13.0998 | U83: 1858.054 | V83: 2199 | W83: 2085.123 | X83: 7014.6 | Y83: 1008.574 | Z83: 759.625 | AA83: 1191.861 | AD83: 39.6105 | AE83: 1415.072 | AF83: 29678 | AG83: 2105.2 | AH83: 15218 | AI83: 1437.564 | AK83: 383.9
A84: 2016-05-31 | C84: 7597 | D84: 21003.6 | E84: 364.228 | F84: 4688 | G84: 552.151 | H84: 3082.488 | I84: 8976 | J84: 34.3349 | K84: 873.712 | L84: 10293.07 | M84: 22358 | N84: 4555.012 | O84: 28988 | P84: 19142 | Q84: 22755.7 | R84: 45.9674 | S84: 10250 | T84: 13.0998 | U84: 1858.054 | V84: 2199 | W84: 2085.123 | X84: 7014.6 | Y84: 1008.574 | Z84: 759.625 | AA84: 1191.861 | AD84: 39.6105 | AE84: 1415.072 | AF84: 29678 | AG84: 2105.2 | AH84: 15218 | AI84: 1437.564 | AK84: 383.9
A85: 2016-06-30 | C85: 7814 | D85: 21604 | E85: 384.728 | F85: 4678 | G85: 559.421 | H85: 3126.111 | I85: 9050 | J85: 33.9006 | K85: 885.326 | L85: 10381.807 | M85: 22600 | N85: 4598.124 | O85: 29572 | P85: 19108 | Q85: 22797.5 | R85: 45.3746 | S85: 10935 | T85: 16.8127 | U85: 1987.307 | V85: 2324 | W85: 2085.686 | X85: 7269.8 | Y85: 1223.789 | Z85: 747.832 | AA85: 1192.057 | AD85: 40.9564 | AE85: 1221.094 | AF85: 39464 | AG85: 1937.4 | AH85: 15862 | AI85: 1477.372 | AK85: 389.4
A86: 2016-07-31 | C86: 7814 | D86: 21604 | E86: 384.728 | F86: 4678 | G86: 559.421 | H86: 3126.111 | I86: 9050 | J86: 33.9006 | K86: 885.326 | L86: 10381.807 | M86: 22600 | N86: 4598.124 | O86: 29572 | P86: 19108 | Q86: 22797.5 | R86: 45.3746 | S86: 10935 | T86: 16.8127 | U86: 1987.307 | V86: 2324 | W86: 2085.686 | X86: 7269.8 | Y86: 1223.789 | Z86: 747.832 | AA86: 1192.057 | AD86: 40.9564 | AE86: 1221.094 | AF86: 39464 | AG86: 1937.4 | AH86: 15862 | AI86: 1477.372 | AK86: 389.4
A87: 2016-08-31 | C87: 7814 | D87: 21604 | E87: 384.728 | F87: 4678 | G87: 559.421 | H87: 3126.111 | I87: 9050 | J87: 33.9006 | K87: 885.326 | L87: 10381.807 | M87: 22600 | N87: 4598.124 | O87: 29572 | P87: 19108 | Q87: 22797.5 | R87: 45.3746 | S87: 10935 | T87: 16.8127 | U87: 1987.307 | V87: 2324 | W87: 2085.686 | X87: 7269.8 | Y87: 1223.789 | Z87: 747.832 | AA87: 1192.057 | AD87: 40.9564 | AE87: 1221.094 | AF87: 39464 | AG87: 1937.4 | AH87: 15862 | AI87: 1477.372 | AK87: 389.4
A88: 2016-09-30 | C88: 7646 | D88: 21183 | E88: 398.227 | F88: 4589 | G88: 563.508 | H88: 3268.59 | I88: 9113 | J88: 33.4631 | K88: 854.938 | L88: 10343.511 | M88: 22723 | N88: 4484.154 | O88: 34735 | P88: 19239 | Q88: 23959.3 | R88: 30.2292 | S88: 10952 | T88: 16.4909 | U88: 1901.948 | V88: 2325 | W88: 2086.252 | X88: 7737.8 | Y88: 1238.19 | Z88: 790.113 | AA88: 1233.255 | AD88: 48.1928 | AE88: 1270.813 | AF88: 45474 | AG88: 2469.4 | AH88: 17295 | AI88: 1642.426 | AK88: 401
A89: 2016-10-31 | C89: 7646 | D89: 21183 | E89: 398.227 | F89: 4589 | G89: 563.508 | H89: 3268.59 | I89: 9113 | J89: 33.4631 | L89: 10343.511 | M89: 22723 | N89: 4484.154 | O89: 34735 | P89: 19239 | Q89: 23959.3 | R89: 30.2292 | S89: 10952 | T89: 16.4909 | U89: 1901.948 | V89: 2325 | W89: 2086.252 | X89: 7737.8 | Y89: 1238.19 | Z89: 790.113 | AA89: 1233.255 | AD89: 48.1928 | AE89: 1270.813 | AF89: 45474 | AG89: 2469.4 | AH89: 17295 | AI89: 1642.426 | AK89: 401
A90: 2016-11-30 | C90: 7646 | D90: 21183 | E90: 398.227 | F90: 4589 | G90: 563.508 | H90: 3268.59 | I90: 9113 | J90: 33.4631 | L90: 10343.511 | M90: 22723 | N90: 4484.154 | O90: 34735 | P90: 19239 | Q90: 23959.3 | R90: 30.2292 | S90: 10952 | T90: 16.4909 | U90: 1901.948 | V90: 2325 | W90: 2086.252 | X90: 7737.8 | Y90: 1238.19 | Z90: 790.113 | AA90: 1233.255 | AD90: 48.1928 | AE90: 1270.813 | AF90: 45474 | AG90: 2469.4 | AH90: 17295 | AI90: 1642.426 | AK90: 401
A91: 2016-12-31 | C91: 7834 | D91: 21969.4 | E91: 411.311 | F91: 5020 | G91: 584.709 | H91: 3504.946 | I91: 9309 | J91: 33.5123 | L91: 10751.737 | M91: 22552 | N91: 4590 | O91: 35095 | P91: 16473 | Q91: 23697.7 | R91: 40.8482 | S91: 11783 | T91: 11.046 | U91: 1790.159 | V91: 2350 | W91: 2086.817 | X91: 7909.3 | Y91: 1408.114 | Z91: 772.623 | AA91: 1337.453 | AD91: 55.4608 | AE91: 1336.014 | AF91: 47457 | AG91: 2577.7 | AH91: 17121 | AI91: 1600.084 | AK91: 426.8
A92: 2017-01-31 | C92: 7834 | D92: 21969.4 | E92: 411.311 | F92: 5020 | G92: 584.709 | H92: 3504.946 | I92: 9309 | J92: 33.5123 | L92: 10751.737 | M92: 22552 | N92: 4590 | O92: 35095 | P92: 16473 | Q92: 23697.7 | R92: 40.8482 | S92: 11783 | T92: 11.046 | U92: 1790.159 | V92: 2350 | W92: 2086.817 | X92: 7909.3 | Y92: 1408.114 | Z92: 772.623 | AA92: 1337.453 | AD92: 55.4608 | AE92: 1336.014 | AF92: 47457 | AG92: 2577.7 | AH92: 17121 | AI92: 1600.084 | AK92: 426.8
A93: 2017-02-28 | C93: 7834 | D93: 21969.4 | E93: 411.311 | F93: 5020 | G93: 584.709 | H93: 3504.946 | I93: 9309 | J93: 33.5123 | L93: 10751.737 | M93: 22552 | N93: 4590 | O93: 35095 | P93: 16473 | Q93: 23697.7 | R93: 40.8482 | S93: 11783 | T93: 11.046 | U93: 1790.159 | V93: 2350 | W93: 2086.817 | X93: 7909.3 | Y93: 1408.114 | Z93: 772.623 | AA93: 1337.453 | AD93: 55.4608 | AE93: 1336.014 | AF93: 47457 | AG93: 2577.7 | AH93: 17121 | AI93: 1600.084 | AK93: 426.8
A94: 2017-03-31 | C94: 8192 | D94: 20772.4 | E94: 417.321 | F94: 5199 | G94: 604.813 | H94: 3235.227 | I94: 9406 | J94: 33.1605 | L94: 11017.274 | M94: 22659 | N94: 4814 | O94: 36114 | P94: 19360 | Q94: 23423 | R94: 7.8 | S94: 11713 | T94: 11.0579 | U94: 1703.006 | V94: 2350 | W94: 2087.385 | X94: 7914.2 | Y94: 1322.591 | Z94: 719.71 | AA94: 1278.047 | AD94: 50.0963 | AE94: 1316.307 | AF94: 48873 | AG94: 2492.7 | AH94: 17302 | AI94: 1590.196 | AK94: 420.6
A95: 2017-04-30 | C95: 8192 | D95: 20772.4 | E95: 417.321 | F95: 5199 | G95: 604.813 | H95: 3235.227 | I95: 9406 | J95: 33.1605 | L95: 11017.274 | M95: 22659 | N95: 4814 | O95: 36114 | P95: 19360 | Q95: 23423 | R95: 7.8 | S95: 11713 | T95: 11.0579 | U95: 1703.006 | V95: 2350 | W95: 2087.385 | X95: 7914.2 | Y95: 1322.591 | Z95: 719.71 | AA95: 1278.047 | AD95: 50.0963 | AE95: 1316.307 | AF95: 48873 | AG95: 2492.7 | AH95: 17302 | AI95: 1590.196 | AK95: 420.6
A96: 2017-05-31 | C96: 8192 | D96: 20772.4 | E96: 417.321 | F96: 5199 | G96: 604.813 | H96: 3235.227 | I96: 9406 | J96: 33.1605 | L96: 11017.274 | M96: 22659 | N96: 4814 | O96: 36114 | P96: 19360 | Q96: 23423 | R96: 7.8 | S96: 11713 | T96: 11.0579 | U96: 1703.006 | V96: 2350 | W96: 2087.385 | X96: 7914.2 | Y96: 1322.591 | Z96: 719.71 | AA96: 1278.047 | AD96: 50.0963 | AE96: 1316.307 | AF96: 48873 | AG96: 2492.7 | AH96: 17302 | AI96: 1590.196 | AK96: 420.6
A97: 2017-06-30 | C97: 8291 | D97: 21403.6 | E97: 365.305 | F97: 5399 | G97: 584.226 | H97: 3325.307 | I97: 9441 | J97: 32.811 | L97: 11320.404 | M97: 22822 | N97: 5101 | O97: 37038 | P97: 16884 | Q97: 23381.3 | R97: 2.9 | S97: 12521 | T97: 20.0684 | U97: 1761.476 | V97: 2350 | W97: 2087.954 | X97: 8239.9 | Y97: 1347.395 | Z97: 720.109 | AA97: 1271.848 | AD97: 53.0845 | AE97: 1378.889 | AF97: 50190 | AG97: 2376 | AH97: 18113 | AI97: 1715.434 | AK97: 422.5
A98: 2017-07-31 | C98: 8291 | D98: 21403.6 | E98: 365.305 | F98: 5399 | G98: 584.226 | H98: 3325.307 | I98: 9441 | J98: 32.811 | L98: 11320.404 | M98: 22822 | N98: 5101 | O98: 37038 | P98: 16884 | Q98: 23381.3 | R98: 2.9 | S98: 12521 | T98: 20.0684 | U98: 1761.476 | V98: 2350 | W98: 2087.954 | X98: 8239.9 | Y98: 1347.395 | Z98: 720.109 | AA98: 1271.848 | AD98: 53.0845 | AE98: 1378.889 | AF98: 50190 | AG98: 2376 | AH98: 18113 | AI98: 1715.434 | AK98: 422.5
A99: 2017-08-31 | C99: 8291 | D99: 21403.6 | E99: 365.305 | F99: 5399 | G99: 584.226 | H99: 3325.307 | I99: 9441 | J99: 32.811 | L99: 11320.404 | M99: 22822 | N99: 5101 | O99: 37038 | P99: 16884 | Q99: 23381.3 | R99: 2.9 | S99: 12521 | T99: 20.0684 | U99: 1761.476 | V99: 2350 | W99: 2087.954 | X99: 8239.9 | Y99: 1347.395 | Z99: 720.109 | AA99: 1271.848 | AD99: 53.0845 | AE99: 1378.889 | AF99: 50190 | AG99: 2376 | AH99: 18113 | AI99: 1715.434 | AK99: 422.5
A100: 2017-09-30 | C100: 8145 | D100: 21781 | E100: 367.282 | F100: 5765 | G100: 610.944 | H100: 3514.79 | I100: 9457 | J100: 35.756 | L100: 11444.128 | M100: 22665 | N100: 4898 | O100: 36734 | P100: 16905 | Q100: 24719.9 | R100: 2.9 | S100: 12726 | T100: 23.6984 | U100: 1740.552 | V100: 2377 | W100: 2383.681 | X100: 8651.6 | Y100: 1428.455 | Z100: 779.424 | AA100: 1367.052 | AD100: 61.312 | AE100: 1471.328 | AF100: 50126 | AG100: 2572.3 | AH100: 18724 | AI100: 1870.934 | AK100: 454.8
A101: 2017-10-31 | C101: 8145 | D101: 21781 | E101: 367.282 | F101: 5765 | G101: 610.944 | H101: 3514.79 | I101: 9457 | J101: 35.756 | L101: 11444.128 | M101: 22665 | N101: 4898 | O101: 36734 | P101: 16905 | Q101: 24719.9 | R101: 2.9 | S101: 12726 | T101: 23.6984 | U101: 1740.552 | V101: 2377 | W101: 2383.681 | X101: 8651.6 | Y101: 1428.455 | Z101: 779.424 | AA101: 1367.052 | AD101: 61.312 | AE101: 1471.328 | AF101: 50126 | AG101: 2572.3 | AH101: 18724 | AI101: 1870.934 | AK101: 454.8
A102: 2017-11-30 | C102: 8145 | D102: 21781 | E102: 367.282 | F102: 5765 | G102: 610.944 | H102: 3514.79 | I102: 9457 | J102: 35.756 | L102: 11444.128 | M102: 22665 | N102: 4898 | O102: 36734 | P102: 16905 | Q102: 24719.9 | R102: 2.9 | S102: 12726 | T102: 23.6984 | U102: 1740.552 | V102: 2377 | W102: 2383.681 | X102: 8651.6 | Y102: 1428.455 | Z102: 779.424 | AA102: 1367.052 | AD102: 61.312 | AE102: 1471.328 | AF102: 50126 | AG102: 2572.3 | AH102: 18724 | AI102: 1870.934 | AK102: 454.8
A103: 2017-12-31 | C103: 8419 | D103: 22811.9 | E103: 380.363 | F103: 6165 | G103: 610.325 | H103: 3404.285 | I103: 9508 | J103: 39.5444 | L103: 13413.607 | M103: 19545 | N103: 5101 | O103: 37324 | P103: 9384 | Q103: 24568.7 | R103: 1.8959 | S103: 13610 | T103: 22.7055 | U103: 1714.853 | V103: 2426 | W103: 2084.465 | X103: 9002.2 | Y103: 1540.55 | Z103: 834.087 | AA103: 1550.472 | AD103: 69.8482 | AE103: 1533.208 | AF103: 50793 | AG103: 2719.1 | AH103: 19412 | AI103: 2038.422 | AK103: 453.2
A104: 2018-01-31 | C104: 8419 | D104: 22811.9 | E104: 380.363 | F104: 6165 | G104: 610.325 | H104: 3404.285 | I104: 9508 | J104: 39.5444 | L104: 13413.607 | M104: 19545 | N104: 5101 | O104: 37324 | P104: 9384 | Q104: 24568.7 | R104: 1.8959 | S104: 13610 | T104: 22.7055 | U104: 1714.853 | V104: 2426 | W104: 2084.465 | X104: 9002.2 | Y104: 1540.55 | Z104: 834.087 | AA104: 1550.472 | AD104: 69.8482 | AE104: 1533.208 | AF104: 50793 | AG104: 2719.1 | AH104: 19412 | AI104: 2038.422 | AK104: 453.2
A105: 2018-02-28 | C105: 8419 | D105: 22811.9 | E105: 380.363 | F105: 6165 | G105: 610.325 | H105: 3404.285 | I105: 9508 | J105: 39.5444 | L105: 13413.607 | M105: 19545 | N105: 5101 | O105: 37324 | P105: 9384 | Q105: 24568.7 | R105: 1.8959 | S105: 13610 | T105: 22.7055 | U105: 1714.853 | V105: 2426 | W105: 2084.465 | X105: 9002.2 | Y105: 1540.55 | Z105: 834.087 | AA105: 1550.472 | AD105: 69.8482 | AE105: 1533.208 | AF105: 50793 | AG105: 2719.1 | AH105: 19412 | AI105: 2038.422 | AK105: 453.2
A106: 2018-03-31 | C106: 8896 | D106: 24119.8 | E106: 390.374 | F106: 6036 | G106: 620.421 | H106: 3197.494 | I106: 9463 | J106: 41.243 | L106: 14162.585 | M106: 19097 | N106: 5213 | O106: 37436 | P106: 16362 | Q106: 25393.2 | R106: 2.9 | S106: 13666 | T106: 16.8342 | U106: 1779.542 | V106: 2426 | W106: 2085.012 | X106: 9116.8 | Y106: 1314.73 | Z106: 808.282 | AA106: 1476.078 | AD106: 55.4903 | AE106: 1486.658 | AF106: 51952 | AG106: 2571.1 | AH106: 26399 | AI106: 2045.494 | AK106: 446.1
A107: 2018-04-30 | C107: 8896 | D107: 24119.8 | E107: 390.374 | F107: 6036 | G107: 620.421 | H107: 3197.494 | I107: 9463 | J107: 41.243 | L107: 14162.585 | M107: 19097 | N107: 5213 | O107: 37436 | P107: 16362 | Q107: 25393.2 | R107: 2.9 | S107: 13666 | T107: 16.8342 | U107: 1779.542 | V107: 2426 | W107: 2085.012 | X107: 9116.8 | Y107: 1314.73 | Z107: 808.282 | AA107: 1476.078 | AD107: 55.4903 | AE107: 1486.658 | AF107: 51952 | AG107: 2571.1 | AH107: 26399 | AI107: 2045.494 | AK107: 446.1
A108: 2018-05-31 | C108: 8896 | D108: 24119.8 | E108: 390.374 | F108: 6036 | G108: 620.421 | H108: 3197.494 | I108: 9463 | J108: 41.243 | L108: 14162.585 | M108: 19097 | N108: 5213 | O108: 37436 | P108: 16362 | Q108: 25393.2 | R108: 2.9 | S108: 13666 | T108: 16.8342 | U108: 1779.542 | V108: 2426 | W108: 2085.012 | X108: 9116.8 | Y108: 1314.73 | Z108: 808.282 | AA108: 1476.078 | AD108: 55.4903 | AE108: 1486.658 | AF108: 51952 | AG108: 2571.1 | AH108: 26399 | AI108: 2045.494 | AK108: 446.1
A109: 2018-06-30 | C109: 8966 | D109: 24621.2 | E109: 398.344 | F109: 5872 | G109: 634.593 | H109: 3313.092 | I109: 8923 | J109: 41.275 | L109: 13587.37 | M109: 19257 | N109: 5223 | O109: 37810 | P109: 15773 | Q109: 25688.9 | R109: 0.9 | S109: 14330 | T109: 14.7414 | U109: 1852.91 | V109: 2426 | W109: 2085.582 | X109: 8290.2 | Y109: 1317.793 | Z109: 805.78 | AA109: 1378.679 | AD109: 57.0542 | AE109: 3109.011 | AF109: 49701 | AG109: 2371 | AH109: 26094 | AI109: 2092.171 | AK109: 437.4
A110: 2018-07-31 | C110: 8966 | D110: 24621.2 | E110: 398.344 | F110: 5872 | G110: 634.593 | H110: 3313.092 | I110: 8923 | J110: 41.275 | L110: 13587.37 | M110: 19257 | N110: 5223 | O110: 37810 | P110: 15773 | Q110: 25688.9 | R110: 0.9 | S110: 14330 | T110: 14.7414 | U110: 1852.91 | V110: 2426 | W110: 2085.582 | X110: 8290.2 | Y110: 1317.793 | Z110: 805.78 | AA110: 1378.679 | AD110: 57.0542 | AE110: 3109.011 | AF110: 49701 | AG110: 2371 | AH110: 26094 | AI110: 2092.171 | AK110: 437.4
A111: 2018-08-31 | C111: 8966 | D111: 24621.2 | E111: 398.344 | F111: 5872 | G111: 634.593 | H111: 3313.092 | I111: 8923 | J111: 41.275 | L111: 13587.37 | M111: 19257 | N111: 5223 | O111: 37810 | P111: 15773 | Q111: 25688.9 | R111: 0.9 | S111: 14330 | T111: 14.7414 | U111: 1852.91 | V111: 2426 | W111: 2085.582 | X111: 8290.2 | Y111: 1317.793 | Z111: 805.78 | AA111: 1378.679 | AD111: 57.0542 | AE111: 3109.011 | AF111: 49701 | AG111: 2371 | AH111: 26094 | AI111: 2092.171 | AK111: 437.4
A112: 2018-09-30 | C112: 8784 | D112: 25016.6 | E112: 391.33 | F112: 6119 | G112: 634.685 | H112: 3644.445 | I112: 8468 | J112: 41.53 | L112: 13606.046 | M112: 19436 | N112: 5246 | O112: 38224 | P112: 7251 | Q112: 25914 | R112: 0.4 | S112: 14778 | T112: 15.7591 | U112: 1915.47 | V112: 2427 | W112: 2131.365 | X112: 8754.1 | Y112: 1456.114 | Z112: 910.094 | AA112: 1469.888 | AD112: 70.3219 | AE112: 3185.134 | AF112: 47002 | AG112: 2629.2 | AH112: 25696 | AI112: 2188.57 | AK112: 468.5
A113: 2018-10-31 | C113: 8784 | D113: 25016.6 | E113: 391.33 | F113: 6119 | G113: 634.685 | H113: 3644.445 | I113: 8468 | J113: 41.53 | L113: 13606.046 | M113: 19436 | N113: 5246 | O113: 38224 | P113: 7251 | Q113: 25914 | R113: 0.4 | S113: 14778 | T113: 15.7591 | U113: 1915.47 | V113: 2427 | W113: 2131.365 | X113: 8754.1 | Y113: 1456.114 | Z113: 910.094 | AA113: 1469.888 | AD113: 70.3219 | AE113: 3185.134 | AF113: 47002 | AG113: 2629.2 | AH113: 25696 | AI113: 2188.57 | AK113: 468.5
A114: 2018-11-30 | C114: 8784 | D114: 25016.6 | E114: 391.33 | F114: 6119 | G114: 634.685 | H114: 3644.445 | I114: 8468 | J114: 41.53 | L114: 13606.046 | M114: 19436 | N114: 5246 | O114: 38224 | P114: 7251 | Q114: 25914 | R114: 0.4 | S114: 14778 | T114: 15.7591 | U114: 1915.47 | V114: 2427 | W114: 2131.365 | X114: 8754.1 | Y114: 1456.114 | Z114: 910.094 | AA114: 1469.888 | AD114: 70.3219 | AE114: 3185.134 | AF114: 47002 | AG114: 2629.2 | AH114: 25696 | AI114: 2188.57 | AK114: 468.5
A115: 2018-12-31 | C115: 9036 | D115: 25256.7 | E115: 416.907 | F115: 6349 | G115: 683.526 | H115: 3659.779 | I115: 9765 | J115: 41.904 | L115: 13996.062 | M115: 19504 | N115: 5338 | O115: 35175 | P115: 6521 | Q115: 26315.3 | R115: 2.1563 | S115: 15478 | T115: 17.9614 | U115: 2108.695 | V115: 2478 | W115: 2131.88 | X115: 9132.6 | Y115: 1681.307 | Z115: 953.856 | AA115: 1584.983 | AD115: 89.1194 | AE115: 3111.272 | AF115: 46849 | AG115: 2793.1 | AH115: 24571 | AI115: 2292.318 | AK115: 494.4
A116: 2019-01-31 | C116: 9036 | D116: 25256.7 | E116: 416.907 | F116: 6349 | G116: 683.526 | H116: 3659.779 | I116: 9765 | J116: 41.904 | L116: 13996.062 | M116: 19504 | N116: 5338 | O116: 35175 | P116: 6521 | Q116: 26315.3 | R116: 2.1563 | S116: 15478 | T116: 17.9614 | U116: 2108.695 | V116: 2478 | W116: 2131.88 | X116: 9132.6 | Y116: 1681.307 | Z116: 953.856 | AA116: 1584.983 | AD116: 89.1194 | AE116: 3111.272 | AF116: 46849 | AG116: 2793.1 | AH116: 24571 | AI116: 2292.318 | AK116: 494.4
A117: 2019-02-28 | C117: 9036 | D117: 25256.7 | E117: 416.907 | F117: 6349 | G117: 683.526 | H117: 3659.779 | I117: 9765 | J117: 41.904 | L117: 13996.062 | M117: 19504 | N117: 5338 | O117: 35175 | P117: 6521 | Q117: 26315.3 | R117: 2.1563 | S117: 15478 | T117: 17.9614 | U117: 2108.695 | V117: 2478 | W117: 2131.88 | X117: 9132.6 | Y117: 1681.307 | Z117: 953.856 | AA117: 1584.983 | AD117: 89.1194 | AE117: 3111.272 | AF117: 46849 | AG117: 2793.1 | AH117: 24571 | AI117: 2292.318 | AK117: 494.4
A118: 2019-03-31 | C118: 9392 | D118: 27672 | E118: 439.362 | F118: 6693 | G118: 685.421 | H118: 3653.713 | I118: 14915 | J118: 42.966 | L118: 14587.879 | M118: 20539 | N118: 5444 | O118: 42833 | P118: 7093 | Q118: 27114.2 | R118: 0.6837 | S118: 15542 | T118: 19.7471 | U118: 2375.449 | V118: 2519 | W118: 2132.488 | X118: 9295.3 | Y118: 1350.245 | Z118: 919.184 | AA118: 1619.587 | AD118: 86.905 | AE118: 2809.658 | AF118: 45969 | AG118: 2768.9 | AH118: 24920 | AI118: 2391.507 | AK118: 462.2
A119: 2019-04-30 | C119: 9392 | D119: 27672 | E119: 439.362 | F119: 6693 | G119: 685.421 | H119: 3653.713 | I119: 14915 | J119: 42.966 | L119: 14587.879 | M119: 20539 | N119: 5444 | O119: 42833 | P119: 7093 | Q119: 27114.2 | R119: 0.6837 | S119: 15542 | T119: 19.7471 | U119: 2375.449 | V119: 2519 | W119: 2132.488 | X119: 9295.3 | Y119: 1350.245 | Z119: 919.184 | AA119: 1619.587 | AD119: 86.905 | AE119: 2809.658 | AF119: 45969 | AG119: 2768.9 | AH119: 24920 | AI119: 2391.507 | AK119: 462.2
A120: 2019-05-31 | C120: 9392 | D120: 27672 | E120: 439.362 | F120: 6693 | G120: 685.421 | H120: 3653.713 | I120: 14915 | J120: 42.966 | L120: 14587.879 | M120: 20539 | N120: 5444 | O120: 42833 | P120: 7093 | Q120: 27114.2 | R120: 0.6837 | S120: 15542 | T120: 19.7471 | U120: 2375.449 | V120: 2519 | W120: 2132.488 | X120: 9295.3 | Y120: 1350.245 | Z120: 919.184 | AA120: 1619.587 | AD120: 86.905 | AE120: 2809.658 | AF120: 45969 | AG120: 2768.9 | AH120: 24920 | AI120: 2391.507 | AK120: 462.2
A121: 2019-06-30 | C121: 9592 | D121: 29041.9 | E121: 478.209 | F121: 7269 | G121: 684.724 | H121: 3729.077 | I121: 15436 | J121: 55.039 | L121: 14613.669 | M121: 20911 | N121: 5628 | O121: 42022 | P121: 6468 | Q121: 27114.5 | R121: 0.4098 | S121: 16027 | T121: 21.5503 | U121: 2588.576 | V121: 2588 | W121: 2133.101 | X121: 9260.1 | Y121: 1435.703 | Z121: 935.469 | AA121: 1616.011 | AD121: 90.4708 | AE121: 2959.756 | AF121: 46158 | AG121: 2641.3 | AH121: 26249 | AI121: 2475.765 | AK121: 461
A122: 2019-07-31 | C122: 9592 | D122: 29041.9 | E122: 478.209 | F122: 7269 | G122: 684.724 | H122: 3729.077 | I122: 15436 | J122: 55.039 | L122: 14613.669 | M122: 20911 | N122: 5628 | O122: 42022 | P122: 6468 | Q122: 27114.5 | R122: 0.4098 | S122: 16027 | T122: 21.5503 | U122: 2588.576 | V122: 2588 | W122: 2133.101 | X122: 9260.1 | Y122: 1435.703 | Z122: 935.469 | AA122: 1616.011 | AD122: 90.4708 | AE122: 2959.756 | AF122: 46158 | AG122: 2641.3 | AH122: 26249 | AI122: 2475.765 | AK122: 461
A123: 2019-08-31 | C123: 9592 | D123: 29041.9 | E123: 478.209 | F123: 7269 | G123: 684.724 | H123: 3729.077 | I123: 15436 | J123: 55.039 | L123: 14613.669 | M123: 20911 | N123: 5628 | O123: 42022 | P123: 6468 | Q123: 27114.5 | R123: 0.4098 | S123: 16027 | T123: 21.5503 | U123: 2588.576 | V123: 2588 | W123: 2133.101 | X123: 9260.1 | Y123: 1435.703 | Z123: 935.469 | AA123: 1616.011 | AD123: 90.4708 | AE123: 2959.756 | AF123: 46158 | AG123: 2641.3 | AH123: 26249 | AI123: 2475.765 | AK123: 461
A124: 2019-09-30 | C124: 9569 | D124: 29736.5 | E124: 489.222 | F124: 7647 | G124: 699.706 | H124: 3994.367 | I124: 15766 | J124: 55.121 | L124: 15069.031 | M124: 21049 | N124: 5760 | O124: 41331 | P124: 6673 | Q124: 28160.3 | R124: 0 | S124: 16158 | T124: 19.4536 | U124: 2505.494 | V124: 2583 | W124: 2188.918 | X124: 9540.8 | Y124: 1584.046 | Z124: 970.168 | AA124: 1716.637 | AD124: 103.3714 | AE124: 3175.86 | AF124: 47783 | AG124: 2865.8 | AH124: 26700 | AI124: 2606.946 | AK124: 483.8
A125: 2019-10-31 | C125: 9569 | D125: 29736.5 | E125: 489.222 | F125: 7647 | G125: 699.706 | H125: 3994.367 | I125: 15766 | J125: 55.121 | L125: 15069.031 | M125: 21049 | N125: 5760 | O125: 41331 | P125: 6673 | Q125: 28160.3 | R125: 0 | S125: 16158 | T125: 19.4536 | U125: 2505.494 | V125: 2583 | W125: 2188.918 | X125: 9540.8 | Y125: 1584.046 | Z125: 970.168 | AA125: 1716.637 | AD125: 103.3714 | AE125: 3175.86 | AF125: 47783 | AG125: 2865.8 | AH125: 26700 | AI125: 2606.946 | AK125: 483.8
A126: 2019-11-30 | C126: 9569 | D126: 29736.5 | E126: 489.222 | F126: 7647 | G126: 699.706 | H126: 3994.367 | I126: 15766 | J126: 55.121 | L126: 15069.031 | M126: 21049 | N126: 5760 | O126: 41331 | P126: 6673 | Q126: 28160.3 | R126: 0 | S126: 16158 | T126: 19.4536 | U126: 2505.494 | V126: 2583 | W126: 2188.918 | X126: 9540.8 | Y126: 1584.046 | Z126: 970.168 | AA126: 1716.637 | AD126: 103.3714 | AE126: 3175.86 | AF126: 47783 | AG126: 2865.8 | AH126: 26700 | AI126: 2606.946 | AK126: 483.8
A127: 2019-12-31 | C127: 9833 | D127: 30532.5 | E127: 499.928 | F127: 8083 | G127: 758.937 | H127: 4557.965 | I127: 16119 | J127: 52.116 | L127: 15047.723 | M127: 21271 | N127: 5811 | O127: 38398 | P127: 6447 | Q127: 27984 | R127: 0.8582 | S127: 16529 | T127: 9.1488 | U127: 2358.513 | V127: 2799 | W127: 2292.871 | X127: 9707.6 | Y127: 2036.769 | Z127: 1033.106 | AA127: 1837.064 | AD127: 113.7728 | AE127: 3388.546 | AF127: 48686 | AG127: 3048.6 | AH127: 26313 | AI127: 2772.745 | AK127: 519.6
A128: 2020-01-31 | C128: 9833 | D128: 30532.5 | E128: 499.928 | F128: 8083 | G128: 758.937 | H128: 4557.965 | I128: 16119 | J128: 52.116 | L128: 15047.723 | M128: 21271 | N128: 5811 | O128: 38398 | P128: 6447 | Q128: 27984 | R128: 0.8582 | S128: 16529 | T128: 9.1488 | U128: 2358.513 | V128: 2799 | W128: 2292.871 | X128: 9707.6 | Y128: 2036.769 | Z128: 1033.106 | AA128: 1837.064 | AD128: 113.7728 | AE128: 3388.546 | AF128: 48686 | AG128: 3048.6 | AH128: 26313 | AI128: 2772.745 | AK128: 519.6
A129: 2020-02-29 | C129: 9833 | D129: 30532.5 | E129: 499.928 | F129: 8083 | G129: 758.937 | H129: 4557.965 | I129: 16119 | J129: 52.116 | L129: 15047.723 | M129: 21271 | N129: 5811 | O129: 38398 | P129: 6447 | Q129: 27984 | R129: 0.8582 | S129: 16529 | T129: 9.1488 | U129: 2358.513 | V129: 2799 | W129: 2292.871 | X129: 9707.6 | Y129: 2036.769 | Z129: 1033.106 | AA129: 1837.064 | AD129: 113.7728 | AE129: 3388.546 | AF129: 48686 | AG129: 3048.6 | AH129: 26313 | AI129: 2772.745 | AK129: 519.6
A130: 2020-03-31 | C130: 10350 | D130: 33327.4 | E130: 526.309 | F130: 8261 | G130: 784.87 | H130: 4759.965 | I130: 16014 | J130: 53.163 | L130: 15092.441 | M130: 21952 | N130: 5968 | O130: 39724 | P130: 6991 | Q130: 29969.5 | R130: 0.568 | S130: 17033 | T130: 10.302 | U130: 2569.79 | V130: 2787 | W130: 2383.224 | X130: 9872.2 | Y130: 2166.198 | Z130: 1584.34 | AA130: 1760.888 | AD130: 112.2316 | AE130: 3236.885 | AF130: 49594 | AG130: 3050.8 | AH130: 28019 | AI130: 2636.658 | AK130: 519.1
A131: 2020-04-30
A132: 2020-05-31
A134: MKT CAP INDIVIDUAL
A135: =A8 -> 2019-05-31 | B135: =SUM(B11:B70) -> 0.3694 | C135: =SUM(C11:C70) -> 876328.2116 | D135: 2147094.799 | E135: 523572.1958 | F135: 779250.3357 | G135: 211023.7876 | H135: 574298.1295 | I135: 126540.551 | J135: 1329.31 | K135: 0.4737 | L135: 3150.8886 | M135: 690632.4383 | N135: 73341.9645 | O135: 3076519.246 | P135: 1471426.284 | Q135: 3381144.935 | R135: 6533.2978 | S135: 1222130.116 | T135: 971.4803 | U135: 295016.6296 | V135: 127304.7706 | W135: 269657.3203 | X135: 522881.0351 | Y135: 211348.6759 | Z135: 105158.4703 | AA135: 226546.3967 | AB135: 1378598.046 | AC135: 58.2438 | AD135: 10557.0352 | AE135: 151760.8391 | AF135: 3014324.712 | AG135: 206237.5832 | AH135: 1820408.295 | AI135: 221882.0029 | AJ135: 1.4657 | AK135: 41738.3165
A137: DEBT INDIVIDUAL
A138: =A135 -> 2019-05-31 | B138: =SUM(B73:B132) -> 0 | C138: =SUM(C73:C132) -> 490359 | D138: 1382696.8 | E138: 43788.696 | F138: 328969.022 | G138: 36790.303 | H138: 199859.289 | I138: 609057.921 | J138: 2285.2251 | K138: 13210.098 | L138: 706458.3363 | M138: 1226324 | N138: 286798.845 | O138: 2055559 | P138: 807021 | Q138: 1440813.7 | R138: 874.4737 | S138: 754291.23 | T138: 947.9418 | U138: 117293.639 | V138: 137752.37 | W138: 123785.877 | X138: 489738.1 | Y138: 78873.693 | Z138: 49485.955 | AA138: 81944.189 | AB138: 24715.865 | AC138: 613.945 | AD138: 3723.6592 | AE138: 118267.034 | AF138: 2537782 | AG138: 145204.9 | AH138: 1198262 | AI138: 113422.425 | AJ138: 0 | AK138: 25096
A140: BETAS INDIVIDUALES
A141: =A138 -> 2019-05-31 | B141: =B8 -> 8758.31348 | C141: =C8 -> 0.6843038124 | D141: 0.5523815907 | E141: 1.025571187 | F141: 0.6430854202 | G141: 0.7979346616 | H141: 0.6726352862 | I141: 0.7443446092 | J141: 0.5149522744 | K141: -22.37619523 | L141: 0.1708539045 | M141: 0.9925698129 | N141: 0.8013669116 | O141: 0.7028359612 | P141: 0.5070534928 | Q141: 0.9793716321 | R141: 0.2988772816 | S141: 0.6733669557 | T141: 0.2567713383 | U141: 0.9641841894 | V141: 0.8456650821 | W141: 0.7264947431 | X141: 0.7419328409 | Y141: 0.9229379859 | Z141: 0.8524174898 | AA141: 0.8530010375 | AB141: 0.7878839037 | AC141: -0.6123630206 | AD141: 0.4990268555 | AE141: 0.8631836285 | AF141: 0.6918604601 | AG141: 0.7406038479 | AH141: 0.7711046339 | AI141: 0.8420427413 | AJ141: 51.00160252 | AK141: 0.7695596076
A143: PONDERADORES
A144: =A141 -> 2019-05-31 | B144: =B135/SUM($B$135:$AK$135) -> 1.554140248e-08 | C144: 0.03686889399 | D144: 0.09033260539 | E144: 0.02202773747 | F144: 0.0327846321 | G144: 0.008878196035 | H144: 0.02416187973 | I144: 0.005323816006 | J144: 5.592675075e-05 | K144: 1.992951368e-08 | L144: 0.0001325642336 | M144: 0.02905629856 | N144: 0.003085644258 | O144: 0.129435365 | P144: 0.06190586924 | Q144: 0.1422515817 | R144: 0.0002748690054 | S144: 0.05141747702 | T144: 4.087213411e-05 | U144: 0.01241194417 | V144: 0.005355968265 | W144: 0.01134502692 | X144: 0.02199865894 | Y144: 0.00889186474 | Z144: 0.004424228778 | AA144: 0.009531263483 | AB144: 0.05800039818 | AC144: 2.450434049e-06 | AD144: 0.0004441557472 | AE144: 0.006384884355 | AF144: 0.1268187156 | AG144: 0.00867683077 | AH144: 0.07658824578 | AI144: 0.009335023036 | AJ144: 6.166495292e-08 | AK144: 0.001756015093
A147: Beta Ponderado | B147: =SUMPRODUCT(B141:AK141,B144:AK144) -> 0.7490323839
A148: Mkt_Cap_Tot | B148: =SUM(B135:AK135) -> 23768768.65
A149: Debt_Tot | B149: =SUM(B138:AK138) -> 15632066.53
A150: Corp_Tax | B150: 0.21
A151: Beta_U | B151: =B147/(1+((1-B150)*B149/B148)) -> 0.4929267278

Sheet Riesgo Pais
B1: Riesgo país
B3: Fechas | C3: COLOM CDS USD SR 10Y CBIN Corp | D3: US CDS EUR SR 10Y Corp
B4: 43617
B5: 43618
B6: 43619 | C6: 193.61 | D6: 23.875
B7: 43620 | C7: 190.809 | D7: 23.785
B8: 43621 | C8: 189.994 | D8: 23.62
B9: 43622 | C9: 189.839 | D9: 24.02
B10: 43623 | C10: 189.025 | D10: 26.39
B11: 43624
B12: 43625
B13: 43626 | C13: 186.178 | D13: 26.31
B14: 43627 | C14: 183.487 | D14: 26.885
B15: 43628 | C15: 184.754 | D15: 26.63
B16: 43629 | C16: 185.248 | D16: 25.825
B17: 43630 | C17: 186.219 | D17: 25.825
B18: 43631
B19: 43632
B20: 43633 | C20: 186.696 | D20: 24.605
B21: 43634 | C21: 179.644 | D21: 24.525
B22: 43635 | C22: 173.905 | D22: 24.485
B23: 43636 | C23: 171.85 | D23: 24.21
B24: 43637 | C24: 170.148 | D24: 24.33
B25: 43638
B26: 43639
B27: 43640 | C27: 171.928 | D27: 24.115
B28: 43641 | C28: 173.373 | D28: 24.145
B29: 43642 | C29: 172.74 | D29: 24.225
B30: 43643 | C30: 171.055 | D30: 24.015
B31: 43644 | C31: 169.954 | D31: 24.48
B32: 43645
B33: 43646
B34: 43647 | C34: 166.62 | D34: 24.35
B35: 43648 | C35: 166.556 | D35: 24.21
B36: 43649 | C36: 166.959 | D36: 24.3
B37: 43650 | C37: 166.85 | D37: 24.415
B38: 43651 | C38: 166.697 | D38: 24.39
B39: 43652
B40: 43653
B41: 43654 | C41: 167.614 | D41: 24.41
B42: 43655 | C42: 166.845 | D42: 24.395
B43: 43656 | C43: 165.276 | D43: 24.42
B44: 43657 | C44: 163.822 | D44: 24.145
B45: 43658 | C45: 163.23 | D45: 24.355
B46: 43659
B47: 43660
B48: 43661 | C48: 160.623 | D48: 24.25
B49: 43662 | C49: 160.623 | D49: 24.52
B50: 43663 | C50: 160.322 | D50: 24.525
B51: 43664 | C51: 160.916 | D51: 24.53
B52: 43665 | C52: 160.4 | D52: 24.53
B53: 43666
B54: 43667
B55: 43668 | C55: 148.804 | D55: 24.53
B56: 43669 | C56: 148.015 | D56: 24.85
B57: 43670 | C57: 146.614 | D57: 24.865
B58: 43671 | C58: 158.103 | D58: 24.955
B59: 43672 | C59: 158.592 | D59: 24.885
B60: 43673
B61: 43674
B62: 43675 | C62: 146.496 | D62: 25.23
B63: 43676 | C63: 146.383 | D63: 25.25
B64: 43677 | C64: 148.568 | D64: 24.69
B65: 43678 | C65: 168.203 | D65: 24.76
B66: 43679 | C66: 172.835 | D66: 24.9
B67: 43680
B68: 43681
B69: 43682 | C69: 178.82 | D69: 24.895
B70: 43683 | C70: 180.251 | D70: 25.315
B71: 43684 | C71: 168.827 | D71: 25.425
B72: 43685 | C72: 163.095 | D72: 25.685
B73: 43686 | C73: 162.702 | D73: 25.68
B74: 43687
B75: 43688
B76: 43689 | C76: 169.008 | D76: 25.415
B77: 43690 | C77: 165.117 | D77: 25.605
B78: 43691 | C78: 167.764 | D78: 24.66
B79: 43692 | C79: 168.527 | D79: 24.67
B80: 43693 | C80: 166.729 | D80: 24.405
B81: 43694
B82: 43695
B83: 43696 | C83: 169.166 | D83: 24.78
B84: 43697 | C84: 177.446 | D84: 24.855
B85: 43698 | C85: 164.91 | D85: 24.735
B86: 43699 | C86: 164.171 | D86: 24.925
B87: 43700 | C87: 166.52 | D87: 23.56
B88: 43701
B89: 43702
B90: 43703 | C90: 166.671 | D90: 23.67
B91: 43704 | C91: 175.521 | D91: 23.89
B92: 43705 | C92: 174.113 | D92: 23.97
B93: 43706 | C93: 162.463 | D93: 23.92
B94: 43707 | C94: 171.077 | D94: 23.95
B95: 43708
B96: 43709
B97: 43710 | C97: 170.643 | D97: 22.455
B98: 43711 | C98: 169.386 | D98: 22.41
B99: 43712 | C99: 164.735 | D99: 22.405
B100: 43713 | C100: 151 | D100: 22.34
B101: 43714 | C101: 158.999 | D101: 22.225
B102: 43715
B103: 43716
B104: 43717 | C104: 147.813 | D104: 24.605
B105: 43718 | C105: 148.446 | D105: 25.17
B106: 43719 | C106: 148.304 | D106: 24.695
B107: 43720 | C107: 146.453 | D107: 24.48
B108: 43721 | C108: 155.784 | D108: 24.13
B109: 43722
B110: 43723
B111: 43724 | C111: 146.563 | D111: 24.065
B112: 43725 | C112: 145.804 | D112: 24.315
B113: 43726 | C113: 156.057 | D113: 24.085
B114: 43727 | C114: 155.159 | D114: 22.86
B115: 43728 | C115: 163.011 | D115: 21.785
B116: 43729
B117: 43730
B118: 43731 | C118: 155.806 | D118: 23.585
B119: 43732 | C119: 158.693 | D119: 23.68
B120: 43733 | C120: 158.689 | D120: 23.98
B121: 43734 | C121: 168.522 | D121: 25.01
B122: 43735 | C122: 158.842 | D122: 23.575
B123: 43736
B124: 43737
B125: 43738 | C125: 158.565 | D125: 24.455
B126: 43739 | C126: 158.893 | D126: 20.91
B127: 43740 | C127: 160.364 | D127: 18.055
B128: 43741 | C128: 160.867 | D128: 18.835
B129: 43742 | C129: 161.24 | D129: 18.645
B130: 43743
B131: 43744
B132: 43745 | C132: 169.415 | D132: 19.715
B133: 43746 | C133: 160.341 | D133: 17.725
B134: 43747 | C134: 159.977 | D134: 17.015
B135: 43748 | C135: 158.397 | D135: 15.955
B136: 43749 | C136: 156.034 | D136: 18.525
B137: 43750
B138: 43751
B139: 43752 | C139: 156.964 | D139: 16.365
B140: 43753 | C140: 153.604 | D140: 18.53
B141: 43754 | C141: 163.214 | D141: 17.335
B142: 43755 | C142: 161.638 | D142: 17.31
B143: 43756 | C143: 161.522 | D143: 18.25
B144: 43757
B145: 43758
B146: 43759 | C146: 155.932 | D146: 18.345
B147: 43760 | C147: 160.212 | D147: 18.57
B148: 43761 | C148: 157.489 | D148: 18.545
B149: 43762 | C149: 154.842 | D149: 18.61
B150: 43763 | C150: 151.058 | D150: 18.4
B151: 43764
B152: 43765
B153: 43766 | C153: 148.388 | D153: 18.7
B154: 43767 | C154: 147.878 | D154: 18.52
B155: 43768 | C155: 148.319 | D155: 18.23
B156: 43769 | C156: 142.492 | D156: 22.7
B157: 43770 | C157: 141.827 | D157: 17.44
B158: 43771
B159: 43772
B160: 43773 | C160: 137.619 | D160: 18.31
B161: 43774 | C161: 147.061 | D161: 18.505
B162: 43775 | C162: 138.4 | D162: 18.165
B163: 43776 | C163: 144.852 | D163: 18.59
B164: 43777 | C164: 144.448 | D164: 18.7
B165: 43778
B166: 43779
B167: 43780 | C167: 145.598 | D167: 18.645
B168: 43781 | C168: 148.647 | D168: 18.275
B169: 43782 | C169: 151.022 | D169: 18.26
B170: 43783 | C170: 153.385 | D170: 18.51
B171: 43784 | C171: 152.798 | D171: 18.47
B172: 43785
B173: 43786
B174: 43787 | C174: 154.671 | D174: 18.32
B175: 43788 | C175: 157.863 | D175: 18.62
B176: 43789 | C176: 161.263 | D176: 18.43
B177: 43790 | C177: 159.762 | D177: 18.355
B178: 43791 | C178: 158.036 | D178: 18.445
B179: 43792
B180: 43793
B181: 43794 | C181: 157.758 | D181: 18.5
B182: 43795 | C182: 158.167 | D182: 18.49
B183: 43796 | C183: 159.687 | D183: 21.55
B184: 43797 | C184: 160.013 | D184: 21.44
B185: 43798 | C185: 159.823 | D185: 18.165
B186: 43799
B187: 43800
B188: 43801 | C188: 159.441 | D188: 18.255
B189: 43802 | C189: 161.282 | D189: 18.6
B190: 43803 | C190: 149.441 | D190: 18.24
B191: 43804 | C191: 154.821 | D191: 19.535
B192: 43805 | C192: 151.612 | D192: 18.265
B193: 43806
B194: 43807
B195: 43808 | C195: 149.73 | D195: 18.32
B196: 43809 | C196: 140.641 | D196: 18.38
B197: 43810 | C197: 147.024 | D197: 18.31
B198: 43811 | C198: 135.228 | D198: 18.585
B199: 43812 | C199: 135.457 | D199: 18.62
B200: 43813
B201: 43814
... 168 more rows

Sheet Riesgo Remuneracion
B2: Sector | C2: Rr
B3: SISFV | C3: 0

Sheet Tx
B2: Tasa de impuestos
B3: Año | C3: Tx
B4: 2020 | C4: 0.32
B5: 2021 | C5: 0.31
B6: 2022 | C6: 0.3

Sheet Inflacion
B1: Inflación
B3: Dias | C3: 3650
C5: CEC COP | H5: CEC UVR | M5: Yield COP | P5: Yield UVR
B6: FECHA | C6: bO | D6: b1 | E6: b2 | F6: t | H6: bO | I6: b1 | J6: b2 | K6: t | M6: COP CONT | N6: COP DISC | P6: UVR CONT | Q6: UVR DISC | S6: BEI COP | U6: Fecha | V6: USGG10YR Index | W6: USGGT10YR Index | X6: BEI USD
B7: 2019-06-01 | C7: 8.641655 | D7: -4.64616 | E7: 0.000202 | F7: 5.36461 | H7: 4.330511 | I7: -3.413837 | J7: -0.107306 | K7: 3.244905 | M7: =(C7+((D7+E7)*((1-EXP((-$C$3/365)/F7))/(($C$3/365)/F7)))-(E7*EXP((-$C$3/365)/F7)))/100 -> 0.0653566771 | N7: =EXP(M7)-1 -> 0.06753972346 | P7: =(H7+((I7+J7)*((1-EXP((-$C$3/365)/K7))/(($C$3/365)/K7)))-(J7*EXP((-$C$3/365)/K7)))/100 -> 0.03245276575 | Q7: =EXP(P7)-1 -> 0.03298509972 | S7: =((1+N7)/(1+Q7))-1 -> 0.03345123153 | U7: 43617
B8: 2019-06-02 | C8: 8.641655 | D8: -4.64616 | E8: 0.000202 | F8: 5.36461 | H8: 4.330511 | I8: -3.413837 | J8: -0.107306 | K8: 3.244905 | M8: =(C8+((D8+E8)*((1-EXP((-$C$3/365)/F8))/(($C$3/365)/F8)))-(E8*EXP((-$C$3/365)/F8)))/100 -> 0.0653566771 | N8: =EXP(M8)-1 -> 0.06753972346 | P8: =(H8+((I8+J8)*((1-EXP((-$C$3/365)/K8))/(($C$3/365)/K8)))-(J8*EXP((-$C$3/365)/K8)))/100 -> 0.03245276575 | Q8: =EXP(P8)-1 -> 0.03298509972 | S8: 0.03345123153 | U8: 43618
B9: 2019-06-03 | C9: 8.641655 | D9: -4.64616 | E9: 0.000202 | F9: 5.36461 | H9: 4.330511 | I9: -3.413837 | J9: -0.107306 | K9: 3.244905 | M9: 0.0653566771 | N9: 0.06753972346 | P9: 0.03245276575 | Q9: 0.03298509972 | S9: 0.03345123153 | U9: 43619 | V9: 2.071 | W9: 0.3385 | X9: =((1+V9/100)/(1+W9/100))-1 -> 0.01726655272
B10: 2019-06-04 | C10: 8.597665 | D10: -4.651587 | E10: 0.0002 | F10: 5.418256 | H10: 4.334589 | I10: -3.412612 | J10: -0.137087 | K10: 3.255918 | M10: 0.06475410897 | N10: 0.06689665181 | P10: 0.03238771441 | Q10: 0.03291790484 | S10: 0.03289588341 | U10: 43620 | V10: 2.1296 | W10: 0.3714 | X10: 0.01751694208
B11: 2019-06-05 | C11: 8.548146 | D11: -4.605089 | E11: 2.3e-05 | F11: 5.568193 | H11: 4.300764 | I11: -3.388447 | J11: -0.137225 | K11: 3.259174 | M11: 0.06409545352 | N11: 0.06619416589 | P11: 0.03211501677 | Q11: 0.03263626896 | S11: 0.03249730611 | U11: 43621 | V11: 2.1348 | W11: 0.3705 | X11: 0.01757787398
B12: 2019-06-06 | C12: 8.531081 | D12: -4.559044 | E12: -2.5e-05 | F12: 5.711863 | H12: 4.295857 | I12: -3.357539 | J12: -0.160871 | K12: 3.269456 | M12: 0.06379192679 | N12: 0.06587059657 | P12: 0.03207092804 | Q12: 0.03259074235 | S12: 0.03222947181 | U12: 43622 | V12: 2.1174 | W12: 0.3639 | X12: 0.0174714215
B13: 2019-06-07 | C13: 8.511114 | D13: -4.527737 | E13: -4.4e-05 | F13: 5.857186 | H13: 4.306124 | I13: -3.354371 | J13: -0.170323 | K13: 3.37854 | M13: 0.06340068178 | N13: 0.06545366158 | P13: 0.03185835598 | Q13: 0.03237126573 | S13: 0.0320450568 | U13: 43623 | V13: 2.0809 | W13: 0.3312 | X13: 0.01743924123
B14: 2019-06-08 | C14: 8.511114 | D14: -4.527737 | E14: -4.4e-05 | F14: 5.857186 | H14: 4.306124 | I14: -3.354371 | J14: -0.170323 | K14: 3.37854 | M14: 0.06340068178 | N14: 0.06545366158 | P14: 0.03185835598 | Q14: 0.03237126573 | S14: 0.0320450568 | U14: 43624
B15: 2019-06-09 | C15: 8.511114 | D15: -4.527737 | E15: -4.4e-05 | F15: 5.857186 | H15: 4.306124 | I15: -3.354371 | J15: -0.170323 | K15: 3.37854 | M15: 0.06340068178 | N15: 0.06545366158 | P15: 0.03185835598 | Q15: 0.03237126573 | S15: 0.0320450568 | U15: 43625
B16: 2019-06-10 | C16: 8.456499 | D16: -4.503226 | E16: -8.9e-05 | F16: 5.915761 | H16: 4.326773 | I16: -3.379108 | J16: -0.241271 | K16: 3.435821 | M16: 0.06283835389 | N16: 0.0648546957 | P16: 0.0316373976 | Q16: 0.03214317985 | S16: 0.03169280822 | U16: 43626 | V16: 2.1484 | W16: 0.4079 | X16: 0.01733429342
B17: 2019-06-11 | C17: 8.417733 | D17: -4.504847 | E17: -0.000263 | F17: 5.974919 | H17: 4.331058 | I17: -3.369458 | J17: -0.285718 | K17: 3.51031 | M17: 0.06230880146 | N17: 0.06429094859 | P17: 0.03138837363 | Q17: 0.03188618346 | S17: 0.03140342961 | U17: 43627 | V17: 2.1431 | W17: 0.4183 | X17: 0.01717615216
B18: 2019-06-12 | C18: 8.461653 | D18: -4.565082 | E18: -0.000266 | F18: 6.034668 | H18: 4.371796 | I18: -3.388646 | J18: -0.50016 | K18: 3.555816 | M18: 0.0623203305 | N18: 0.06430321891 | P18: 0.03102111246 | Q18: 0.03150728131 | S18: 0.03179418914 | U18: 43628 | V18: 2.1205 | W18: 0.4125 | X18: 0.01700983443
B19: 2019-06-13 | C19: 8.420547 | D19: -4.51952 | E19: -0.001735 | F19: 6.351208 | H19: 4.337428 | I19: -3.342171 | J19: -0.705156 | K19: 3.566311 | M19: 0.06144089488 | N19: 0.0633676442 | P19: 0.03024155402 | Q19: 0.03070347445 | S19: 0.03169114159 | U19: 43629 | V19: 2.0945 | W19: 0.4083 | X19: 0.01679343242
B20: 2019-06-14 | C20: 8.355329 | D20: -4.430292 | E20: -0.003969 | F20: 6.414814 | H20: 4.345067 | I20: -3.339723 | J20: -0.843652 | K20: 3.624139 | M20: 0.06110062066 | N20: 0.06300586916 | P20: 0.02978415628 | Q20: 0.03023214082 | S20: 0.03181198396 | U20: 43630 | V20: 2.0804 | W20: 0.4348 | X20: 0.01638475907
B21: 2019-06-17 | C21: 8.452223 | D21: -4.500935 | E21: -0.003929 | F21: 6.350666 | H21: 4.3681 | I21: -3.294661 | J21: -1.144574 | K21: 3.648504 | M21: 0.06184587949 | N21: 0.06379837895 | P21: 0.02926779125 | Q21: 0.02970030229 | S21: 0.0331145641 | U21: 43631
B22: 2019-06-18 | C22: 8.491567 | D22: -4.545944 | E22: -0.003968 | F22: 6.414173 | H22: 4.336293 | I22: -3.234791 | J22: -1.145525 | K22: 3.50293 | M22: 0.06187853275 | N22: 0.06383311599 | P22: 0.02956182008 | Q22: 0.03000310838 | S22: 0.03284456847 | U22: 43632
B23: 2019-06-19 | C23: 8.534876 | D23: -4.605228 | E23: -0.004008 | F23: 6.478315 | H23: 4.370274 | I23: -3.250133 | J23: -1.159284 | K23: 3.499427 | M23: 0.06187560054 | N23: 0.06382999662 | P23: 0.02982359853 | Q23: 0.03027277629 | S23: 0.03257119969 | U23: 43633 | V23: 2.0942 | W23: 0.4657 | X23: 0.0162095123
B24: 2019-06-20 | C24: 8.449731 | D24: -4.556963 | E24: -0.017189 | F24: 6.797864 | H24: 4.398833 | I24: -3.277211 | J24: -1.530305 | K24: 3.458721 | M24: 0.06058423152 | N24: 0.06245708618 | P24: 0.02913286932 | Q24: 0.02956138251 | S24: 0.03195118254 | U24: 43634 | V24: 2.0595 | W24: 0.4076 | X24: 0.01645194188
B25: 2019-06-21 | C25: 8.490452 | D25: -4.59414 | E25: -0.028476 | F25: 6.978755 | H25: 4.395814 | I25: -3.275209 | J25: -1.562484 | K25: 3.468376 | M25: 0.06040998068 | N25: 0.06227196827 | P25: 0.02899238002 | Q25: 0.02941675031 | S25: 0.03191634287 | U25: 43635 | V25: 2.0233 | W25: 0.3305 | X25: 0.01687223726
B26: 2019-06-25 | C26: 8.525316 | D26: -4.576782 | E26: -0.047025 | F26: 7.048665 | H26: 4.342953 | I26: -3.187867 | J26: -1.564048 | K26: 3.220608 | M26: 0.0606633509 | N26: 0.06254115044 | P26: 0.0295125432 | Q26: 0.02995235429 | S26: 0.03164107157 | U26: 43636 | V26: 2.0284 | W26: 0.2795 | X26: 0.01744025449
B27: 2019-06-26 | C27: 8.491386 | D27: -4.529814 | E27: -0.074438 | F27: 7.124754 | H27: 4.275836 | I27: -3.112542 | J27: -1.748243 | K27: 2.97574 | M27: 0.06035328937 | N27: 0.06221174839 | P27: 0.02940304589 | Q27: 0.02983958345 | S27: 0.03143418204 | U27: 43637 | V27: 2.054 | W27: 0.3177 | X27: 0.01730801244
B28: 2019-06-27 | C28: 8.551314 | D28: -4.554817 | E28: -0.075182 | F28: 7.196002 | H28: 4.255956 | I28: -3.096358 | J28: -1.63557 | K28: 2.923118 | M28: 0.06068436084 | N28: 0.06256347461 | P28: 0.02971409722 | Q28: 0.03015996625 | S28: 0.0314548317 | U28: 43638
B29: 2019-06-28 | C29: 8.49667 | D29: -4.481338 | E29: -0.155418 | F29: 7.292295 | H29: 4.224795 | I29: -2.893245 | J29: -2.823661 | K29: 2.387755 | M29: 0.06012928165 | N29: 0.0619738314 | P29: 0.02923306258 | Q29: 0.02966454279 | S29: 0.03137846091 | U29: 43639
B30: 2019-07-02 | C30: 8.418558 | D30: -4.40416 | E30: -0.411612 | F30: 7.374621 | H30: 4.276352 | I30: -2.905511 | J30: -3.049091 | K30: 2.63201 | M30: 0.05888345938 | N30: 0.06065162454 | P30: 0.02812430361 | Q30: 0.02852352566 | S30: 0.03123710647 | U30: 43640 | V30: 2.0143 | W30: 0.295 | X30: 0.01714242983
B31: 2019-07-03 | C31: 8.233778 | D31: -4.253245 | E31: -0.415728 | F31: 7.448367 | H31: 4.334832 | I31: -3.013968 | J31: -3.046038 | K31: 2.997449 | M31: 0.05772989599 | N31: 0.05942880109 | P31: 0.02691349285 | Q31: 0.02727893195 | S31: 0.03129614376 | U31: 43641 | V31: 1.985 | W31: 0.2932 | X31: 0.01686854144
B32: 2019-07-04 | C32: 8.231237 | D32: -4.268266 | E32: -0.419885 | F32: 7.52285 | H32: 4.414314 | I32: -3.183353 | J32: -3.048354 | K32: 3.31832 | M32: 0.0574897477 | N32: 0.05917441162 | P32: 0.02597722463 | Q32: 0.02631757345 | S32: 0.0320142995 | U32: 43642 | V32: 2.0468 | W32: 0.3294 | X32: 0.01711761458
B33: 2019-07-05 | C33: 8.410017 | D33: -4.416471 | E33: -0.415686 | F33: 7.447621 | H33: 4.433071 | I33: -3.193029 | J33: -2.876699 | K33: 3.333042 | M33: 0.058595418 | N33: 0.06034615698 | P33: 0.02653886132 | Q33: 0.02689415295 | S33: 0.03257590272 | U33: 43643 | V33: 2.014 | W33: 0.3179 | X33: 0.01690725185
B34: 2019-07-08 | C34: 8.44919 | D34: -4.427935 | E34: -0.419843 | F34: 7.522097 | H34: 4.448288 | I34: -3.225876 | J34: -2.835322 | K34: 3.366311 | M34: 0.05878739394 | N34: 0.06054973747 | P34: 0.02657887548 | Q34: 0.02693524407 | S34: 0.03273282672 | U34: 43644 | V34: 2.0051 | W34: 0.3005 | X34: 0.01699493023
B35: 2019-07-09 | C35: 8.48308 | D35: -4.468785 | E35: -0.415645 | F35: 7.446876 | H35: 4.234159 | I35: -2.887476 | J35: -3.02539 | K35: 2.763172 | M35: 0.05903956154 | N35: 0.06081720747 | P35: 0.02725239921 | Q35: 0.02762714232 | S35: 0.03229777006 | U35: 43645
B36: 2019-07-10 | C36: 8.437097 | D36: -4.424097 | E36: -0.476302 | F36: 7.521345 | H36: 4.152632 | I36: -2.804929 | J36: -3.024729 | K36: 2.650716 | M36: 0.05852604463 | N36: 0.06027259974 | P36: 0.02712433354 | Q36: 0.02749554698 | S36: 0.03189994629 | U36: 43646
B37: 2019-07-11 | C37: 8.510085 | D37: -4.486339 | E37: -0.471539 | F37: 7.446132 | H37: 4.042151 | I37: -2.627493 | J37: -3.019487 | K37: 2.353876 | M37: 0.0590526725 | N37: 0.0608311159 | P37: 0.02775057822 | Q37: 0.02813921212 | S37: 0.03179715683 | U37: 43647 | V37: 2.024 | W37: 0.3286 | X37: 0.01689847162
B38: 2019-07-12 | C38: 8.587155 | D38: -4.578565 | E38: -0.466824 | F38: 7.371671 | H38: 4.000844 | I38: -2.633568 | J38: -2.779123 | K38: 2.388195 | M38: 0.05945991738 | N38: 0.06126322192 | P38: 0.02770029212 | Q38: 0.02808751231 | S38: 0.03226934401 | U38: 43648 | V38: 1.974 | W38: 0.3155 | X38: 0.01653283889
B39: 2019-07-15 | C39: 8.532766 | D39: -4.523954 | E39: -0.471492 | F39: 7.445388 | H39: 3.963934 | I39: -2.586088 | J39: -3.000667 | K39: 2.252767 | M39: 0.05907393152 | N39: 0.06085366837 | P39: 0.02755660914 | Q39: 0.02793980425 | S39: 0.03201925247 | U39: 43649 | V39: 1.9498 | W39: 0.2893 | X39: 0.01655710031
B40: 2019-07-16 | C40: 8.579049 | D40: -4.569194 | E40: -0.476207 | F40: 7.398927 | H40: 3.963849 | I40: -2.527362 | J40: -3.233377 | K40: 2.123301 | M40: 0.05935516753 | N40: 0.06115206058 | P40: 0.02780815135 | Q40: 0.02819840703 | S40: 0.03204989749 | U40: 43650 | V40: 1.9498 | W40: 0.2893 | X40: 0.01655710031
B41: 2019-07-17 | C41: 8.531193 | D41: -4.523502 | E41: -0.507888 | F41: 7.472916 | H41: 3.98013 | I41: -2.507964 | J41: -3.390655 | K41: 2.156933 | M41: 0.05890835076 | N41: 0.06067802595 | P41: 0.02753041622 | Q41: 0.02791287986 | S41: 0.03187541156 | U41: 43651 | V41: 2.0338 | W41: 0.3261 | X41: 0.01702149291
B42: 2019-07-18 | C42: 8.611906 | D42: -4.605442 | E42: -0.512967 | F42: 7.538009 | H42: 3.998702 | I42: -2.519888 | J42: -3.378506 | K42: 2.276933 | M42: 0.05913660689 | N42: 0.06092015985 | P42: 0.02714118083 | Q42: 0.02751285764 | S42: 0.03251278265 | U42: 43652
B43: 2019-07-19 | C43: 8.558942 | D43: -4.559315 | E43: -0.607869 | F43: 7.613381 | H43: 4.09167 | I43: -2.767137 | J43: -2.950507 | K43: 2.82115 | M43: 0.05846194837 | N43: 0.06020464241 | P43: 0.02610425601 | Q43: 0.02644795626 | S43: 0.03288689499 | U43: 43653
B44: 2019-07-22 | C44: 8.517544 | D44: -4.513722 | E44: -0.627871 | F44: 7.689515 | H44: 4.203766 | I44: -2.857937 | J44: -2.906393 | K44: 3.266082 | M44: 0.05811925199 | N44: 0.05984137637 | P44: 0.02545239374 | Q44: 0.0257790716 | S44: 0.03320627776 | U44: 43654 | V44: 2.0476 | W44: 0.3365 | X44: 0.01705361459
B45: 2019-07-23 | C45: 8.539063 | D45: -4.533013 | E45: -0.63415 | F45: 7.76641 | H45: 4.234257 | I45: -2.94152 | J45: -2.667666 | K45: 3.566308 | M45: 0.05808344134 | N45: 0.05980342344 | P45: 0.02516575479 | Q45: 0.0254850855 | S45: 0.03346546764 | U45: 43655 | V45: 2.0648 | W45: 0.3339 | X45: 0.01725139758
B46: 2019-07-24 | C46: 8.480028 | D46: -4.487683 | E46: -0.640492 | F46: 7.844074 | H46: 4.250392 | I46: -2.934017 | J46: -2.674264 | K46: 3.690804 | M46: 0.05760654276 | N46: 0.05929812519 | P46: 0.02496325213 | Q46: 0.02527744307 | S46: 0.03318192783 | U46: 43656 | V46: 2.0613 | W46: 0.3127 | X46: 0.01743149173
B47: 2019-07-25 | C47: 8.558215 | D47: -4.532559 | E47: -0.646897 | F47: 7.922514 | H47: 4.249238 | I47: -2.932584 | J47: -2.57528 | K47: 3.783694 | M47: 0.05799237921 | N47: 0.05970691988 | P47: 0.02496754038 | Q47: 0.02528183973 | S47: 0.03357621175 | U47: 43657 | V47: 2.1378 | W47: 0.3613 | X47: 0.01770104612
B48: 2019-07-26 | C48: 8.524381 | D48: -4.487233 | E48: -0.653366 | F48: 8.00173 | H48: 4.255535 | I48: -2.968181 | J48: -2.544604 | K48: 3.912878 | M48: 0.05777073917 | N48: 0.05947207241 | P48: 0.02463491904 | Q48: 0.02494086582 | S48: 0.03369092574 | U48: 43658 | V48: 2.1219 | W48: 0.3381 | X48: 0.01777789294
B49: 2019-07-29 | C49: 8.597736 | D49: -4.532105 | E49: -0.659899 | F49: 7.921723 | H49: 4.153256 | I49: -2.858902 | J49: -2.460697 | K49: 3.92786 | M49: 0.05835435417 | N49: 0.06009057667 | P49: 0.02420530234 | Q49: 0.02450062868 | S49: 0.03473882494 | U49: 43659
B50: 2019-07-30 | C50: 8.683713 | D50: -4.620965 | E50: -0.622853 | F50: 7.842506 | H50: 3.903506 | I50: -2.628692 | J50: -2.350411 | K50: 3.088231 | M50: 0.05894304967 | N50: 0.06071483096 | P50: 0.02518405692 | Q50: 0.02550385424 | S50: 0.03433529438 | U50: 43660
B51: 2019-07-31 | C51: 8.622971 | D51: -4.574755 | E51: -0.561703 | F51: 7.764081 | H51: 3.850388 | I51: -2.582413 | J51: -2.195482 | K51: 3.045716 | M51: 0.05889909632 | N51: 0.06066821001 | P51: 0.02532093493 | Q51: 0.02564423277 | S51: 0.03414827103 | U51: 43661 | V51: 2.0887 | W51: 0.2948 | X51: 0.01788627127
B52: 2019-08-01 | C52: 8.536733 | D52: -4.480283 | E52: -0.447722 | F52: 7.686496 | H52: 3.789951 | I52: -2.500096 | J52: -2.182434 | K52: 2.99827 | M52: 0.0590203399 | N52: 0.06079681702 | P52: 0.02513696843 | Q52: 0.02545556594 | S52: 0.03446395168 | U52: 43662 | V52: 2.1026 | W52: 0.3004 | X52: 0.01796802406
B53: 2019-08-02 | C53: 8.322113 | D53: -4.231889 | E53: -0.443245 | F53: 7.609633 | H53: 3.737389 | I53: -2.44127 | J53: -2.142373 | K53: 2.974149 | M53: 0.05839574744 | N53: 0.0601344582 | P53: 0.02495633266 | Q53: 0.02527034872 | S53: 0.03400479642 | U53: 43663 | V53: 2.0451 | W53: 0.284 | X53: 0.0175611264
B54: 2019-08-05 | C54: 8.28221 | D54: -4.186105 | E54: -0.118587 | F54: 7.533075 | H54: 3.641409 | I54: -2.352898 | J54: -1.98315 | K54: 2.887645 | M54: 0.05930696085 | N54: 0.06110090719 | P54: 0.02490687713 | Q54: 0.02521964469 | S54: 0.03499861 | U54: 43664 | V54: 2.0242 | W54: 0.2514 | X54: 0.01768354357
B55: 2019-08-06 | C55: 8.2041 | D55: -4.126854 | E55: -0.074429 | F55: 7.210402 | H55: 3.650918 | I55: -2.371696 | J55: -2.158882 | K55: 2.89213 | M55: 0.05950278465 | N55: 0.06130871635 | P55: 0.024499071 | Q55: 0.02480163907 | S55: 0.03562355474 | U55: 43665 | V55: 2.0552 | W55: 0.2603 | X55: 0.01790240005
B56: 2019-08-08 | C56: 8.122059 | D56: -4.051376 | E56: -0.073685 | F56: 7.16202 | H56: 3.706952 | I56: -2.373689 | J56: -1.992115 | K56: 3.36142 | M56: 0.0591719527 | N56: 0.06095765959 | P56: 0.02416039712 | Q56: 0.02445462428 | S56: 0.03563167606 | U56: 43666
B57: 2019-08-09 | C57: 8.098496 | D57: -4.003872 | E57: -0.10853 | F57: 7.242244 | H57: 3.677081 | I57: -2.371617 | J57: -1.854928 | K57: 3.242126 | M57: 0.05896163507 | N57: 0.06073454495 | P57: 0.02454360735 | Q57: 0.02484728101 | S57: 0.03501718218 | U57: 43667
B58: 2019-08-12 | C58: 8.191334 | D58: -4.043824 | E58: -0.179872 | F58: 7.314665 | H58: 3.613844 | I58: -2.335334 | J58: -1.720371 | K58: 3.008751 | M58: 0.05935008936 | N58: 0.06114667188 | P58: 0.02499509423 | Q58: 0.02531009058 | S58: 0.03495194442 | U58: 43668 | V58: 2.0464 | W58: 0.2468 | X58: 0.01795169522
B59: 2019-08-13 | C59: 8.144774 | D59: -4.002062 | E59: -0.253371 | F59: 7.395197 | H59: 3.626684 | I59: -2.324084 | J59: -1.829509 | K59: 3.025738 | M59: 0.05877341736 | N59: 0.06053491472 | P59: 0.0248318193 | Q59: 0.02514269681 | S59: 0.03452418675 | U59: 43669 | V59: 2.0812 | W59: 0.2707 | X59: 0.01805612208
B60: 2019-08-14 | C60: 8.165193 | D60: -4.038458 | E60: -0.310132 | F60: 7.468827 | H60: 3.666371 | I60: -2.229032 | J60: -2.187619 | K60: 3.033308 | M60: 0.05849985067 | N60: 0.06024482737 | P60: 0.02457189659 | Q60: 0.02487627357 | S60: 0.03451007182 | U60: 43670 | V60: 2.0428 | W60: 0.2508 | X60: 0.01787516908
B61: 2019-08-15 | C61: 8.173843 | D61: -4.043875 | E61: -0.447606 | F61: 7.542837 | H61: 3.684046 | I61: -2.253319 | J61: -2.360225 | K61: 3.032133 | M61: 0.05804692244 | N61: 0.05976472129 | P61: 0.02424082501 | Q61: 0.02453702232 | S61: 0.03438401756 | U61: 43671 | V61: 2.081 | W61: 0.2811 | X61: 0.01794854664
B62: 2019-08-16 | C62: 8.224077 | D62: -4.078168 | E62: -0.608164 | F62: 7.633664 | H62: 3.730745 | I62: -2.345938 | J62: -2.353781 | K62: 3.254078 | M62: 0.05776049364 | N62: 0.05946121762 | P62: 0.02381126034 | Q62: 0.02409701193 | S62: 0.03453208562 | U62: 43672 | V62: 2.0703 | W62: 0.2882 | X62: 0.01776978747
B63: 2019-08-20 | C63: 8.277425 | D63: -4.11895 | E63: -0.630372 | F63: 7.710001 | H63: 3.741834 | I63: -2.352988 | J63: -2.360446 | K63: 3.257332 | M63: 0.05788925785 | N63: 0.0595976471 | P63: 0.0238735862 | Q63: 0.02416084164 | S63: 0.03460082051 | U63: 43673
B64: 2019-08-21 | C64: 8.35216 | D64: -4.159609 | E64: -0.770528 | F64: 7.787091 | H64: 3.755826 | I64: -2.355136 | J64: -2.362807 | K64: 3.301976 | M64: 0.05789335996 | N64: 0.05960199369 | P64: 0.02387688085 | Q64: 0.0241642159 | S64: 0.03460165591 | U64: 43674
B65: 2019-08-22 | C65: 8.435682 | D65: -4.201705 | E65: -0.778233 | F65: 7.789641 | H65: 3.708504 | I65: -2.311934 | J65: -2.128158 | K65: 3.256392 | M65: 0.05846572274 | N65: 0.06020864402 | P65: 0.02428399914 | Q65: 0.02458125677 | S65: 0.03477263224 | U65: 43675 | V65: 2.065 | W65: 0.2938 | X65: 0.01766011458
B66: 2019-08-23 | C66: 8.489877 | D66: -4.243722 | E66: -0.786015 | F66: 7.81277 | H66: 3.670443 | I66: -2.170257 | J66: -2.517055 | K66: 2.79718 | M66: 0.05871438988 | N66: 0.06047231586 | P66: 0.02466562445 | Q66: 0.02497233753 | S66: 0.03463505992 | U66: 43676 | V66: 2.058 | W66: 0.2779 | X66: 0.01775166811
B67: 2019-08-26 | C67: 8.501065 | D67: -4.268701 | E67: -0.793875 | F67: 7.890898 | H67: 3.675232 | I67: -2.19006 | J67: -2.519572 | K67: 2.851244 | M67: 0.05854715882 | N67: 0.06029498678 | P67: 0.0244819396 | Q67: 0.02478408293 | S67: 0.03465208373 | U67: 43677 | V67: 2.0144 | W67: 0.2619 | X67: 0.01747922192
B68: 2019-08-27 | C68: 8.568326 | D68: -4.33089 | E68: -0.785936 | F68: 7.811989 | H68: 3.62505 | I68: -2.103728 | J68: -2.66374 | K68: 2.465082 | M68: 0.05900862394 | N68: 0.06078438884 | P68: 0.02516269865 | Q68: 0.02548195148 | S68: 0.03442521568 | U68: 43678 | V68: 1.8935 | W68: 0.2008 | X68: 0.0168930787
B69: 2019-08-28 | C69: 8.621248 | D69: -4.374199 | E69: -0.790334 | F69: 7.733869 | H69: 3.632214 | I69: -2.062212 | J69: -2.812337 | K69: 2.299102 | M69: 0.05940139921 | N69: 0.06120112056 | P69: 0.025622927 | Q69: 0.02595401597 | S69: 0.03435544287 | U69: 43679 | V69: 1.8452 | W69: 0.1842 | X69: 0.01657946063
B70: 2019-08-29 | C70: 8.666537 | D70: -4.430103 | E70: -0.782431 | F70: 7.65653 | H70: 3.609764 | I70: -2.045122 | J70: -2.851457 | K70: 2.098018 | M70: 0.05968575654 | N70: 0.06150292378 | P70: 0.02615464859 | Q70: 0.02649968293 | S70: 0.03409961194 | U70: 43680
B71: 2019-08-30 | C71: 8.590981 | D71: -4.385802 | E71: -0.790255 | F71: 7.733095 | H71: 3.597546 | I71: -1.938572 | J71: -3.263862 | K71: 1.968945 | M71: 0.05903505156 | N71: 0.06081242322 | P71: 0.02599917896 | Q71: 0.02634010581 | S71: =((1+N71)/(1+Q71))-1 -> 0.03358761605 | U71: 43681
B72: 2019-09-02 | C72: 8.654011 | D72: -4.42966 | E72: -0.782353 | F72: 7.655764 | H72: 3.726273 | I72: -2.009265 | J72: -3.260602 | K72: 2.139675 | M72: =(C72+((D72+E72)*((1-EXP((-$C$3/365)/F72))/(($C$3/365)/F72)))-(E72*EXP((-$C$3/365)/F72)))/100 -> 0.05956441538 | N72: =EXP(M72)-1 -> 0.06137412759 | P72: =(H72+((I72+J72)*((1-EXP((-$C$3/365)/K72))/(($C$3/365)/K72)))-(J72*EXP((-$C$3/365)/K72)))/100 -> 0.02639671882 | Q72: =EXP(P72)-1 -> 0.02674819802 | S72: 0.03372387664 | U72: 43682 | V72: 1.7075 | W72: 0.1054 | X72: =((1+V72/100)/(1+W72/100))-1 -> 0.01600413165
B73: 2019-09-03 | C73: 8.651517 | D73: -4.385363 | E73: -0.836122 | F73: 7.732322 | H73: 3.748332 | I73: -1.954921 | J73: -3.432903 | K73: 2.093326 | M73: 0.05951257351 | N73: 0.0613191054 | P73: 0.02658888563 | Q73: 0.0269455239 | S73: 0.03347166982 | U73: 43683 | V73: 1.7023 | W73: 0.0842 | X73: 0.01616738706
B74: 2019-09-04 | C74: 8.632383 | D74: -4.415615 | E74: -0.844483 | F74: 7.809645 | H74: 3.696485 | I74: -1.926023 | J74: -3.40672 | K74: 2.095419 | M74: 0.05900750067 | N74: 0.06078319729 | P74: 0.02617329713 | Q74: 0.02651882583 | S74: 0.03337919442 | U74: 43684 | V74: 1.7342 | W74: 0.1014 | X74: 0.01631146018
B75: 2019-09-05 | C75: 8.609309 | D75: -4.373883 | E75: -0.852928 | F75: 7.887741 | H75: 3.700853 | I75: -1.947586 | J75: -3.373708 | K75: 2.135793 | M75: 0.05886961454 | N75: 0.06063694009 | P75: 0.0260609734 | Q75: 0.02640352988 | S75: 0.0333527791 | U75: 43685 | V75: 1.7172 | W75: 0.0614 | X75: 0.01654783963
B76: 2019-09-06 | C76: 8.577991 | D76: -4.349019 | E76: -0.861457 | F76: 7.966618 | H76: 3.711364 | I76: -1.999519 | J76: -3.181307 | K76: 2.275983 | M76: 0.05855590841 | N76: 0.06030426396 | P76: 0.02586089602 | Q76: 0.0261981903 | S76: 0.03323536719 | U76: 43686 | V76: 1.7447 | W76: 0.0863 | X76: 0.01656970035
B77: 2019-09-09 | C77: 8.630306 | D77: -4.392509 | E77: -0.870072 | F77: 7.888047 | H77: 3.726551 | I77: -2.058864 | J77: -2.936689 | K77: 2.422917 | M77: 0.05892464067 | N77: 0.06069530444 | P77: 0.02583050028 | Q77: 0.02616699871 | S77: 0.03364784267 | U77: 43687
B78: 2019-09-10 | C78: 8.716609 | D78: -4.487917 | E78: -0.861371 | F78: 7.809167 | H78: 3.731472 | I78: -2.144494 | J78: -2.729932 | K78: 2.481517 | M78: 0.05939447441 | N78: 0.06119377197 | P78: 0.02591911883 | Q78: 0.02625794018 | S78: 0.03404196005 | U78: 43688
B79: 2019-09-11 | C79: 8.680899 | D79: -4.537367 | E79: -0.861173 | F79: 7.719838 | H79: 3.733367 | I79: -2.169938 | J79: -2.686527 | K79: 2.518542 | M79: 0.0589017854 | N79: 0.06067106224 | P79: 0.02583993713 | Q79: 0.02617668254 | S79: 0.03361446454 | U79: 43689 | V79: 1.6454 | W79: 0.0346 | X79: 0.01610242856
B80: 2019-09-12 | C80: 8.663647 | D80: -4.570552 | E80: -0.856852 | F80: 7.609548 | H80: 3.833088 | I80: -2.416893 | J80: -2.384209 | K80: 3.052162 | M80: 0.05873635951 | N80: 0.06049561429 | P80: 0.02513094338 | Q80: 0.02544938754 | S80: 0.03417645686 | U80: 43690 | V80: 1.7035 | W80: 0.0729 | X80: 0.01629412159
B81: 2019-09-13 | C81: 8.683926 | D81: -4.594226 | E81: -0.842844 | F81: 7.559405 | H81: 3.818641 | I81: -2.422476 | J81: -2.280361 | K81: 3.009304 | M81: 0.05893158497 | N81: 0.06070267025 | P81: 0.02536616455 | Q81: 0.02569062332 | S81: 0.03413509506 | U81: 43691 | V81: 1.5792 | W81: 0.0002 | X81: 0.01578996842
B82: 2019-09-16 | C82: 8.684799 | D82: -4.617712 | E82: -0.817848 | F82: 7.549505 | H82: 3.787105 | I82: -2.62763 | J82: -1.616305 | K82: 3.237692 | M82: 0.05889886291 | N82: 0.06066796244 | P82: 0.02549304718 | Q82: 0.0258207739 | S82: 0.03397005542 | U82: 43692 | V82: 1.5269 | W82: -0.027 | X82: 0.01554319666
B83: 2019-09-17 | C83: 8.76885 | D83: -4.75618 | E83: -0.829709 | F83: 7.551683 | H83: 3.776229 | I83: -2.637886 | J83: -1.565975 | K83: 3.231003 | M83: 0.05893398722 | N83: 0.06070521833 | P83: 0.02550353549 | Q83: 0.02583153308 | S83: 0.03399552863 | U83: 43693 | V83: 1.5538 | W83: 0 | X83: 0.015538
B84: 2019-09-18 | C84: 8.771979 | D84: -4.771675 | E84: -0.82303 | F84: 7.545513 | H84: 3.76436 | I84: -2.670236 | J84: -1.455908 | K84: 3.259479 | M84: 0.05890945879 | N84: 0.06067920121 | P84: 0.02549732695 | Q84: 0.02582516418 | S84: 0.03397658611 | U84: 43694
B85: 2019-09-19 | C85: 8.781728 | D85: -4.7956 | E85: -0.811715 | F85: 7.500274 | H85: 3.725487 | I85: -2.670425 | J85: -1.380661 | K85: 3.256796 | M85: 0.05898712922 | N85: 0.06076158783 | P85: 0.02531405886 | Q85: 0.02563718039 | S85: 0.03424642564 | U85: 43695
B86: 2019-09-20 | C86: 8.752973 | D86: -4.803177 | E86: -0.75957 | F86: 7.499396 | H86: 3.735521 | I86: -2.712151 | J86: -1.33725 | K86: 3.336837 | M86: 0.05880984213 | N86: 0.06057354515 | P86: 0.02518575181 | Q86: 0.02550559235 | S86: 0.03419576945 | U86: 43696 | V86: 1.6063 | W86: 0.0397 | X86: 0.01565978307
B87: 2019-09-23 | C87: 8.724846 | D87: -4.794967 | E87: -0.759446 | F87: 7.499354 | H87: 3.828257 | I87: -2.863104 | J87: -1.172573 | K87: 3.828579 | M87: 0.05857434709 | N87: 0.06032381475 | P87: 0.02482622001 | Q87: 0.02513695675 | S87: 0.0343240557 | U87: 43697 | V87: 1.5555 | W87: 0.0209 | X87: 0.01534279336
B88: 2019-09-24 | C88: 8.727054 | D88: -4.790112 | E88: -0.768175 | F88: 7.552361 | H88: 3.893875 | I88: -2.88125 | J88: -1.215424 | K88: 4.21903 | M88: 0.0585041362 | N88: 0.06024937109 | P88: 0.02440608041 | Q88: 0.02470634658 | S88: 0.03468605872 | U88: 43698 | V88: 1.5893 | W88: 0.0427 | X88: 0.01545939884
B89: 2019-09-25 | C89: 8.727712 | D89: -4.767071 | E89: -0.764602 | F89: 7.55176 | H89: 3.931705 | I89: -2.927067 | J89: -1.304918 | K89: 4.2933 | M89: 0.05864978891 | N89: 0.06040381053 | P89: 0.02418768116 | Q89: 0.02448257593 | S89: 0.03506280677 | U89: 43699 | V89: 1.6131 | W89: 0.0513 | X89: 0.01560999207
B90: 2019-09-26 | C90: 8.7043 | D90: -4.762128 | E90: -0.764515 | F90: 7.551812 | H90: 3.925783 | I90: -2.943239 | J90: -1.588261 | K90: 4.09921 | M90: 0.05844322692 | N90: 0.06018479403 | P90: 0.02368718299 | Q90: 0.02396995257 | S90: 0.0353670939 | U90: 43700 | V90: 1.5351 | W90: -0.0106 | X90: 0.01545863862
B91: 2019-09-27 | C91: 8.706507 | D91: -4.722001 | E91: -0.76519 | F91: 7.542283 | H91: 3.896661 | I91: -2.852958 | J91: -1.765814 | K91: 3.852499 | M91: 0.05870234236 | N91: 0.06045953987 | P91: 0.02381723899 | Q91: 0.02410313466 | S91: 0.03550072642 | U91: 43701
B92: 2019-09-30 | C92: 8.713727 | D92: -4.716167 | E92: -0.748311 | F92: 7.537634 | H92: 3.892766 | I92: -2.833375 | J92: -1.852519 | K92: 3.726366 | M92: 0.05886362032 | N92: 0.06063058241 | P92: 0.02392483854 | Q92: 0.02421333363 | S92: 0.03555631194 | U92: 43702
B93: 2019-10-01 | C93: 8.712037 | D93: -4.713524 | E93: -0.749434 | F93: 7.537702 | H93: 3.874805 | I93: -2.818061 | J93: -1.888752 | K93: 3.662098 | M93: 0.0588579989 | N93: 0.06062462019 | P93: 0.02386565258 | Q93: 0.02415271638 | S93: 0.03561178253 | U93: 43703 | V93: 1.5351 | W93: -0.0154 | X93: 0.01550738814
B94: 2019-10-02 | C94: 8.70627 | D94: -4.696384 | E94: -0.748564 | F94: 7.537567 | H94: 3.876898 | I94: -2.814839 | J94: -1.917772 | K94: 3.662869 | M94: 0.0588979845 | N94: 0.06066703074 | P94: 0.02381513625 | Q94: 0.02410098124 | S94: 0.03570551163 | U94: 43704 | V94: 1.4711 | W94: -0.0745 | X94: 0.0154675233
B95: 2019-10-03 | C95: 8.6764 | D95: -4.696168 | E95: -0.748486 | F95: 7.537477 | H95: 3.871348 | I95: -2.830815 | J95: -1.972716 | K95: 3.589721 | M95: 0.05860086155 | N95: 0.06035192904 | P95: 0.02375062943 | Q95: 0.02403492188 | S95: 0.03546461784 | U95: 43705 | V95: 1.4794 | W95: -0.0847 | X95: 0.01565425916
B96: 2019-10-04 | C96: 8.6359 | D96: -4.662105 | E96: -0.764202 | F96: 7.537827 | H96: 3.882305 | I96: -2.837836 | J96: -2.082294 | K96: 3.551189 | M96: 0.05833855707 | N96: 0.06007383045 | P96: 0.02364260748 | Q96: 0.0239243096 | S96: 0.03530487607 | U96: 43706 | V96: 1.4945 | W96: -0.101 | X96: 0.01597113084
B97: 2019-10-07 | C97: 8.636064 | D97: -4.643074 | E97: -0.666244 | F97: 7.53856 | H97: 3.875501 | I97: -2.830925 | J97: -2.091965 | K97: 3.495418 | M97: 0.05872681934 | N97: 0.06048549704 | P97: 0.02372901118 | Q97: 0.02401278427 | S97: 0.03561743889 | U97: 43707 | V97: 1.4961 | W97: -0.0486 | X97: 0.01545451089
B98: 2019-10-08 | C98: 8.603999 | D98: -4.603802 | E98: -0.661289 | F98: 7.607001 | H98: 3.861258 | I98: -2.811215 | J98: -2.104648 | K98: 3.458694 | M98: 0.05852192381 | N98: 0.06026823056 | P98: 0.0237220577 | Q98: 0.02400566384 | S98: 0.03541246694 | U98: 43708
B99: 2019-10-09 | C99: 8.604085 | D99: -4.6012 | E99: -0.661282 | F99: 7.606925 | H99: 3.839485 | I99: -2.78165 | J99: -2.045005 | K99: 3.450326 | M99: 0.0585374091 | N99: 0.06028464924 | P99: 0.02378639631 | Q99: 0.02407154907 | S99: 0.03536188483 | U99: 43709
B100: 2019-10-10 | C100: 8.617658 | D100: -4.600205 | E100: -0.627383 | F100: 7.523882 | H100: 3.775646 | I100: -2.704482 | J100: -1.906515 | K100: 3.458206 | M100: 0.05891731186 | N100: 0.06068753084 | P100: 0.02375320521 | Q100: 0.02403755957 | S100: 0.03578967482 | U100: 43710 | V100: 1.4961 | W100: -0.0486 | X100: 0.01545451089
B101: 2019-10-11 | C101: 8.62163 | D101: -4.584086 | E101: -0.60512 | F101: 7.51996 | H101: 3.746815 | I101: -2.628854 | J101: -2.078629 | K101: 3.342245 | M101: 0.05911713164 | N101: 0.06089949836 | P101: 0.02356740727 | Q101: 0.02384731317 | S101: 0.0361891707 | U101: 43711 | V101: 1.4573 | W101: -0.0573 | X101: 0.01515468363
B102: 2019-10-15 | C102: 8.633414 | D102: -4.563696 | E102: -0.561616 | F102: 7.506772 | H102: 3.743242 | I102: -2.593864 | J102: -2.155487 | K102: 3.228443 | M102: 0.05949576386 | N102: 0.06130126515 | P102: 0.02376539289 | Q102: 0.02405004029 | S102: 0.03637637166 | U102: 43712 | V102: 1.4657 | W102: -0.0519 | X102: 0.01518388043
B103: 2019-10-16 | C103: 8.657792 | D103: -4.586071 | E103: -0.537866 | F103: 7.415618 | H103: 3.642894 | I103: -2.33529 | J103: -2.703936 | K103: 2.485184 | M103: 0.05984233967 | N103: 0.06166915024 | P103: 0.02461307798 | Q103: 0.02491848027 | S103: 0.03585716394 | U103: 43713 | V103: 1.5586 | W103: -0.0044 | X103: 0.01563068775
B104: 2019-10-17 | C104: 8.650885 | D104: -4.590966 | E104: -0.523688 | F104: 7.410159 | H104: 3.585151 | I104: -2.293869 | J104: -2.835434 | K104: 2.29432 | M104: 0.05979697749 | N104: 0.0616209917 | P104: 0.02459667318 | Q104: 0.02490166682 | S104: 0.03582716867 | U104: 43714 | V104: 1.5602 | W104: 0.0056 | X104: 0.01554512947
B105: 2019-10-18 | C105: 8.609805 | D105: -4.590987 | E105: -0.516747 | F105: 7.410211 | H105: 3.612344 | I105: -2.34137 | J105: -3.013804 | K105: 2.239648 | M105: 0.05940606178 | N105: 0.06120606849 | P105: 0.0246144543 | Q105: 0.02491989088 | S105: 0.03540391589 | U105: 43715
B106: 2019-10-21 | C106: 8.61587 | D106: -4.556043 | E106: -0.496849 | F106: 7.383808 | H106: 3.610329 | I106: -2.317236 | J106: -3.039184 | K106: 2.172714 | M106: 0.05976210622 | N106: 0.06158397228 | P106: 0.02488672688 | Q106: 0.02519898646 | S106: 0.03549065723 | U106: 43716
B107: 2019-10-22 | C107: 8.616482 | D107: -4.55247 | E107: -0.49589 | F107: 7.274608 | H107: 3.612718 | I107: -2.328021 | J107: -3.042223 | K107: 2.104008 | M107: 0.05998302715 | N107: 0.06181852431 | P107: 0.02518808196 | Q107: 0.02550798194 | S107: 0.03540737177 | U107: 43717 | V107: 1.6438 | W107: 0.0582 | X107: 0.01584677718
B108: 2019-10-23 | C108: 8.593742 | D108: -4.549416 | E108: -0.495662 | F108: 7.274525 | H108: 3.557771 | I108: -2.264756 | J108: -3.232233 | K108: 1.850071 | M108: 0.05977303455 | N108: 0.06159557369 | P108: 0.0255988143 | Q108: 0.02592927774 | S108: 0.03476486802 | U108: 43718 | V108: 1.7316 | W108: 0.1214 | X108: 0.01608247587
B109: 2019-10-24 | C109: 8.565808 | D109: -4.549146 | E109: -0.493358 | F109: 7.315112 | H109: 3.552352 | I109: -2.264014 | J109: -3.316694 | K109: 1.852981 | M109: 0.05942994288 | N109: 0.06123141156 | P109: 0.02537972869 | Q109: 0.02570453602 | S109: 0.03463655886 | U109: 43719 | V109: 1.7385 | W109: 0.1373 | X109: 0.01599004567
B110: 2019-10-25 | C110: 8.520004 | D110: -4.51419 | E110: -0.489742 | F110: 7.3166 | H110: 3.558345 | I110: -2.195391 | J110: -3.476818 | K110: 1.892059 | M110: 0.0591703275 | N110: 0.06095593532 | P110: 0.02508179053 | Q110: 0.02539898502 | S110: 0.03467620977 | U110: 43720 | V110: 1.7715 | W110: 0.1436 | X110: 0.01625565688
B111: 2019-10-28 | C111: 8.518184 | D111: -4.454146 | E111: -0.497587 | F111: 7.370769 | H111: 3.554031 | I111: -2.135235 | J111: -3.589098 | K111: 1.873766 | M111: 0.05936356924 | N111: 0.0611609761 | P111: 0.02503852507 | Q111: 0.02535462162 | S111: 0.03492094708 | U111: 43721 | V111: 1.8958 | W111: 0.2162 | X111: 0.01675976539
B112: 2019-10-29 | C112: 8.517185 | D112: -4.454108 | E112: -0.497534 | F112: 7.370745 | H112: 3.552765 | I112: -2.082968 | J112: -3.585456 | K112: 1.876721 | M112: 0.05935398184 | N112: 0.06115080238 | P112: 0.02511516414 | Q112: 0.02543320686 | S112: 0.03483171335 | U112: 43722
B113: 2019-10-30 | C113: 8.556108 | D113: -4.454004 | E113: -0.48662 | F113: 7.359785 | H113: 3.542728 | I113: -2.049539 | J113: -3.530853 | K113: 1.879869 | M113: 0.05979418419 | N113: 0.06161802628 | P113: 0.02516106466 | Q113: 0.02548027586 | S113: 0.03523982984 | U113: 43723
B114: 2019-10-31 | C114: 8.492075 | D114: -4.433126 | E114: -0.483457 | F114: 7.35833 | H114: 3.553794 | I114: -2.080421 | J114: -3.534384 | K114: 1.938005 | M114: 0.05927967613 | N114: 0.06107195575 | P114: 0.02492184646 | Q114: 0.02523499165 | S114: 0.03495487804 | U114: 43724 | V114: 1.8467 | W114: 0.1674 | X114: 0.0167649355
B115: 2019-11-01 | C115: 8.480434 | D115: -4.432018 | E115: -0.50095 | F115: 7.366084 | H115: 3.542959 | I115: -2.07157 | J115: -3.539337 | K115: 1.911583 | M115: 0.0591054018 | N115: 0.06088705425 | P115: 0.02495046276 | Q115: 0.0252643305 | S115: 0.03474491669 | U115: 43725 | V115: 1.8013 | W115: 0.1363 | X115: 0.01662733694
B116: 2019-11-05 | C116: 8.508278 | D116: -4.404551 | E116: -0.452869 | F116: 7.35764 | H116: 3.549431 | I116: -2.103107 | J116: -3.496865 | K116: 1.909425 | M116: 0.05968778722 | N116: 0.06150507936 | P116: 0.02504428425 | Q116: 0.02536052684 | S116: 0.03525057926 | U116: 43726 | V116: 1.7961 | W116: 0.1777 | X116: 0.01615529205
B117: 2019-11-06 | C117: 8.511343 | D117: -4.403532 | E117: -0.444953 | F117: 7.353329 | H117: 3.535918 | I117: -2.107948 | J117: -3.395165 | K117: 1.92677 | M117: 0.05975428249 | N117: 0.06157566677 | P117: 0.02500419887 | Q117: 0.0253194257 | S117: 0.03536092281 | U117: 43727 | V117: 1.784 | W117: 0.1617 | X117: 0.01619680976
B118: 2019-11-07 | C118: 8.534317 | D118: -4.412149 | E118: -0.447286 | F118: 7.147153 | H118: 3.533494 | I118: -2.027949 | J118: -3.497296 | K118: 1.89363 | M118: 0.06028776687 | N118: 0.06214215189 | P118: 0.0251033491 | Q118: 0.0254210914 | S118: 0.03581071308 | U118: 43728 | V118: 1.7215 | W118: 0.1114 | X118: 0.01608308345
B119: 2019-11-08 | C119: 8.545108 | D119: -4.409954 | E119: -0.430227 | F119: 7.025952 | H119: 3.533728 | I119: -2.035345 | J119: -3.49601 | K119: 1.856696 | M119: 0.06067360107 | N119: 0.06255204173 | P119: 0.02527441939 | Q119: 0.02559652549 | S119: 0.03603319174 | U119: 43729
B120: 2019-11-12 | C120: 8.586869 | D120: -4.445235 | E120: -0.458357 | F120: 6.496481 | H120: 3.595883 | I120: -2.049966 | J120: -3.551663 | K120: 1.789491 | M120: 0.06183008292 | N120: 0.06378157471 | P120: 0.02610517073 | Q120: 0.02644889518 | S120: 0.03637071433 | U120: 43730
B121: 2019-11-13 | C121: 8.595823 | D121: -4.429686 | E121: -0.442512 | F121: 6.344976 | H121: 3.586537 | I121: -1.836453 | J121: -4.155726 | K121: 1.473045 | M121: 0.06235203323 | N121: 0.06433696077 | P121: 0.02709537719 | Q121: 0.02746579489 | S121: 0.03588554097 | U121: 43731 | V121: 1.7267 | W121: 0.1003 | X121: 0.01624770355
B122: 2019-11-14 | C122: 8.573975 | D122: -4.460664 | E122: -0.429258 | F122: 6.345517 | H122: 3.64334 | I122: -1.969098 | J122: -4.151163 | K122: 1.67413 | M122: 0.06201582532 | N122: 0.0639791824 | P122: 0.02631906003 | Q122: 0.02666846509 | S122: 0.03634154411 | U122: 43732 | V122: 1.6456 | W122: 0.0614 | X122: 0.01583227898
B123: 2019-11-15 | C123: 8.558187 | D123: -4.461082 | E123: -0.428526 | F123: 6.345908 | H123: 3.701045 | I123: -2.025975 | J123: -4.179715 | K123: 1.703694 | M123: 0.0618572046 | N123: 0.06381042664 | P123: 0.02658574569 | Q123: 0.02694229936 | S123: 0.03590087516 | U123: 43733 | V123: 1.7372 | W123: 0.1328 | X123: 0.01602272183
B124: 2019-11-18 | C124: 8.57154 | D124: -4.456694 | E124: -0.389563 | F124: 6.259374 | H124: 3.757252 | I124: -2.080403 | J124: -4.175536 | K124: 1.683358 | M124: 0.06230839561 | N124: 0.06429051664 | P124: 0.02717908449 | Q124: 0.02755180488 | S124: 0.0357536346 | U124: 43734 | V124: 1.6921 | W124: 0.1161 | X124: 0.01574172386
B125: 2019-11-19 | C125: 8.569759 | D125: -4.457466 | E125: -0.389546 | F125: 6.245316 | H125: 3.757775 | I125: -2.078383 | J125: -4.119321 | K125: 1.701089 | M125: 0.06231630947 | N125: 0.06429893932 | P125: 0.02717969949 | Q125: 0.02755243683 | S125: 0.03576119444 | U125: 43735 | V125: 1.6801 | W125: 0.1439 | X125: 0.01533992585
B126: 2019-11-20 | C126: 8.574111 | D126: -4.457275 | E126: -0.387469 | F126: 6.244943 | H126: 3.723585 | I126: -2.137734 | J126: -3.638187 | K126: 1.833704 | M126: 0.06236773367 | N126: 0.06435367145 | P126: 0.02684563812 | Q126: 0.02720922858 | S126: 0.03616054241 | U126: 43736
B127: 2019-11-21 | C127: 8.550284 | D127: -4.474357 | E127: -0.380001 | F127: 6.242037 | H127: 3.76482 | I127: -2.304624 | J127: -3.511293 | K127: 1.944914 | M127: 0.06207261092 | N127: 0.06403960282 | P127: 0.0266082423 | Q127: 0.02696540234 | S127: 0.03610072977 | U127: 43737
B128: 2019-11-22 | C128: 8.541878 | D128: -4.479285 | E128: -0.377147 | F128: 6.206425 | H128: 3.778373 | I128: -2.315165 | J128: -3.347563 | K128: 2.041494 | M128: 0.06204804142 | N128: 0.06401346022 | P128: 0.02655921542 | Q128: 0.02691505467 | S128: 0.03612607039 | U128: 43738 | V128: 1.6646 | W128: 0.1415 | X128: 0.01520947859
B129: 2019-11-25 | C129: 8.60524 | D129: -4.432255 | E129: -0.382785 | F129: 6.079179 | H129: 3.70704 | I129: -2.330395 | J129: -2.70859 | K129: 1.942934 | M129: 0.06316976055 | N129: 0.06520765413 | P129: 0.027494519 | Q129: 0.0278759813 | S129: 0.03631923841 | U129: 43739 | V129: 1.6353 | W129: 0.1071 | X129: 0.01526565049
B130: 2019-11-26 | C130: 8.713132 | D130: -4.47228 | E130: -0.376897 | F130: 5.965628 | H130: 3.742974 | I130: -2.274992 | J130: -2.7113 | K130: 1.891121 | M130: 0.06431964633 | N130: 0.06643322575 | P130: 0.02818469097 | Q130: 0.02858563736 | S130: 0.03679575819 | U130: 43740 | V130: 1.5992 | W130: 0.0895 | X130: 0.01508350027
B131: 2019-11-27 | C131: 8.711291 | D131: -4.474892 | E131: -0.3768 | F131: 5.962909 | H131: 3.681135 | I131: -2.22419 | J131: -2.714024 | K131: 1.986547 | M131: 0.06429490833 | N131: 0.06640684466 | P131: 0.02724203549 | Q131: 0.02761649233 | S131: 0.03774788806 | U131: 43741 | V131: 1.5341 | W131: 0.0506 | X131: 0.01482749729
B132: 2019-11-28 | C132: 8.662283 | D132: -4.48104 | E132: -0.366313 | F132: 5.93415 | H132: 3.75256 | I132: -2.356993 | J132: -2.713629 | K132: 2.222762 | M132: 0.06387054148 | N132: 0.06595439295 | P132: 0.02668194468 | Q132: 0.02704109493 | S132: 0.03788874488 | U132: 43742 | V132: 1.529 | W132: 0.0282 | X132: 0.01500376894
B133: 2019-11-29 | C133: 8.653701 | D133: -4.502568 | E133: -0.365714 | F133: 5.929255 | H133: 3.777633 | I133: -2.448098 | J133: -2.711112 | K133: 2.320262 | M133: 0.06369347113 | N133: 0.06576566074 | P133: 0.02633069341 | Q133: 0.02668040878 | S133: 0.03806954104 | U133: 43743
B134: 2019-12-02 | C134: 8.660172 | D134: -4.508826 | E134: -0.365338 | F134: 5.920495 | H134: 3.815083 | I134: -2.60396 | J134: -2.703081 | K134: 2.323957 | M134: 0.06374885569 | N134: 0.06582468934 | P134: 0.02635000672 | Q134: 0.02670023757 | S134: 0.03810698619 | U134: 43744
B135: 2019-12-03 | C135: 8.599298 | D135: -4.50854 | E135: -0.346762 | F135: 5.91691 | H135: 3.860393 | I135: -2.886474 | J135: -2.159566 | K135: 2.742351 | M135: 0.06320496276 | N135: 0.06524515245 | P135: 0.02569010157 | Q135: 0.0260229363 | S135: =((1+N135)/(1+Q135))-1 -> 0.03822742627 | U135: 43745 | V135: 1.558 | W135: 0.0432 | X135: =((1+V135/100)/(1+W135/100))-1 -> 0.01514145889
B136: 2019-12-04 | C136: 8.577742 | D136: -4.505236 | E136: -0.351722 | F136: 5.921127 | H136: 3.892599 | I136: -2.920912 | J136: -2.190353 | K136: 2.910425 | M136: =(C136+((D136+E136)*((1-EXP((-$C$3/365)/F136))/(($C$3/365)/F136)))-(E136*EXP((-$C$3/365)/F136)))/100 -> 0.06298103322 | N136: =EXP(M136)-1 -> 0.06500663929 | P136: =(H136+((I136+J136)*((1-EXP((-$C$3/365)/K136))/(($C$3/365)/K136)))-(J136*EXP((-$C$3/365)/K136)))/100 -> 0.02523417549 | Q136: =EXP(P136)-1 -> 0.02555525231 | S136: 0.03846831937 | U136: 43746 | V136: 1.5289 | W136: 0.0527 | X136: 0.01475422452
B137: 2019-12-05 | C137: 8.471072 | D137: -4.428032 | E137: -0.348811 | F137: 5.921578 | H137: 3.932008 | I137: -2.989118 | J137: -2.178106 | K137: 3.054902 | M137: 0.06229469563 | N137: 0.06427593598 | P137: 0.02495759739 | Q137: 0.02527164541 | S137: 0.03804288429 | U137: 43747 | V137: 1.5836 | W137: 0.0924 | X137: 0.01489823403
B138: 2019-12-06 | C138: 8.37969 | D138: -4.358562 | E138: -0.342323 | F138: 5.930949 | H138: 3.936281 | I138: -2.994626 | J138: -2.181726 | K138: 3.107077 | M138: 0.06171511914 | N138: 0.06365928539 | P138: 0.02479614114 | Q138: 0.02510612226 | S138: 0.03760894828 | U138: 43748 | V138: 1.6681 | W138: 0.142 | X138: 0.01523936011
B139: 2019-12-09 | C139: 8.379991 | D139: -4.345945 | E139: -0.304743 | F139: 5.922318 | H139: 3.877021 | I139: -2.957806 | J139: -2.004691 | K139: 3.072113 | M139: 0.06190987586 | N139: 0.06386646035 | P139: 0.02488634224 | Q139: 0.02519859212 | S139: 0.0377174418 | U139: 43749 | V139: 1.729 | W139: 0.1652 | X139: 0.01561220863
B140: 2019-12-10 | C140: 8.389099 | D140: -4.344924 | E140: -0.286503 | F140: 5.915519 | H140: 3.815711 | I140: -2.916875 | J140: -1.801958 | K140: 3.03661 | M140: 0.06207506841 | N140: 0.06404221769 | P140: 0.02502918785 | Q140: 0.02534504771 | S140: 0.03774063186 | U140: 43750
B141: 2019-12-11 | C141: 8.326772 | D141: -4.315676 | E141: -0.280857 | F141: 5.918555 | H141: 3.735972 | I141: -2.919793 | J141: -1.819972 | K141: 2.827411 | M141: 0.06160315233 | N141: 0.06354019752 | P141: 0.02487824044 | Q141: 0.02519028621 | S141: 0.03740760309 | U141: 43751
B142: 2019-12-12 | C142: 8.312727 | D142: -4.315579 | E142: -0.280769 | F142: 5.918515 | H142: 3.720047 | I142: -2.895185 | J142: -1.805084 | K142: 2.79787 | M142: 0.06146351936 | N142: 0.06339170261 | P142: 0.0249245995 | Q142: 0.02523781416 | S142: 0.03721467149 | U142: 43752 | V142: 1.729 | W142: 0.1652 | X142: 0.01561220863
B143: 2019-12-13 | C143: 8.321356 | D143: -4.314642 | E143: -0.271981 | F143: 5.904933 | H143: 3.690389 | I143: -2.825332 | J143: -1.816121 | K143: 2.799899 | M143: 0.06160997798 | N143: 0.0635474569 | P143: 0.0247841718 | Q143: 0.02509385248 | S143: 0.03751227687 | U143: 43753 | V143: 1.771 | W143: 0.2014 | X143: 0.01566445179
B144: 2019-12-16 | C144: 8.328173 | D144: -4.312065 | E144: -0.239519 | F144: 5.862843 | H144: 3.684722 | I144: -2.792579 | J144: -1.890435 | K144: 2.724052 | M144: 0.06187905107 | N144: 0.0638336674 | P144: 0.02489625229 | Q144: 0.02520875195 | S144: 0.0376751714 | U144: 43754 | V144: 1.7395 | W144: 0.1699 | X144: 0.01566937773
B145: 2019-12-17 | C145: 8.327444 | D145: -4.327329 | E145: -0.23919 | F145: 5.836167 | H145: 3.669625 | I145: -2.773976 | J145: -1.971983 | K145: 2.659951 | M145: 0.06185822498 | N145: 0.06381151214 | P145: 0.02482571832 | Q145: 0.02513644245 | S145: 0.03772675332 | U145: 43755 | V145: 1.7518 | W145: 0.1578 | X145: 0.01591488631
B146: 2019-12-18 | C146: 8.328382 | D146: -4.348635 | E146: -0.237482 | F146: 5.83377 | H146: 3.636025 | I146: -2.718804 | J146: -2.061058 | K146: 2.58625 | M146: 0.06177608131 | N146: 0.06372413035 | P146: 0.02468842525 | Q146: 0.02499570799 | S146: 0.0377839849 | U146: 43756 | V146: 1.7536 | W146: 0.1521 | X146: 0.01599067818
B147: 2019-12-19 | C147: 8.341774 | D147: -4.351917 | E147: -0.236614 | F147: 5.819124 | H147: 3.638985 | I147: -2.720159 | J147: -2.08523 | K147: 2.582004 | M147: 0.06192945204 | N147: 0.063887287 | P147: 0.02467401135 | Q147: 0.0249809339 | S147: 0.03795812372 | U147: 43757
B148: 2019-12-20 | C148: 8.359408 | D148: -4.367941 | E148: -0.235632 | F148: 5.795336 | H148: 3.63216 | I148: -2.757317 | J148: -2.104291 | K148: 2.571834 | M148: 0.06208546636 | N148: 0.0640532816 | P148: 0.02450539763 | Q148: 0.02480812263 | S148: 0.03829512872 | U148: 43758
B149: 2019-12-23 | C149: 8.359841 | D149: -4.402732 | E149: -0.213323 | F149: 5.798294 | H149: 3.635488 | I149: -2.758091 | J149: -2.191683 | K149: 2.535413 | M149: 0.06198392238 | N149: 0.06394523889 | P149: 0.02447270846 | Q149: 0.02477462305 | S149: 0.03822363958 | U149: 43759 | V149: 1.7993 | W149: 0.1876 | X149: 0.01608682112
B150: 2019-12-24 | C150: 8.352683 | D150: -4.408941 | E150: -0.210277 | F150: 5.776572 | H150: 3.609092 | I150: -2.703433 | J150: -2.468276 | K150: 2.32162 | M150: 0.06194113033 | N150: 0.06389971146 | P150: 0.02457836141 | Q150: 0.02488289923 | S150: 0.0380695319 | U150: 43760 | V150: 1.7607 | W150: 0.1521 | X150: 0.01606157035
B151: 2019-12-26 | C151: 8.351831 | D151: -4.41202 | E151: -0.209904 | F151: 5.761824 | H151: 3.59948 | I151: -2.688475 | J151: -2.465776 | K151: 2.319298 | M151: 0.06195268656 | N151: 0.0639120062 | P151: 0.02453157455 | Q151: 0.02483494929 | S151: 0.03813009786 | U151: 43761 | V151: 1.7642 | W151: 0.144 | X151: 0.01617870267
B152: 2019-12-27 | C152: 8.369727 | D152: -4.411368 | E152: -0.208354 | F152: 5.728517 | H152: 3.590973 | I152: -2.751536 | J152: -2.463309 | K152: 2.257965 | M152: 0.06221557395 | N152: 0.06419173201 | P152: 0.02456911093 | Q152: 0.02487341862 | S152: 0.03836406788 | U152: 43762 | V152: 1.766 | W152: 0.1383 | X152: 0.01625452
B153: 2019-12-30 | C153: 8.357849 | D153: -4.433159 | E153: -0.203378 | F153: 5.690889 | H153: 3.589061 | I153: -2.913574 | J153: -2.04272 | K153: 2.373564 | M153: 0.06209568847 | N153: 0.06406415853 | P153: 0.02460298588 | Q153: 0.02490813674 | S153: 0.03820442085 | U153: 43763 | V153: 1.7943 | W153: 0.1334 | X153: 0.01658687311
B154: 2019-12-31 | C154: 8.357849 | D154: -4.433159 | E154: -0.203378 | F154: 5.690889 | H154: 3.589061 | I154: -2.913574 | J154: -2.04272 | K154: 2.373564 | M154: 0.06209568847 | N154: 0.06406415853 | P154: 0.02460298588 | Q154: 0.02490813674 | S154: 0.03820442085 | U154: 43764
B155: 2020-01-02 | C155: 8.369023 | D155: -4.450785 | E155: -0.204484 | F155: 5.680432 | H155: 3.603474 | I155: -2.92305 | J155: -1.982415 | K155: 2.466444 | M155: 0.06214553449 | N155: 0.06411719921 | P155: 0.02448941041 | Q155: 0.02479173892 | S155: 0.03837409963 | U155: 43765
B156: 2020-01-02 | C156: 8.369023 | D156: -4.450785 | E156: -0.204484 | F156: 5.680432 | H156: 3.603474 | I156: -2.92305 | J156: -1.982415 | K156: 2.466444 | M156: 0.06214553449 | N156: 0.06411719921 | P156: 0.02448941041 | Q156: 0.02479173892 | S156: 0.03837409963 | U156: 43766 | V156: 1.842 | W156: 0.1899 | X156: 0.01648968609
B157: 2020-01-03 | C157: 8.376426 | D157: -4.451403 | E157: -0.202984 | F157: 5.668046 | H157: 3.620048 | I157: -2.981572 | J157: -1.870526 | K157: 2.51607 | M157: 0.06225010905 | N157: 0.06422848462 | P157: 0.0245731134 | Q157: 0.02487752065 | S157: 0.03839577235 | U157: 43767 | V157: 1.8385 | W157: 0.2223 | X157: 0.01612615157
B158: 2020-01-07 | C158: 8.37757 | D158: -4.457533 | E158: -0.194293 | F158: 5.596977 | H158: 3.629569 | I158: -3.008355 | J158: -1.831419 | K158: 2.565355 | M158: 0.06242647156 | N158: 0.06441619118 | P158: 0.02450316955 | Q158: 0.02480583928 | S158: 0.03865156733 | U158: 43768 | V158: 1.7715 | W158: 0.1801 | X158: 0.01588539041
B159: 2020-01-07 | C159: 8.37757 | D159: -4.457533 | E159: -0.194293 | F159: 5.596977 | H159: 3.629569 | I159: -3.008355 | J159: -1.831419 | K159: 2.565355 | M159: 0.06242647156 | N159: 0.06441619118 | P159: 0.02450316955 | Q159: 0.02480583928 | S159: 0.03865156733 | U159: 43769 | V159: 1.691 | W159: 0.1373 | X159: 0.01551569695
B160: 2020-01-08 | C160: 8.312092 | D160: -4.475619 | E160: -0.185595 | F160: 5.526656 | H160: 3.642016 | I160: -3.025725 | J160: -1.856138 | K160: 2.619306 | M160: 0.06188226616 | N160: 0.06383708773 | P160: 0.02432198042 | Q160: 0.02462017241 | S160: 0.03827458835 | U160: 43770 | V160: 1.7103 | W160: 0.113 | X160: 0.01595497088
B161: 2020-01-09 | C161: 8.246257 | D161: -4.419251 | E161: -0.186404 | F161: 5.586084 | H161: 3.6591 | I161: -2.958372 | J161: -1.855686 | K161: 2.753364 | M161: 0.06134094504 | N161: 0.06326136608 | P161: 0.02417805259 | Q161: 0.02447271167 | S161: 0.03786206696 | U161: 43771
B162: 2020-01-10 | C162: 8.230821 | D162: -4.423484 | E162: -0.216191 | F162: 5.605289 | H162: 3.632547 | I162: -2.866673 | J162: -1.823735 | K162: 2.752753 | M162: 0.06103269415 | N162: 0.06293366533 | P162: 0.02423763563 | Q162: 0.02453375468 | S162: 0.03748037629 | U162: 43772
B163: 2020-01-13 | C163: 8.225148 | D163: -4.394602 | E163: -0.206795 | F163: 5.637761 | H163: 3.614209 | I163: -2.869424 | J163: -1.7554 | K163: 2.712317 | M163: 0.06106297421 | N163: 0.06296585152 | P163: 0.02435205343 | Q163: 0.02465098629 | S163: 0.03739308871 | U163: 43773 | V163: 1.777 | W163: 0.1307 | X163: 0.01644151095
B164: 2020-01-14 | C164: 8.222809 | D164: -4.374668 | E164: -0.207118 | F164: 5.639415 | H164: 3.60276 | I164: -2.888761 | J164: -1.654927 | K164: 2.709886 | M164: 0.06112810488 | N164: 0.06303508545 | P164: 0.02443533062 | Q164: 0.0247363199 | S164: 0.0373742638 | U164: 43774 | V164: 1.8584 | W164: 0.18 | X164: 0.01675384308
B165: 2020-01-15 | C165: 8.187576 | D165: -4.360209 | E165: -0.200217 | F165: 5.700192 | H165: 3.621498 | I165: -2.91629 | J165: -1.693852 | K165: 2.752736 | M165: 0.06072468187 | N165: 0.06260631913 | P165: 0.02430796773 | Q165: 0.02460581483 | S165: 0.03708792566 | U165: 43775 | V165: 1.8283 | W165: 0.1387 | X165: 0.01687259771
B166: 2020-01-16 | C166: 8.156669 | D166: -4.346334 | E166: -0.217378 | F166: 5.699023 | H166: 3.619318 | I166: -2.919206 | J166: -1.692158 | K166: 2.729433 | M166: 0.060432472 | N166: 0.06229586044 | P166: 0.02436323249 | Q166: 0.02466244099 | S166: 0.03672762652 | U166: 43776 | V166: 1.9173 | W166: 0.2125 | X166: 0.01701184982
B167: 2020-01-17 | C167: 8.150682 | D167: -4.345268 | E167: -0.216077 | F167: 5.740784 | H167: 3.580001 | I167: -2.903574 | J167: -1.744848 | K167: 2.619801 | M167: 0.06028695146 | N167: 0.06214128582 | P167: 0.02427360889 | Q167: 0.02457061117 | S167: 0.03666967824 | U167: 43777 | V167: 1.9417 | W167: 0.2157 | X167: 0.01722285031
B168: 2020-01-20 | C168: 8.155265 | D168: -4.320687 | E168: -0.215154 | F168: 5.740499 | H168: 3.541256 | I168: -2.877128 | J168: -1.74411 | K168: 2.44831 | M168: 0.06045256757 | N168: 0.06231720809 | P168: 0.0245823577 | Q168: 0.02488699496 | S168: 0.03652130753 | U168: 43778
B169: 2020-01-21 | C169: 8.155695 | D169: -4.313943 | E169: -0.214827 | F169: 5.740173 | H169: 3.513692 | I169: -2.774293 | J169: -1.864659 | K169: 2.375042 | M169: 0.06049050562 | N169: 0.0623575111 | P169: 0.02455942227 | Q169: 0.02486348901 | S169: 0.03658440611 | U169: 43779
B170: 2020-01-22 | C170: 8.063464 | D170: -4.214997 | E170: -0.227512 | F170: 5.781587 | H170: 3.494625 | I170: -2.758447 | J170: -1.921591 | K170: 2.334976 | M170: 0.05990857698 | N170: 0.06173947467 | P170: 0.02443461766 | Q170: 0.0247355893 | S170: 0.03611066675 | U170: 43780 | V170: 1.9417 | W170: 0.2157 | X170: 0.01722285031
B171: 2020-01-23 | C171: 8.044546 | D171: -4.214919 | E171: -0.227957 | F171: 5.78463 | H171: 3.470032 | I171: -2.748102 | J171: -1.908844 | K171: 2.329273 | M171: 0.05971183575 | N171: 0.0615306073 | P171: 0.02426198384 | Q171: 0.02455870056 | S171: 0.03608568911 | U171: 43781 | V171: 1.9347 | W171: 0.2345 | X171: 0.01696222359
B172: 2020-01-24 | C172: 8.025524 | D172: -4.199457 | E172: -0.229676 | F172: 5.809297 | H172: 3.428078 | I172: -2.766174 | J172: -1.910042 | K172: 2.208224 | M172: 0.05953684722 | N172: 0.06134486787 | P172: 0.02427235365 | Q172: 0.02456932509 | S172: 0.03589365978 | U172: 43782 | V172: 1.886 | W172: 0.2141 | X172: 0.0166832811
B173: 2020-01-27 | C173: 8.021339 | D173: -4.15893 | E173: -0.22927 | F173: 5.830128 | H173: 3.419429 | I173: -2.743667 | J173: -1.908122 | K173: 2.183706 | M173: 0.05964523043 | N173: 0.06145990606 | P173: 0.0243361857 | Q173: 0.02463472754 | S173: 0.03593981107 | U173: 43783 | V173: 1.8186 | W173: 0.1823 | X173: 0.01633322453
B174: 2020-01-28 | C174: 8.022923 | D174: -4.153447 | E174: -0.229447 | F174: 5.830151 | H174: 3.411418 | I174: -2.814272 | J174: -1.906162 | K174: 2.122552 | M174: 0.05968670894 | N174: 0.06150393475 | P174: 0.02435633842 | Q174: 0.02465537693 | S174: 0.03596190354 | U174: 43784 | V174: 1.8308 | W174: 0.1977 | X174: 0.01629877732
B175: 2020-01-29 | C175: 8.007693 | D175: -4.145531 | E175: -0.239239 | F175: 5.893745 | H175: 3.417681 | I175: -2.819067 | J175: -1.961839 | K175: 2.124942 | M175: 0.0594092795 | N175: 0.06120948316 | P175: 0.02428687395 | Q175: 0.02458420225 | S175: 0.03574648216 | U175: 43785
B176: 2020-01-30 | C176: 8.003416 | D176: -4.143921 | E176: -0.246915 | F176: 5.899975 | H176: 3.353357 | I176: -2.799075 | J176: -1.963602 | K176: 2.014216 | M176: 0.05933836456 | N176: 0.06113423022 | P176: 0.02414452785 | Q176: 0.02443836707 | S176: 0.03582046938 | U176: 43786
B177: 2020-01-31 | C177: 7.9592 | D177: -4.098243 | E177: -0.254649 | F177: 6.007772 | H177: 3.353537 | I177: -2.837066 | J177: -2.007799 | K177: 2.012202 | M177: 0.05887280682 | N177: 0.06064032595 | P177: 0.02399368139 | Q177: 0.02428384582 | S177: 0.03549453629 | U177: 43787 | V177: 1.8153 | W177: 0.1733 | X177: 0.01639159337
B178: 2020-02-03 | C178: 7.933738 | D178: -4.078826 | E178: -0.255835 | F178: 6.127244 | H178: 3.315503 | I178: -2.777506 | J178: -2.009805 | K178: 2.092357 | M178: 0.05847119478 | N178: 0.06021444554 | P178: 0.02339128753 | Q178: 0.02366700933 | S178: 0.03570246562 | U178: 43788 | V178: 1.7826 | W178: 0.1481 | X178: 0.01632082885
B179: 2020-02-04 | C179: 7.912304 | D179: -4.012353 | E179: -0.263423 | F179: 5.905081 | H179: 3.30116 | I179: -2.696092 | J179: -2.005158 | K179: 2.08812 | M179: 0.0590014457 | N179: 0.0607767743 | P179: 0.02344335447 | Q179: 0.02372030992 | S179: 0.03619784038 | U179: 43789 | V179: 1.7449 | W179: 0.1294 | X179: 0.01613412245
B180: 2020-02-05 | C180: 7.889476 | D180: -4.020276 | E180: -0.23926 | F180: 5.886165 | H180: 3.298681 | I180: -2.660686 | J180: -1.974698 | K180: 2.106851 | M180: 0.05884534584 | N180: 0.06061120012 | P180: 0.02347700015 | Q180: 0.02375475427 | S180: 0.03600124512 | U180: 43790 | V180: 1.7723 | W180: 0.1431 | X180: 0.01626871946
B181: 2020-02-06 | C181: 7.879002 | D181: -4.043973 | E181: -0.239652 | F181: 6.024036 | H181: 3.280151 | I181: -2.594967 | J181: -1.927321 | K181: 2.112085 | M181: 0.0583473729 | N181: 0.06008317593 | P181: 0.02350329112 | Q181: 0.02378167013 | S181: 0.03545824941 | U181: 43791 | V181: 1.7706 | W181: 0.143 | X181: 0.01625275856
B182: 2020-02-07 | C182: 7.874838 | D182: -3.991616 | E182: -0.256713 | F182: 6.087198 | H182: 3.237909 | I182: -2.597004 | J182: -1.926229 | K182: 1.938674 | M182: 0.05838696301 | N182: 0.06012514557 | P182: 0.0237712591 | Q182: 0.0240560476 | S182: 0.03522180065 | U182: 43792
B183: 2020-02-10 | C183: 7.829432 | D183: -3.952431 | E183: -0.249162 | F183: 6.085461 | H183: 3.239652 | I183: -2.585459 | J183: -1.927023 | K183: 1.969067 | M183: 0.05815109773 | N183: 0.05987512833 | P183: 0.02368652051 | Q183: 0.02396927421 | S183: 0.03506536282 | U183: 43793
B184: 2020-02-11 | C184: 7.810116 | D184: -3.940735 | E184: -0.252807 | F184: 6.123629 | H184: 3.244937 | I184: -2.612384 | J184: -1.929105 | K184: 2.066078 | M184: 0.05793154226 | N184: 0.0596424525 | P184: 0.02329300729 | Q184: 0.02356640803 | S184: 0.03524543614 | U184: 43794 | V184: 1.7551 | W184: 0.1211 | X184: 0.01632023619
B185: 2020-02-12 | C185: 7.785134 | D185: -3.928053 | E185: -0.25684 | F185: 6.229121 | H185: 3.262386 | I185: -2.607984 | J185: -1.959631 | K185: 2.225336 | M185: 0.0575338424 | N185: 0.05922111663 | P185: 0.02279208269 | Q185: 0.02305380684 | S185: 0.03535230459 | U185: 43795 | V185: 1.7414 | W185: 0.1089 | X185: 0.01630724141
B186: 2020-02-13 | C186: 7.780193 | D186: -3.896426 | E186: -0.231475 | F186: 6.228904 | H186: 3.266253 | I186: -2.637423 | J186: -1.846537 | K186: 2.223112 | M186: 0.05771761449 | N186: 0.0594157898 | P186: 0.02301062418 | Q186: 0.02327741097 | S186: 0.03531630664 | U186: 43796 | V186: 1.7654 | W186: 0.1283 | X186: 0.01635002292
B187: 2020-02-14 | C187: 7.761657 | D187: -3.842854 | E187: -0.264879 | F187: 6.236952 | H187: 3.26817 | I187: -2.734779 | J187: -1.832283 | K187: 2.176948 | M187: 0.0576850809 | N187: 0.05938132376 | P187: 0.02302538741 | Q187: 0.02329251797 | S187: 0.03526734062 | U187: 43797 | V187: 1.7654 | W187: 0.1283 | X187: 0.01635002292
B188: 2020-02-17 | C188: 7.699685 | D188: -3.818189 | E188: -0.25332 | F188: 6.229725 | H188: 3.261533 | I188: -2.699709 | J188: -1.874013 | K188: 2.179736 | M188: 0.05723563969 | N188: 0.05890530112 | P188: 0.02293797619 | Q188: 0.02320307463 | S188: 0.03489261064 | U188: 43798 | V188: 1.7758 | W188: 0.1518 | X188: 0.01621538505
B189: 2020-02-18 | C189: 7.703685 | D189: -3.82575 | E189: -0.251036 | F189: 6.202954 | H189: 3.258271 | I189: -2.72119 | J189: -1.872139 | K189: 2.193756 | M189: 0.05729345372 | N189: 0.05896652247 | P189: 0.0228078385 | Q189: 0.023069926 | S189: 0.03508713878 | U189: 43799
B190: 2020-02-19 | C190: 7.72164 | D190: -3.866395 | E190: -0.245828 | F190: 5.988358 | H190: 3.266497 | I190: -2.729344 | J190: -1.870267 | K190: 2.206062 | M190: 0.05768984672 | N190: 0.05938637259 | P190: 0.02282804165 | Q190: 0.02309059545 | S190: 0.0354766013 | U190: 43800
B191: 2020-02-20 | C191: 7.73896 | D191: -3.894758 | E191: -0.244957 | F191: 5.888583 | H191: 3.234676 | I191: -2.709933 | J191: -1.753807 | K191: 2.171669 | M191: 0.05792214948 | N191: 0.05963249956 | P191: 0.02292542612 | Q191: 0.02319023344 | S191: 0.03561631545 | U191: 43801 | V191: 1.8189 | W191: 0.1591 | X191: 0.01657163453
B192: 2020-02-21 | C192: 7.726524 | D192: -3.894263 | E192: -0.257474 | F192: 5.911128 | H192: 3.21074 | I192: -2.70962 | J192: -1.685665 | K192: 2.142723 | M192: 0.05771863643 | N192: 0.05941687246 | P192: 0.02293652374 | Q192: 0.02320158847 | S192: 0.035394085 | U192: 43802 | V192: 1.7157 | W192: 0.0835 | X192: 0.0163083825
B193: 2020-02-24 | C193: 7.714815 | D193: -3.875559 | E193: -0.318725 | F193: 6.053329 | H193: 3.181914 | I193: -2.741371 | J193: -1.617214 | K193: 2.144866 | M193: 0.05723603312 | N193: 0.05890571772 | P193: 0.02271159613 | Q193: 0.02297146807 | S193: 0.03512732346 | U193: 43803 | V193: 1.774 | W193: 0.1005 | X193: 0.01671819821
B194: 2020-02-25 | C194: 7.712444 | D194: -3.878103 | E194: -0.318734 | F194: 6.053389 | H194: 3.181341 | I194: -2.74219 | J194: -1.615597 | K194: 2.164892 | M194: 0.0571997345 | N194: 0.0588672816 | P194: 0.02263161575 | Q194: 0.02288965369 | S194: 0.03517254064 | U194: 43804 | V194: 1.8103 | W194: 0.1273 | X194: 0.01680860265
B195: 2020-02-26 | C195: 7.732173 | D195: -3.904191 | E195: -0.319324 | F195: 6.014619 | H195: 3.175087 | I195: -2.695773 | J195: -1.60285 | K195: 2.167044 | M195: 0.0573419211 | N195: 0.05901784905 | P195: 0.02268662901 | Q195: 0.02294592774 | S195: 0.03526278402 | U195: 43805 | V195: 1.8363 | W195: 0.1239 | X195: 0.01710280962
B196: 2020-02-27 | C196: 7.841976 | D196: -3.940634 | E196: -0.290491 | F196: 6.066616 | H196: 3.178249 | I196: -2.637584 | J196: -1.60125 | K196: 2.077657 | M196: 0.05824766859 | N196: 0.05997748633 | P196: 0.02317724265 | Q196: 0.02344792209 | S196: 0.03569264587 | U196: 43806
B197: 2020-02-28 | C197: 7.866132 | D197: -3.909205 | E197: -0.274089 | F197: 5.998511 | H197: 3.218302 | I197: -2.577036 | J197: -1.602851 | K197: 2.054952 | M197: 0.0588228542 | N197: 0.0605873455 | P197: 0.02378315701 | Q197: 0.02406823179 | S197: 0.03566082081 | U197: 43807
B198: 2020-03-02 | C198: 7.871216 | D198: -3.92199 | E198: -0.271774 | F198: 5.961749 | H198: 3.222906 | I198: -2.42906 | J198: -2.022545 | K198: 2.05798 | M198: 0.05888991756 | N198: 0.06065847444 | P198: 0.02329570498 | Q198: 0.0235691693 | S198: 0.03623526994 | U198: 43808 | V198: 1.819 | W198: 0.1182 | X198: 0.01698792028
B199: 2020-03-03 | C199: 7.926038 | D199: -4.107984 | E199: -0.26598 | F199: 5.97856 | H199: 3.223547 | I199: -2.449346 | J199: -2.121635 | K199: 2.060038 | M199: 0.05851941711 | N199: 0.06026557279 | P199: 0.02305785611 | Q199: 0.02332574348 | S199: =((1+N199)/(1+Q199))-1 -> 0.03609782081 | U199: 43809 | V199: 1.8416 | W199: 0.1295 | X199: =((1+V199/100)/(1+W199/100))-1 -> 0.01709885698
B200: 2020-03-04 | C200: 7.863918 | D200: -4.106849 | E200: -0.270682 | F200: 6.3292 | H200: 3.187529 | I200: -2.559657 | J200: -1.969554 | K200: 2.153029 | M200: =(C200+((D200+E200)*((1-EXP((-$C$3/365)/F200))/(($C$3/365)/F200)))-(E200*EXP((-$C$3/365)/F200)))/100 -> 0.05719738444 | N200: =EXP(M200)-1 -> 0.0588647932 | P200: =(H200+((I200+J200)*((1-EXP((-$C$3/365)/K200))/(($C$3/365)/K200)))-(J200*EXP((-$C$3/365)/K200)))/100 -> 0.02240684755 | Q200: =EXP(P200)-1 -> 0.02265976646 | S200: 0.03540280739 | U200: 43810 | V200: 1.7914 | W200: 0.0864 | X200: 0.01703528152
B201: 2020-03-05 | C201: 7.903272 | D201: -4.130469 | E201: -0.272709 | F201: 6.36092 | H201: 3.189561 | I201: -2.564415 | J201: -1.971524 | K201: 2.155182 | M201: 0.05740538743 | N201: 0.05908506315 | P201: 0.02240465709 | Q201: 0.02265752637 | S201: 0.03562046515 | U201: 43811 | V201: 1.8922 | W201: 0.1605 | X201: 0.01728925075
B202: 2020-03-06 | C202: 7.91895 | D202: -4.10219 | E202: -0.272527 | F202: 6.008422 | H202: 3.201889 | I202: -2.590973 | J202: -1.993244 | K202: 2.089058 | M202: 0.05839652957 | N202: 0.06013528737 | P202: 0.02268826298 | Q202: 0.0229475992 | S202: 0.03635346346 | U202: 43812 | V202: 1.8226 | W202: 0.1025 | X202: 0.01718338703
... 170 more rows
